{"text_format":"1","workbook":"xlsx","n_sheets":9,"sheets":["Input","Lighting","HVAC and Refrigeration","Energy Efficient Equipment","O&M Practices","Management Practice","Report","Question Sets","Variables"],"not_rendered":{"charts":2,"images":13,"macros":1,"external_links":0,"defined_names":26,"comments":0,"pivot_tables":0},"unopened":[],"bounds":{"document_bytes":16777216,"sheet_cells":100000,"rows_first":2000,"rows_last":500,"rows_between":2000,"halvings":0,"cell_chars":16384,"cell_head_chars":4096},"cells_cut":0,"cells_raw":0,"read":"whole","date_system":"1900"}

{"sheet":"Input","index":0,"n_rows":48,"n_cols":4,"rows_kept":48,"cut":false,"hidden":false,"merged":[[33,2,33,3],[40,2,40,3],[25,2,25,3],[35,2,37,4],[42,2,44,4]]}
[]
[]
[]
[null,"Strategic energy management assessment"]
[]
[null,null,"Business Name"]
[]
[null,null,"Sector"]
[]
[null,null,"Address"]
[]
[null,null,"City"]
[]
[null,null,"Postal Code"]
[null,null,null," eg. V3N 4X8"]
[]
[null,null,"Date"]
[null,null,{"$f":"TODAY()","v":"2018-07-05"}]
[null,null,"First Name"]
[]
[null,null,"Last Name"]
[]
[null,null,"Job Title"]
[]
[null,null,"Email"]
[]
[]
[null,null,"Annual Electric Cost ($)"]
[]
[null,null,"Annual Energy Consumption (kWh/yr)"]
[]
[]
[null,null,"Number one barrier for implementing energy efficient solutions:"]
[]
[null,null,"Please comment below:"]
[]
[]
[]
[]
[null,null,"Number one reason for implementing energy efficient solutions: "]
[]
[null,null,"Please comment below:"]
[]
[]
[]
[]
[null,null,"BC Hydro Account Number "]
[null,null,null,"optional"]

{"sheet":"Lighting","index":1,"n_rows":16,"n_cols":3,"rows_kept":16,"cut":false,"hidden":true,"merged":[]}
[]
[]
[]
[]
[]
[null,"Question Set: "]
[null,{"$f":"Sector","v":0}]
[null,"Section: "]
[null,"Lighting"]
[]
[null,"Question","Response"]
[1,{"$f":"IFERROR(INDEX(Table3[Question],MATCH(INDEX(Table7[Q],MATCH(INDEX(Table1[Evaluator Question Set],MATCH($B$7,Table1[BC Hydro Sector Allocation],0)),Table7[Question Set],0))&\".\"&INDEX(Table5[S],MATCH($B$9,Table5[Diagnostic Heading],0))&\".\"&$A12,Table3[ID],0)),\"hide\")","v":"hide"}]
[2,{"$f":"IFERROR(INDEX(Table3[Question],MATCH(INDEX(Table7[Q],MATCH(INDEX(Table1[Evaluator Question Set],MATCH($B$7,Table1[BC Hydro Sector Allocation],0)),Table7[Question Set],0))&\".\"&INDEX(Table5[S],MATCH($B$9,Table5[Diagnostic Heading],0))&\".\"&$A13,Table3[ID],0)),\"hide\")","v":"hide"}]
[3,{"$f":"IFERROR(INDEX(Table3[Question],MATCH(INDEX(Table7[Q],MATCH(INDEX(Table1[Evaluator Question Set],MATCH($B$7,Table1[BC Hydro Sector Allocation],0)),Table7[Question Set],0))&\".\"&INDEX(Table5[S],MATCH($B$9,Table5[Diagnostic Heading],0))&\".\"&$A14,Table3[ID],0)),\"hide\")","v":"hide"}]
[4,{"$f":"IFERROR(INDEX(Table3[Question],MATCH(INDEX(Table7[Q],MATCH(INDEX(Table1[Evaluator Question Set],MATCH($B$7,Table1[BC Hydro Sector Allocation],0)),Table7[Question Set],0))&\".\"&INDEX(Table5[S],MATCH($B$9,Table5[Diagnostic Heading],0))&\".\"&$A15,Table3[ID],0)),\"hide\")","v":"hide"}]
[5,{"$f":"IFERROR(INDEX(Table3[Question],MATCH(INDEX(Table7[Q],MATCH(INDEX(Table1[Evaluator Question Set],MATCH($B$7,Table1[BC Hydro Sector Allocation],0)),Table7[Question Set],0))&\".\"&INDEX(Table5[S],MATCH($B$9,Table5[Diagnostic Heading],0))&\".\"&$A16,Table3[ID],0)),\"hide\")","v":"hide"}]

{"sheet":"HVAC and Refrigeration","index":2,"n_rows":16,"n_cols":3,"rows_kept":16,"cut":false,"hidden":true,"merged":[]}
[]
[]
[]
[]
[]
[null,"Question Set: "]
[null,{"$f":"Sector","v":0}]
[null,"Section: "]
[null,"Heating, Ventilation, Air Conditioning / Refrigeration"]
[]
[null,"Question","Response"]
[1,{"$f":"IFERROR(INDEX(Table3[Question],MATCH(INDEX(Table7[Q],MATCH(INDEX(Table1[Evaluator Question Set],MATCH($B$7,Table1[BC Hydro Sector Allocation],0)),Table7[Question Set],0))&\".\"&INDEX(Table5[S],MATCH($B$9,Table5[Diagnostic Heading],0))&\".\"&$A12,Table3[ID],0)),\"hide\")","v":"hide"}]
[2,{"$f":"IFERROR(INDEX(Table3[Question],MATCH(INDEX(Table7[Q],MATCH(INDEX(Table1[Evaluator Question Set],MATCH($B$7,Table1[BC Hydro Sector Allocation],0)),Table7[Question Set],0))&\".\"&INDEX(Table5[S],MATCH($B$9,Table5[Diagnostic Heading],0))&\".\"&$A13,Table3[ID],0)),\"hide\")","v":"hide"}]
[3,{"$f":"IFERROR(INDEX(Table3[Question],MATCH(INDEX(Table7[Q],MATCH(INDEX(Table1[Evaluator Question Set],MATCH($B$7,Table1[BC Hydro Sector Allocation],0)),Table7[Question Set],0))&\".\"&INDEX(Table5[S],MATCH($B$9,Table5[Diagnostic Heading],0))&\".\"&$A14,Table3[ID],0)),\"hide\")","v":"hide"}]
[4,{"$f":"IFERROR(INDEX(Table3[Question],MATCH(INDEX(Table7[Q],MATCH(INDEX(Table1[Evaluator Question Set],MATCH($B$7,Table1[BC Hydro Sector Allocation],0)),Table7[Question Set],0))&\".\"&INDEX(Table5[S],MATCH($B$9,Table5[Diagnostic Heading],0))&\".\"&$A15,Table3[ID],0)),\"hide\")","v":"hide"}]
[5,{"$f":"IFERROR(INDEX(Table3[Question],MATCH(INDEX(Table7[Q],MATCH(INDEX(Table1[Evaluator Question Set],MATCH($B$7,Table1[BC Hydro Sector Allocation],0)),Table7[Question Set],0))&\".\"&INDEX(Table5[S],MATCH($B$9,Table5[Diagnostic Heading],0))&\".\"&$A16,Table3[ID],0)),\"hide\")","v":"hide"}]

{"sheet":"Energy Efficient Equipment","index":3,"n_rows":16,"n_cols":3,"rows_kept":16,"cut":false,"hidden":true,"merged":[]}
[]
[]
[]
[]
[]
[null,"Question Set: "]
[null,{"$f":"Sector","v":0}]
[null,"Section: "]
[null,"Energy Efficient Equipment"]
[]
[null,"Question","Response"]
[1,{"$f":"IFERROR(INDEX(Table3[Question],MATCH(INDEX(Table7[Q],MATCH(INDEX(Table1[Evaluator Question Set],MATCH($B$7,Table1[BC Hydro Sector Allocation],0)),Table7[Question Set],0))&\".\"&INDEX(Table5[S],MATCH($B$9,Table5[Diagnostic Heading],0))&\".\"&$A12,Table3[ID],0)),\"hide\")","v":"hide"}]
[2,{"$f":"IFERROR(INDEX(Table3[Question],MATCH(INDEX(Table7[Q],MATCH(INDEX(Table1[Evaluator Question Set],MATCH($B$7,Table1[BC Hydro Sector Allocation],0)),Table7[Question Set],0))&\".\"&INDEX(Table5[S],MATCH($B$9,Table5[Diagnostic Heading],0))&\".\"&$A13,Table3[ID],0)),\"hide\")","v":"hide"}]
[3,{"$f":"IFERROR(INDEX(Table3[Question],MATCH(INDEX(Table7[Q],MATCH(INDEX(Table1[Evaluator Question Set],MATCH($B$7,Table1[BC Hydro Sector Allocation],0)),Table7[Question Set],0))&\".\"&INDEX(Table5[S],MATCH($B$9,Table5[Diagnostic Heading],0))&\".\"&$A14,Table3[ID],0)),\"hide\")","v":"hide"}]
[4,{"$f":"IFERROR(INDEX(Table3[Question],MATCH(INDEX(Table7[Q],MATCH(INDEX(Table1[Evaluator Question Set],MATCH($B$7,Table1[BC Hydro Sector Allocation],0)),Table7[Question Set],0))&\".\"&INDEX(Table5[S],MATCH($B$9,Table5[Diagnostic Heading],0))&\".\"&$A15,Table3[ID],0)),\"hide\")","v":"hide"}]
[5,{"$f":"IFERROR(INDEX(Table3[Question],MATCH(INDEX(Table7[Q],MATCH(INDEX(Table1[Evaluator Question Set],MATCH($B$7,Table1[BC Hydro Sector Allocation],0)),Table7[Question Set],0))&\".\"&INDEX(Table5[S],MATCH($B$9,Table5[Diagnostic Heading],0))&\".\"&$A16,Table3[ID],0)),\"hide\")","v":"hide"}]

{"sheet":"O&M Practices","index":4,"n_rows":16,"n_cols":3,"rows_kept":16,"cut":false,"hidden":true,"merged":[]}
[]
[]
[]
[]
[]
[null,"Question Set: "]
[null,{"$f":"Sector","v":0}]
[null,"Section: "]
[null,"Operating and Maintenance Practices"]
[]
[null,"Question","Response"]
[1,{"$f":"IFERROR(INDEX(Table3[Question],MATCH(INDEX(Table7[Q],MATCH(INDEX(Table1[Evaluator Question Set],MATCH($B$7,Table1[BC Hydro Sector Allocation],0)),Table7[Question Set],0))&\".\"&INDEX(Table5[S],MATCH($B$9,Table5[Diagnostic Heading],0))&\".\"&$A12,Table3[ID],0)),\"hide\")","v":"hide"}]
[2,{"$f":"IFERROR(INDEX(Table3[Question],MATCH(INDEX(Table7[Q],MATCH(INDEX(Table1[Evaluator Question Set],MATCH($B$7,Table1[BC Hydro Sector Allocation],0)),Table7[Question Set],0))&\".\"&INDEX(Table5[S],MATCH($B$9,Table5[Diagnostic Heading],0))&\".\"&$A13,Table3[ID],0)),\"hide\")","v":"hide"}]
[3,{"$f":"IFERROR(INDEX(Table3[Question],MATCH(INDEX(Table7[Q],MATCH(INDEX(Table1[Evaluator Question Set],MATCH($B$7,Table1[BC Hydro Sector Allocation],0)),Table7[Question Set],0))&\".\"&INDEX(Table5[S],MATCH($B$9,Table5[Diagnostic Heading],0))&\".\"&$A14,Table3[ID],0)),\"hide\")","v":"hide"}]
[4,{"$f":"IFERROR(INDEX(Table3[Question],MATCH(INDEX(Table7[Q],MATCH(INDEX(Table1[Evaluator Question Set],MATCH($B$7,Table1[BC Hydro Sector Allocation],0)),Table7[Question Set],0))&\".\"&INDEX(Table5[S],MATCH($B$9,Table5[Diagnostic Heading],0))&\".\"&$A15,Table3[ID],0)),\"hide\")","v":"hide"}]
[5,{"$f":"IFERROR(INDEX(Table3[Question],MATCH(INDEX(Table7[Q],MATCH(INDEX(Table1[Evaluator Question Set],MATCH($B$7,Table1[BC Hydro Sector Allocation],0)),Table7[Question Set],0))&\".\"&INDEX(Table5[S],MATCH($B$9,Table5[Diagnostic Heading],0))&\".\"&$A16,Table3[ID],0)),\"hide\")","v":"hide"}]

{"sheet":"Management Practice","index":5,"n_rows":16,"n_cols":3,"rows_kept":16,"cut":false,"hidden":true,"merged":[]}
[]
[]
[]
[]
[]
[null,"Question Set: "]
[null,{"$f":"Sector","v":0}]
[null,"Section: "]
[null,"Management Practice"]
[]
[null,"Question","Response"]
[1,{"$f":"IFERROR(INDEX(Table3[Question],MATCH(INDEX(Table7[Q],MATCH(INDEX(Table1[Evaluator Question Set],MATCH($B$7,Table1[BC Hydro Sector Allocation],0)),Table7[Question Set],0))&\".\"&INDEX(Table5[S],MATCH($B$9,Table5[Diagnostic Heading],0))&\".\"&$A12,Table3[ID],0)),\"hide\")","v":"hide"}]
[2,{"$f":"IFERROR(INDEX(Table3[Question],MATCH(INDEX(Table7[Q],MATCH(INDEX(Table1[Evaluator Question Set],MATCH($B$7,Table1[BC Hydro Sector Allocation],0)),Table7[Question Set],0))&\".\"&INDEX(Table5[S],MATCH($B$9,Table5[Diagnostic Heading],0))&\".\"&$A13,Table3[ID],0)),\"hide\")","v":"hide"}]
[3,{"$f":"IFERROR(INDEX(Table3[Question],MATCH(INDEX(Table7[Q],MATCH(INDEX(Table1[Evaluator Question Set],MATCH($B$7,Table1[BC Hydro Sector Allocation],0)),Table7[Question Set],0))&\".\"&INDEX(Table5[S],MATCH($B$9,Table5[Diagnostic Heading],0))&\".\"&$A14,Table3[ID],0)),\"hide\")","v":"hide"}]
[4,{"$f":"IFERROR(INDEX(Table3[Question],MATCH(INDEX(Table7[Q],MATCH(INDEX(Table1[Evaluator Question Set],MATCH($B$7,Table1[BC Hydro Sector Allocation],0)),Table7[Question Set],0))&\".\"&INDEX(Table5[S],MATCH($B$9,Table5[Diagnostic Heading],0))&\".\"&$A15,Table3[ID],0)),\"hide\")","v":"hide"}]
[5,{"$f":"IFERROR(INDEX(Table3[Question],MATCH(INDEX(Table7[Q],MATCH(INDEX(Table1[Evaluator Question Set],MATCH($B$7,Table1[BC Hydro Sector Allocation],0)),Table7[Question Set],0))&\".\"&INDEX(Table5[S],MATCH($B$9,Table5[Diagnostic Heading],0))&\".\"&$A16,Table3[ID],0)),\"hide\")","v":"hide"}]

{"sheet":"Report","index":6,"n_rows":95,"n_cols":14,"rows_kept":95,"cut":false,"hidden":true,"merged":[[52,8,54,9],[53,0,53,7],[37,0,37,5],[38,0,38,5],[34,8,34,9],[32,0,32,7],[33,0,33,7],[34,0,34,7],[33,8,33,9],[32,8,32,9],[25,0,25,7],[3,0,3,9],[6,0,6,9],[5,0,5,9],[19,0,20,9],[10,0,14,9],[16,0,16,9],[17,8,17,9],[23,8,23,9],[22,0,22,9],[49,8,51,9],[50,0,50,7],[39,0,39,5],[23,0,23,7],[30,0,30,7],[31,0,31,7],[26,0,26,7],[27,0,27,7],[29,0,29,9],[24,8,24,9],[26,8,26,9],[30,8,30,9],[31,8,31,9],[27,8,27,9],[25,8,25,9],[24,0,24,7],[66,7,66,8],[67,0,67,9],[68,0,68,9],[70,0,70,9],[71,0,71,9],[94,0,100,9],[56,8,58,9],[57,0,57,7],[62,7,62,8],[63,0,63,9],[64,0,64,9],[79,0,79,9],[81,0,81,9],[82,0,82,9],[84,0,84,9],[85,0,85,9],[73,7,73,8],[74,0,74,9],[75,0,75,9],[77,7,77,8],[78,0,78,9]]}
[]
["Prepared for: "]
[]
[{"$f":"Input!C7","v":0}]
[]
["By: Conservation and Energy Management, (604) 433 2700, powersmart@bchydro.com"]
[{"$f":"IF(Account=\"\",\"For: \",\"For: Account number ending with \"&RIGHT(Account,4)&\", \")&Input!C11&\", \"&Input!C13&\", \"&Input!C15&\", \"&TEXT(Input!C18,\"dd/mm/yyyy\")","v":"For: , , , 05/07/2018"}]
[]
["Executive summary"]
[]
["Thank you for completing a Strategic Energy Management Assessment to help identify your energy savings opportunities.  Your  assessment  provides information and details on energy savings together with BC Hydro Conservation and Energy Management programs and tips to help you reach your energy savings target.  We hope that this report is valuable to your business in achieving long term energy savings."]
[]
[]
[]
[]
[]
["Did you know that the average incentive for implementing energy conservation measures "]
["for similar businesses was: ",null,null,null,null,null,null,null,{"$f":"INDEX(Table1[Rebate],MATCH(Sector,Table1[BC Hydro Sector Allocation],0))","v":{"$error":"#N/A"}}]
[]
["The incentive, plus the money you save on energy bills each month, means that you can reinvest back into what matters most – your business."]
[]
[]
["Your electrical cost and savings:"]
["Annual Electrical Energy Consumption (kWh/yr): ",null,null,null,null,null,null,null,{"$f":"AnnEgyCons","v":0}]
["Estimated Annual Cost ($/yr): ",null,null,null,null,null,null,null,{"$f":"AnnElecCost","v":0}]
["Your potential energy savings (%): ",null,null,null,null,null,null,null,{"$f":"SUMIFS(Table3[ES Percent],Table3[Answer],\"No\",Table3[DisplaySavings],TRUE)","v":0}]
["Estimated energy savings (kWh/yr): ",null,null,null,null,null,null,null,{"$f":"ROUND(AnnEgyCons*I26,-3)","v":0}]
["Your potential annual energy cost savings ($): ",null,null,null,null,null,null,null,{"$f":"ROUND(AnnEgyCons*I26*(AnnElecCost/AnnEgyCons),-3)","v":{"$error":"#DIV/0!"}}]
[]
["Your Strategic Energy Management Rating:"]
["Lighting",null,null,null,null,null,null,null,{"$f":"COUNTIFS(Table3[Answer],\"Yes\",Table3[Selected],TRUE,Table3[Diagnostic Heading],Report!$A31)/COUNTIFS(Table3[Selected],TRUE,Table3[Diagnostic Heading],Report!$A31)","v":{"$error":"#DIV/0!"}}]
["Heating, Ventilation, Air Conditioning / Refrigeration",null,null,null,null,null,null,null,{"$f":"COUNTIFS(Table3[Answer],\"Yes\",Table3[Selected],TRUE,Table3[Diagnostic Heading],Report!$A32)/COUNTIFS(Table3[Selected],TRUE,Table3[Diagnostic Heading],Report!$A32)","v":{"$error":"#DIV/0!"}}]
["Energy Efficient Equipment",null,null,null,null,null,null,null,{"$f":"COUNTIFS(Table3[Answer],\"Yes\",Table3[Selected],TRUE,Table3[Diagnostic Heading],Report!$A33)/COUNTIFS(Table3[Selected],TRUE,Table3[Diagnostic Heading],Report!$A33)","v":{"$error":"#DIV/0!"}}]
["Operating and Maintenance Practices",null,null,null,null,null,null,null,{"$f":"COUNTIFS(Table3[Answer],\"Yes\",Table3[Selected],TRUE,Table3[Diagnostic Heading],Report!$A34)/COUNTIFS(Table3[Selected],TRUE,Table3[Diagnostic Heading],Report!$A34)","v":{"$error":"#DIV/0!"}}]
["Management Practice",null,null,null,null,null,null,null,{"$f":"COUNTIFS(Table3[Answer],\"Yes\",Table3[Selected],TRUE,Table3[Diagnostic Heading],Report!$A35)/COUNTIFS(Table3[Selected],TRUE,Table3[Diagnostic Heading],Report!$A35)","v":{"$error":"#DIV/0!"}}]
[]
["Overall rating, incentives, and operational opportunities"]
["Overall Rating: ",null,null,null,null,null,{"$f":"AVERAGE(I31:J35)","v":{"$error":"#DIV/0!"}}]
["Number of incentives available: ",null,null,null,null,null,{"$f":"COUNTIF(Table3[FundedYes],TRUE)","v":0}]
["Number of operational opportunities available: ",null,null,null,null,null,{"$f":"COUNTIF(Table3[OperationalYes],TRUE)","v":0}]
[]
[]
[]
[]
[]
[]
["Incentives Available"]
[]
["Lighting"]
["Fluorescent lighting",null,null,null,null,null,null,null,"Average incentive of 25% of project cost when upgrading to LED"]
["Consider upgrading your fluorescent lighting to energy efficient T8 lamps. If you currently have T12 lamps, upgrading to the latest T8 lamps and electronic ballasts could reduce your lighting costs by up to 40%.  Also consider upgrading to LEDs to increase your savings by up to 60% and be eligible for BC Hydro incentives.",null,null,null,null,null,null,null,null,null,null,null,null,"Consider upgrading your fluorescent lighting to energy efficient T8 lamps. If you currently have T12 lamps, upgrading to the latest T8 lamps and electronic ballasts could reduce your lighting costs by up to 40%.  Also consider upgrading to LEDs to increase your savings by up to 60% and be eligible for BC Hydro incentives."]
["Typically 10.9 % energy savings, or $13,400 per year.",null,null,null,null,null,null,"Link to details"]
["Exterior Lighting",null,null,null,null,null,null,null,"Average incentive of 25% of project cost"]
["Consider upgrading your exterior lighting (e.g. in parking lots) to T8 fluorescent or LED (incentives available for specific LED technologies). These will provide savings and you can get your return even quicker with incentives.",null,null,null,null,null,null,null,null,null,null,null,null,"Consider upgrading your exterior lighting (e.g. in parking lots) to T8 fluorescent or LED (incentives available for specific LED technologies). These will provide savings and you can get your return even quicker with incentives."]
["Typically 1.3 % energy savings, or $1,600 per year.",null,null,null,null,null,null,"Link to details"]
["Heating, Ventilation, Air Conditioning / Refrigeration"]
["Heating / cooling controls",null,null,null,null,null,null,null,"Average incentive of 20% of project cost"]
["BC Hydro funding is available. Consider upgrading your heating, ventilation & air conditioning system to include variable frequency drives on fans and pumps and/or variable speed ECM pumps.",null,null,null,null,null,null,null,null,null,null,null,null,"BC Hydro funding is available. Consider upgrading your heating, ventilation & air conditioning system to include variable frequency drives on fans and pumps and/or variable speed ECM pumps."]
["Typically 7.0 % energy savings, or $8,600 per year.",null,null,null,null,null,null,"Link to details"]
[]
["Operational Opportunities"]
[]
["Heating, Ventilation, Air Conditioning / Refrigeration"]
["Economizer operation"]
["Have your heating, ventilation and air conditioning economizer checked for correct operation (an economizer is a vent controlled to use cooler outside air to reduce the heating, ventilation and air conditioning system energy use). If the vent is not operating it can increase heating, ventilation and air conditioning system energy use by up to 50%. Learn more about economizers through the link below.",null,null,null,null,null,null,null,null,null,null,null,"Have your heating, ventilation and air conditioning economizer checked for correct operation (an economizer is a vent controlled to use cooler outside air to reduce the heating, ventilation and air conditioning system energy use). If the vent is not operating it can increase heating, ventilation and air conditioning system energy use by up to 50%. Learn more about economizers through the link below."]
["Typically 0.5 % energy savings, or $700 per year.",null,null,null,null,null,null,null,null,"Link to details"]
["Energy Efficient Equipment"]
["Office equipment"]
["Check to confirm that the Energy Star® mode is enabled on your office equipment (e.g. computers, copiers and printers). Energy Star® is a low-power sleep mode that saves energy when the equipment is not used for a period. It is included in most office equipment, but often not enabled. Learn more about operating your office equipment efficiently through the link below. Learn more about operating your office equipment efficiently through the link below.",null,null,null,null,null,null,null,null,null,null,null,"Check to confirm that the Energy Star® mode is enabled on your office equipment (e.g. computers, copiers and printers). Energy Star® is a low-power sleep mode that saves energy when the equipment is not used for a period. It is included in most office equipment, but often not enabled. Learn more about operating your office equipment efficiently through the link below. Learn more about operating your office equipment efficiently through the link below."]
["Typically 0.3 % energy savings, or $300 per year.",null,null,null,null,null,null,null,null,"Link to details"]
["Office equipment"]
["Install / activated power management software on computers to control when computers shut down or sleep.",null,null,null,null,null,null,null,null,null,null,null,"Install / activated power management software on computers to control when computers shut down or sleep."]
["Typically 2.3 % energy savings, or $2,900 per year.",null,null,null,null,null,null,null,null,"Link to details"]
["Operating and Maintenance Practices"]
["Energy saving tips"]
["Prepare a list of energy saving tips for your type of business. BC Hydro Power Smart has tips available. Find energy saving tips through the link below.",null,null,null,null,null,null,null,null,null,null,null,"Prepare a list of energy saving tips for your type of business. BC Hydro Power Smart has tips available. Find energy saving tips through the link below."]
["Typically 0.2 % energy savings, or $200 per year.",null,null,null,null,null,null,null,null,"Link to details"]
["Management Practice"]
["Targets and Planning"]
["Create a realistic target and action plan to reduce energy costs for the next year (e.g. kWh/sq. ft. by 10%). Find out how to manage your energy costs and consumption in your business through the link below.",null,null,null,null,null,null,null,null,null,null,null,"Create a realistic target and action plan to reduce energy costs for the next year (e.g. kWh/sq. ft. by 10%). Find out how to manage your energy costs and consumption in your business through the link below."]
["Typically 0.2 % energy savings, or $200 per year.",null,null,null,null,null,null,null,null,"Link to details"]
["Understanding of energy performance and opportunities"]
["Conduct an energy audit to quantify costs and identify savings opportunities. Learn how to do an energy audit and build a business case for energy efficiency through the link below.",null,null,null,null,null,null,null,null,null,null,null,"Conduct an energy audit to quantify costs and identify savings opportunities. Learn how to do an energy audit and build a business case for energy efficiency through the link below."]
["Typically 0.2 % energy savings, or $200 per year.",null,null,null,null,null,null,null,null,"Link to details"]
["Purchasing"]
["Use Power Smart buying guides and product catalogues when buying equipment or specify energy efficiency standards in your procurement process. Visit the link below for BC Hydro Power Smart buying guides.",null,null,null,null,null,null,null,null,null,null,null,"Use Power Smart buying guides and product catalogues when buying equipment or specify energy efficiency standards in your procurement process. Visit the link below for BC Hydro Power Smart buying guides."]
["Typically 0.2 % energy savings, or $200 per year.",null,null,null,null,null,null,null,null,"Link to details"]
[]
["Next Steps"]
["1.  Review the report and recommended actions."]
["2.  Go to www.bchydro.com/referral to get a list of Energy Professionals to help you with your project."]
["3.  Go to www.bchydro.com/express to fill out an application form for incentives before any works starts."]
["4.  To find out more about BC Hydro funding call 1 866 522 4713."]
[]
["The data and information provided in this report was compiled solely for BC Hydro purposes. BC Hydro expressly disclaims any warranties or representations, either expressed or implied, with respect to the accuracy, reliability, usefulness, completeness, non-infringement of intellectual property rights, or quality of data and information contained herein. BC Hydro, its employees, servants and agents do not accept any liability of any kind arising in any way out of the use of or reliance on this data and information by any person. Any person using or relying on this data and information does so at their own risk."]

{"sheet":"Question Sets","index":7,"n_rows":123,"n_cols":21,"rows_kept":123,"cut":false,"hidden":true,"merged":[]}
["ID","Question set","Diagnostic Heading","Q","Report Heading","BCH Funded","Available BC Hydro Funding","Question","Action","Proposed Link","Selected","Answer","FundedYes","OperationalYes","a","b","c","ES Percent","ES Value","DisplaySavings","Reference for Column C"]
[{"$f":"INDEX(Table7[Q],MATCH(Table3[[#This Row],[Question set]],Table7[Question Set],0))&\".\"&INDEX(Table5[S],MATCH(Table3[[#This Row],[Diagnostic Heading]],Table5[Diagnostic Heading],0))&\".\"&Table3[[#This Row],[Q]]","v":"1.1.1"},"Education","Lighting",1,"LED Lighting","yes","Average incentive of 50% of product cost","We have upgraded our incandescent lighting to energy efficient LED lamps.","BC Hydro funding is available. Assess the cost effectiveness of upgrading your incandescent lighting to energy efficient LEDs. LEDs use at least 75% less energy than a standard incandescent and last about 15 to 20 times longer than incandescent lighting, and about three times longer than CFLs. Learn more about LEDs by clicking the link below. ","http://www.bchydro.com/news/conservation/2014/led-lighting-increasingly-popular.html",{"$f":"INDEX(Table1[Evaluator Question Set],MATCH(Sector,Table1[BC Hydro Sector Allocation],0))=Table3[[#This Row],[Question set]]","v":{"$error":"#N/A"}},{"$f":"IF(Table3[[#This Row],[Selected]],INDIRECT(\"'\"&INDEX(Table5[SheetName],MATCH(Table3[[#This Row],[Diagnostic Heading]],Table5[Diagnostic Heading],0))&\"'\"&\"!C\"&11+Table3[[#This Row],[Q]]),\"\")","v":{"$error":"#N/A"}},{"$f":"IFERROR(AND(Table3[[#This Row],[BCH Funded]]=\"Yes\",Table3[[#This Row],[Answer]]=\"No\"),\"\")","v":""},{"$f":"IFERROR(AND(Table3[[#This Row],[BCH Funded]]=\"no\",Table3[[#This Row],[Answer]]=\"No\"),\"\")","v":""},{"$f":"IFERROR(IF(Table3[[#This Row],[Answer]]=\"No\",INDEX(Table10[],MATCH(INDEX(Table8[CPR Type],MATCH(Table3[[#This Row],[Report Heading]],Table8[Report Heading],0)),Table10[Segment],0),MATCH(Table3[[#This Row],[Question set]],Table10[#Headers],0)),0),0.01/COUNTIFS(Table3[Question set],INDEX(Table1[Evaluator Question Set],MATCH(Sector,Table1[BC Hydro Sector Allocation],0)),Table3[Diagnostic Heading],Table3[[#This Row],[Diagnostic Heading]],Table3[Selected],TRUE))","v":{"$error":"#DIV/0!"}},0.05,0.75,{"$f":"Table3[[#This Row],[a]]*Table3[[#This Row],[b]]*Table3[[#This Row],[c]]","v":{"$error":"#DIV/0!"}},{"$f":"Table3[[#This Row],[ES Percent]]*AnnEgyCons","v":{"$error":"#DIV/0!"}},true,"Cristian Suvagau"]
[{"$f":"INDEX(Table7[Q],MATCH(Table3[[#This Row],[Question set]],Table7[Question Set],0))&\".\"&INDEX(Table5[S],MATCH(Table3[[#This Row],[Diagnostic Heading]],Table5[Diagnostic Heading],0))&\".\"&Table3[[#This Row],[Q]]","v":"1.1.2"},"Education","Lighting",2,"Fluorescent lighting","yes","Average incentive of 25% of project cost when upgrading to LED","Have you upgraded your lighting system in the last 5 years?","Consider upgrading your fluorescent lighting to energy efficient T8 lamps. If you currently have T12 lamps, upgrading to the latest T8 lamps and electronic ballasts could reduce your lighting costs by up to 40%.  Also consider upgrading to LEDs to increase your savings by up to 60% and be eligible for BC Hydro incentives.","https://www.bchydro.com/ecatalog/eCatServlet?cmd=all_psp_incentives&existId=&energyId=13&p=1&sb=3&dir=1&ip=50",{"$f":"INDEX(Table1[Evaluator Question Set],MATCH(Sector,Table1[BC Hydro Sector Allocation],0))=Table3[[#This Row],[Question set]]","v":{"$error":"#N/A"}},{"$f":"IF(Table3[[#This Row],[Selected]],INDIRECT(\"'\"&INDEX(Table5[SheetName],MATCH(Table3[[#This Row],[Diagnostic Heading]],Table5[Diagnostic Heading],0))&\"'\"&\"!C\"&11+Table3[[#This Row],[Q]]),\"\")","v":{"$error":"#N/A"}},{"$f":"IFERROR(AND(Table3[[#This Row],[BCH Funded]]=\"Yes\",Table3[[#This Row],[Answer]]=\"No\"),\"\")","v":""},{"$f":"IFERROR(AND(Table3[[#This Row],[BCH Funded]]=\"no\",Table3[[#This Row],[Answer]]=\"No\"),\"\")","v":""},{"$f":"IFERROR(IF(Table3[[#This Row],[Answer]]=\"No\",INDEX(Table10[],MATCH(INDEX(Table8[CPR Type],MATCH(Table3[[#This Row],[Report Heading]],Table8[Report Heading],0)),Table10[Segment],0),MATCH(Table3[[#This Row],[Question set]],Table10[#Headers],0)),0),0.01/COUNTIFS(Table3[Question set],INDEX(Table1[Evaluator Question Set],MATCH(Sector,Table1[BC Hydro Sector Allocation],0)),Table3[Diagnostic Heading],Table3[[#This Row],[Diagnostic Heading]],Table3[Selected],TRUE))","v":{"$error":"#DIV/0!"}},0.9,0.3,{"$f":"Table3[[#This Row],[a]]*Table3[[#This Row],[b]]*Table3[[#This Row],[c]]","v":{"$error":"#DIV/0!"}},{"$f":"Table3[[#This Row],[ES Percent]]*AnnEgyCons","v":{"$error":"#DIV/0!"}},true,"Cristian Suvagau"]
[{"$f":"INDEX(Table7[Q],MATCH(Table3[[#This Row],[Question set]],Table7[Question Set],0))&\".\"&INDEX(Table5[S],MATCH(Table3[[#This Row],[Diagnostic Heading]],Table5[Diagnostic Heading],0))&\".\"&Table3[[#This Row],[Q]]","v":"1.1.3"},"Education","Lighting",3,"LED Exit lighting","no",null,"We have replaced incandescent exit signs with energy efficient LED exit signs.","Did you know that exit signs are now legislated by the federal government?","http://www.nrcan.gc.ca/energy/regulations-codes-standards/18419",{"$f":"INDEX(Table1[Evaluator Question Set],MATCH(Sector,Table1[BC Hydro Sector Allocation],0))=Table3[[#This Row],[Question set]]","v":{"$error":"#N/A"}},{"$f":"IF(Table3[[#This Row],[Selected]],INDIRECT(\"'\"&INDEX(Table5[SheetName],MATCH(Table3[[#This Row],[Diagnostic Heading]],Table5[Diagnostic Heading],0))&\"'\"&\"!C\"&11+Table3[[#This Row],[Q]]),\"\")","v":{"$error":"#N/A"}},{"$f":"IFERROR(AND(Table3[[#This Row],[BCH Funded]]=\"Yes\",Table3[[#This Row],[Answer]]=\"No\"),\"\")","v":""},{"$f":"IFERROR(AND(Table3[[#This Row],[BCH Funded]]=\"no\",Table3[[#This Row],[Answer]]=\"No\"),\"\")","v":""},{"$f":"IFERROR(IF(Table3[[#This Row],[Answer]]=\"No\",INDEX(Table10[],MATCH(INDEX(Table8[CPR Type],MATCH(Table3[[#This Row],[Report Heading]],Table8[Report Heading],0)),Table10[Segment],0),MATCH(Table3[[#This Row],[Question set]],Table10[#Headers],0)),0),0.01/COUNTIFS(Table3[Question set],INDEX(Table1[Evaluator Question Set],MATCH(Sector,Table1[BC Hydro Sector Allocation],0)),Table3[Diagnostic Heading],Table3[[#This Row],[Diagnostic Heading]],Table3[Selected],TRUE))","v":{"$error":"#DIV/0!"}},0.04,0.9,{"$f":"Table3[[#This Row],[a]]*Table3[[#This Row],[b]]*Table3[[#This Row],[c]]","v":{"$error":"#DIV/0!"}},{"$f":"Table3[[#This Row],[ES Percent]]*AnnEgyCons","v":{"$error":"#DIV/0!"}},true,"Cristian Suvagau"]
[{"$f":"INDEX(Table7[Q],MATCH(Table3[[#This Row],[Question set]],Table7[Question Set],0))&\".\"&INDEX(Table5[S],MATCH(Table3[[#This Row],[Diagnostic Heading]],Table5[Diagnostic Heading],0))&\".\"&Table3[[#This Row],[Q]]","v":"1.1.4"},"Education","Lighting",4,"Exterior Lighting","yes","Average incentive of 25% of project cost","We have upgraded our exterior lighting to energy efficient lamps and fixtures that reduce glare, light pollution and lighting costs (e.g. in parking lots).","Consider upgrading your exterior lighting (e.g. in parking lots) to T8 fluorescent or LED (incentives available for specific LED technologies). These will provide savings and you can get your return even quicker with incentives.","https://www.bchydro.com/ecatalog/eCatServlet?cmd=all_psp_incentives&existId=&energyId=13&p=1&sb=3&dir=1&ip=50",{"$f":"INDEX(Table1[Evaluator Question Set],MATCH(Sector,Table1[BC Hydro Sector Allocation],0))=Table3[[#This Row],[Question set]]","v":{"$error":"#N/A"}},{"$f":"IF(Table3[[#This Row],[Selected]],INDIRECT(\"'\"&INDEX(Table5[SheetName],MATCH(Table3[[#This Row],[Diagnostic Heading]],Table5[Diagnostic Heading],0))&\"'\"&\"!C\"&11+Table3[[#This Row],[Q]]),\"\")","v":{"$error":"#N/A"}},{"$f":"IFERROR(AND(Table3[[#This Row],[BCH Funded]]=\"Yes\",Table3[[#This Row],[Answer]]=\"No\"),\"\")","v":""},{"$f":"IFERROR(AND(Table3[[#This Row],[BCH Funded]]=\"no\",Table3[[#This Row],[Answer]]=\"No\"),\"\")","v":""},{"$f":"IFERROR(IF(Table3[[#This Row],[Answer]]=\"No\",INDEX(Table10[],MATCH(INDEX(Table8[CPR Type],MATCH(Table3[[#This Row],[Report Heading]],Table8[Report Heading],0)),Table10[Segment],0),MATCH(Table3[[#This Row],[Question set]],Table10[#Headers],0)),0),0.01/COUNTIFS(Table3[Question set],INDEX(Table1[Evaluator Question Set],MATCH(Sector,Table1[BC Hydro Sector Allocation],0)),Table3[Diagnostic Heading],Table3[[#This Row],[Diagnostic Heading]],Table3[Selected],TRUE))","v":{"$error":"#DIV/0!"}},1,0.5,{"$f":"Table3[[#This Row],[a]]*Table3[[#This Row],[b]]*Table3[[#This Row],[c]]","v":{"$error":"#DIV/0!"}},{"$f":"Table3[[#This Row],[ES Percent]]*AnnEgyCons","v":{"$error":"#DIV/0!"}},true,"Cristian Suvagau"]
[{"$f":"INDEX(Table7[Q],MATCH(Table3[[#This Row],[Question set]],Table7[Question Set],0))&\".\"&INDEX(Table5[S],MATCH(Table3[[#This Row],[Diagnostic Heading]],Table5[Diagnostic Heading],0))&\".\"&Table3[[#This Row],[Q]]","v":"1.1.5"},"Education","Lighting",5,"Lighting control","No",null,"We have installed controls on lighting to turn off when not required (e.g. timers or occupancy sensors in offices and meeting rooms, daylight harvesting in offices).","Lighting controls can provide you with energy savings and better management of your lighting systems.  Adding lighting controls may be eligible for additional incentive funding when completing a lighting retrofit as not all controls energy savings are recognized by BC Hydro.","https://www.bchydro.com/ecatalog/eCatServlet?cmd=all_psp_incentives&existId=&energyId=14",{"$f":"INDEX(Table1[Evaluator Question Set],MATCH(Sector,Table1[BC Hydro Sector Allocation],0))=Table3[[#This Row],[Question set]]","v":{"$error":"#N/A"}},{"$f":"IF(Table3[[#This Row],[Selected]],INDIRECT(\"'\"&INDEX(Table5[SheetName],MATCH(Table3[[#This Row],[Diagnostic Heading]],Table5[Diagnostic Heading],0))&\"'\"&\"!C\"&11+Table3[[#This Row],[Q]]),\"\")","v":{"$error":"#N/A"}},{"$f":"IFERROR(AND(Table3[[#This Row],[BCH Funded]]=\"Yes\",Table3[[#This Row],[Answer]]=\"No\"),\"\")","v":""},{"$f":"IFERROR(AND(Table3[[#This Row],[BCH Funded]]=\"no\",Table3[[#This Row],[Answer]]=\"No\"),\"\")","v":""},{"$f":"IFERROR(IF(Table3[[#This Row],[Answer]]=\"No\",INDEX(Table10[],MATCH(INDEX(Table8[CPR Type],MATCH(Table3[[#This Row],[Report Heading]],Table8[Report Heading],0)),Table10[Segment],0),MATCH(Table3[[#This Row],[Question set]],Table10[#Headers],0)),0),0.01/COUNTIFS(Table3[Question set],INDEX(Table1[Evaluator Question Set],MATCH(Sector,Table1[BC Hydro Sector Allocation],0)),Table3[Diagnostic Heading],Table3[[#This Row],[Diagnostic Heading]],Table3[Selected],TRUE))","v":{"$error":"#DIV/0!"}},0.15,0.3,{"$f":"Table3[[#This Row],[a]]*Table3[[#This Row],[b]]*Table3[[#This Row],[c]]","v":{"$error":"#DIV/0!"}},{"$f":"Table3[[#This Row],[ES Percent]]*AnnEgyCons","v":{"$error":"#DIV/0!"}},true,"Cristian Suvagau"]
[{"$f":"INDEX(Table7[Q],MATCH(Table3[[#This Row],[Question set]],Table7[Question Set],0))&\".\"&INDEX(Table5[S],MATCH(Table3[[#This Row],[Diagnostic Heading]],Table5[Diagnostic Heading],0))&\".\"&Table3[[#This Row],[Q]]","v":"1.2.1"},"Education","Heating, Ventilation, Air Conditioning / Refrigeration",1,"Air tightness","no",null,"We have examined ways to improve the air-tightness of air-conditioned spaces (e.g. closing doors, windows and installing air curtains).","Stretch your legs. Have a walk around and look for where you could improve the air-tightness of air-conditioned spaces (e.g. closing doors, windows, installing air curtains). Learn more about air leakage control in your building through the link below.","http://www.energycodes.gov/sites/default/files/documents/BECP_Buidling%20Energy%20Code%20Resource%20Guide%20Air%20Leakage%20Guide_Sept2011_v00_lores.pdf ",{"$f":"INDEX(Table1[Evaluator Question Set],MATCH(Sector,Table1[BC Hydro Sector Allocation],0))=Table3[[#This Row],[Question set]]","v":{"$error":"#N/A"}},{"$f":"IF(Table3[[#This Row],[Selected]],INDIRECT(\"'\"&INDEX(Table5[SheetName],MATCH(Table3[[#This Row],[Diagnostic Heading]],Table5[Diagnostic Heading],0))&\"'\"&\"!C\"&11+Table3[[#This Row],[Q]]),\"\")","v":{"$error":"#N/A"}},{"$f":"IFERROR(AND(Table3[[#This Row],[BCH Funded]]=\"Yes\",Table3[[#This Row],[Answer]]=\"No\"),\"\")","v":""},{"$f":"IFERROR(AND(Table3[[#This Row],[BCH Funded]]=\"no\",Table3[[#This Row],[Answer]]=\"No\"),\"\")","v":""},{"$f":"IFERROR(IF(Table3[[#This Row],[Answer]]=\"No\",INDEX(Table10[],MATCH(INDEX(Table8[CPR Type],MATCH(Table3[[#This Row],[Report Heading]],Table8[Report Heading],0)),Table10[Segment],0),MATCH(Table3[[#This Row],[Question set]],Table10[#Headers],0)),0),0.01/COUNTIFS(Table3[Question set],INDEX(Table1[Evaluator Question Set],MATCH(Sector,Table1[BC Hydro Sector Allocation],0)),Table3[Diagnostic Heading],Table3[[#This Row],[Diagnostic Heading]],Table3[Selected],TRUE))","v":{"$error":"#DIV/0!"}},1,0.02,{"$f":"Table3[[#This Row],[a]]*Table3[[#This Row],[b]]*Table3[[#This Row],[c]]","v":{"$error":"#DIV/0!"}},{"$f":"Table3[[#This Row],[ES Percent]]*AnnEgyCons","v":{"$error":"#DIV/0!"}},true,"ASHRAE- Simulation of the Impact of Commercial Building Envelope Airtightness on Building Energy Utilization"]
[{"$f":"INDEX(Table7[Q],MATCH(Table3[[#This Row],[Question set]],Table7[Question Set],0))&\".\"&INDEX(Table5[S],MATCH(Table3[[#This Row],[Diagnostic Heading]],Table5[Diagnostic Heading],0))&\".\"&Table3[[#This Row],[Q]]","v":"1.2.2"},"Education","Heating, Ventilation, Air Conditioning / Refrigeration",2,"Heating / cooling controls","yes","Average incentive of 20% of project cost","We have upgraded our heating, ventilation & air conditioning system to include variable frequency drives on fans and pumps and/or variable speed ECM pumps.","BC Hydro funding is available. Consider upgrading your heating, ventilation & air conditioning system to include variable frequency drives on fans and pumps and/or variable speed ECM pumps.","https://www.bchydro.com/ecatalog/",{"$f":"INDEX(Table1[Evaluator Question Set],MATCH(Sector,Table1[BC Hydro Sector Allocation],0))=Table3[[#This Row],[Question set]]","v":{"$error":"#N/A"}},{"$f":"IF(Table3[[#This Row],[Selected]],INDIRECT(\"'\"&INDEX(Table5[SheetName],MATCH(Table3[[#This Row],[Diagnostic Heading]],Table5[Diagnostic Heading],0))&\"'\"&\"!C\"&11+Table3[[#This Row],[Q]]),\"\")","v":{"$error":"#N/A"}},{"$f":"IFERROR(AND(Table3[[#This Row],[BCH Funded]]=\"Yes\",Table3[[#This Row],[Answer]]=\"No\"),\"\")","v":""},{"$f":"IFERROR(AND(Table3[[#This Row],[BCH Funded]]=\"no\",Table3[[#This Row],[Answer]]=\"No\"),\"\")","v":""},{"$f":"IFERROR(IF(Table3[[#This Row],[Answer]]=\"No\",INDEX(Table10[],MATCH(INDEX(Table8[CPR Type],MATCH(Table3[[#This Row],[Report Heading]],Table8[Report Heading],0)),Table10[Segment],0),MATCH(Table3[[#This Row],[Question set]],Table10[#Headers],0)),0),0.01/COUNTIFS(Table3[Question set],INDEX(Table1[Evaluator Question Set],MATCH(Sector,Table1[BC Hydro Sector Allocation],0)),Table3[Diagnostic Heading],Table3[[#This Row],[Diagnostic Heading]],Table3[Selected],TRUE))","v":{"$error":"#DIV/0!"}},1,0.2,{"$f":"Table3[[#This Row],[a]]*Table3[[#This Row],[b]]*Table3[[#This Row],[c]]","v":{"$error":"#DIV/0!"}},{"$f":"Table3[[#This Row],[ES Percent]]*AnnEgyCons","v":{"$error":"#DIV/0!"}},true,"Past commercial incentives"]
[{"$f":"INDEX(Table7[Q],MATCH(Table3[[#This Row],[Question set]],Table7[Question Set],0))&\".\"&INDEX(Table5[S],MATCH(Table3[[#This Row],[Diagnostic Heading]],Table5[Diagnostic Heading],0))&\".\"&Table3[[#This Row],[Q]]","v":"1.2.3"},"Education","Heating, Ventilation, Air Conditioning / Refrigeration",3,"Heating and cooling temperature set points","no",null,"We have adjusted temperature settings for heating and cooling to minimize energy use.","Pay attention to your thermostat settings. Air conditioning thermostats should be set no lower than 25° C; each degree you raise your temperature setting can save on air conditioning costs. To achieve similar savings when heating, 20° C is the recommended temperature. Learn more about adjusting thermostats through the link below.","https://www.bchydro.com/powersmart/business/technologies-equipment/heating-cooling.html",{"$f":"INDEX(Table1[Evaluator Question Set],MATCH(Sector,Table1[BC Hydro Sector Allocation],0))=Table3[[#This Row],[Question set]]","v":{"$error":"#N/A"}},{"$f":"IF(Table3[[#This Row],[Selected]],INDIRECT(\"'\"&INDEX(Table5[SheetName],MATCH(Table3[[#This Row],[Diagnostic Heading]],Table5[Diagnostic Heading],0))&\"'\"&\"!C\"&11+Table3[[#This Row],[Q]]),\"\")","v":{"$error":"#N/A"}},{"$f":"IFERROR(AND(Table3[[#This Row],[BCH Funded]]=\"Yes\",Table3[[#This Row],[Answer]]=\"No\"),\"\")","v":""},{"$f":"IFERROR(AND(Table3[[#This Row],[BCH Funded]]=\"no\",Table3[[#This Row],[Answer]]=\"No\"),\"\")","v":""},{"$f":"IFERROR(IF(Table3[[#This Row],[Answer]]=\"No\",INDEX(Table10[],MATCH(INDEX(Table8[CPR Type],MATCH(Table3[[#This Row],[Report Heading]],Table8[Report Heading],0)),Table10[Segment],0),MATCH(Table3[[#This Row],[Question set]],Table10[#Headers],0)),0),0.01/COUNTIFS(Table3[Question set],INDEX(Table1[Evaluator Question Set],MATCH(Sector,Table1[BC Hydro Sector Allocation],0)),Table3[Diagnostic Heading],Table3[[#This Row],[Diagnostic Heading]],Table3[Selected],TRUE))","v":{"$error":"#DIV/0!"}},1,0.05,{"$f":"Table3[[#This Row],[a]]*Table3[[#This Row],[b]]*Table3[[#This Row],[c]]","v":{"$error":"#DIV/0!"}},{"$f":"Table3[[#This Row],[ES Percent]]*AnnEgyCons","v":{"$error":"#DIV/0!"}},true,"Past commercial incentives"]
[{"$f":"INDEX(Table7[Q],MATCH(Table3[[#This Row],[Question set]],Table7[Question Set],0))&\".\"&INDEX(Table5[S],MATCH(Table3[[#This Row],[Diagnostic Heading]],Table5[Diagnostic Heading],0))&\".\"&Table3[[#This Row],[Q]]","v":"1.2.4"},"Education","Heating, Ventilation, Air Conditioning / Refrigeration",4,"Economizer operation","no",null,"We regularly check the operation of the economizer on our heating, ventilation & air conditioning system (an economizer is a vent controlled to use cooler outside air to reduce the heating, ventilation & air conditioning system energy use).","Have your heating, ventilation and air conditioning economizer checked for correct operation (an economizer is a vent controlled to use cooler outside air to reduce the heating, ventilation and air conditioning system energy use). If the vent is not operating it can increase heating, ventilation and air conditioning system energy use by up to 50%. Learn more about economizers through the link below.","https://www.bchydro.com/powersmart/business/technologies-equipment/heating-cooling.html",{"$f":"INDEX(Table1[Evaluator Question Set],MATCH(Sector,Table1[BC Hydro Sector Allocation],0))=Table3[[#This Row],[Question set]]","v":{"$error":"#N/A"}},{"$f":"IF(Table3[[#This Row],[Selected]],INDIRECT(\"'\"&INDEX(Table5[SheetName],MATCH(Table3[[#This Row],[Diagnostic Heading]],Table5[Diagnostic Heading],0))&\"'\"&\"!C\"&11+Table3[[#This Row],[Q]]),\"\")","v":{"$error":"#N/A"}},{"$f":"IFERROR(AND(Table3[[#This Row],[BCH Funded]]=\"Yes\",Table3[[#This Row],[Answer]]=\"No\"),\"\")","v":""},{"$f":"IFERROR(AND(Table3[[#This Row],[BCH Funded]]=\"no\",Table3[[#This Row],[Answer]]=\"No\"),\"\")","v":""},{"$f":"IFERROR(IF(Table3[[#This Row],[Answer]]=\"No\",INDEX(Table10[],MATCH(INDEX(Table8[CPR Type],MATCH(Table3[[#This Row],[Report Heading]],Table8[Report Heading],0)),Table10[Segment],0),MATCH(Table3[[#This Row],[Question set]],Table10[#Headers],0)),0),0.01/COUNTIFS(Table3[Question set],INDEX(Table1[Evaluator Question Set],MATCH(Sector,Table1[BC Hydro Sector Allocation],0)),Table3[Diagnostic Heading],Table3[[#This Row],[Diagnostic Heading]],Table3[Selected],TRUE))","v":{"$error":"#DIV/0!"}},1,0.2,{"$f":"Table3[[#This Row],[a]]*Table3[[#This Row],[b]]*Table3[[#This Row],[c]]","v":{"$error":"#DIV/0!"}},{"$f":"Table3[[#This Row],[ES Percent]]*AnnEgyCons","v":{"$error":"#DIV/0!"}},true,"Stan Ma: Catalyst DEMO Richmond Center = 29%"]
[{"$f":"INDEX(Table7[Q],MATCH(Table3[[#This Row],[Question set]],Table7[Question Set],0))&\".\"&INDEX(Table5[S],MATCH(Table3[[#This Row],[Diagnostic Heading]],Table5[Diagnostic Heading],0))&\".\"&Table3[[#This Row],[Q]]","v":"1.2.5"},"Education","Heating, Ventilation, Air Conditioning / Refrigeration",5,"Economizer sensor","yes","Average incentive of 20% of project cost","We have assessed opportunities to upgrade to an efficient economizer controller sensor on our rooftop heating, ventilation & air conditioning system.","BC Hydro funding is available. Assess the cost effectiveness of upgrading your rooftop heating, ventilation & air conditioning system with an efficient economizer controller sensor.","https://www.bchydro.com/ecatalog/",{"$f":"INDEX(Table1[Evaluator Question Set],MATCH(Sector,Table1[BC Hydro Sector Allocation],0))=Table3[[#This Row],[Question set]]","v":{"$error":"#N/A"}},{"$f":"IF(Table3[[#This Row],[Selected]],INDIRECT(\"'\"&INDEX(Table5[SheetName],MATCH(Table3[[#This Row],[Diagnostic Heading]],Table5[Diagnostic Heading],0))&\"'\"&\"!C\"&11+Table3[[#This Row],[Q]]),\"\")","v":{"$error":"#N/A"}},{"$f":"IFERROR(AND(Table3[[#This Row],[BCH Funded]]=\"Yes\",Table3[[#This Row],[Answer]]=\"No\"),\"\")","v":""},{"$f":"IFERROR(AND(Table3[[#This Row],[BCH Funded]]=\"no\",Table3[[#This Row],[Answer]]=\"No\"),\"\")","v":""},{"$f":"IFERROR(IF(Table3[[#This Row],[Answer]]=\"No\",INDEX(Table10[],MATCH(INDEX(Table8[CPR Type],MATCH(Table3[[#This Row],[Report Heading]],Table8[Report Heading],0)),Table10[Segment],0),MATCH(Table3[[#This Row],[Question set]],Table10[#Headers],0)),0),0.01/COUNTIFS(Table3[Question set],INDEX(Table1[Evaluator Question Set],MATCH(Sector,Table1[BC Hydro Sector Allocation],0)),Table3[Diagnostic Heading],Table3[[#This Row],[Diagnostic Heading]],Table3[Selected],TRUE))","v":{"$error":"#DIV/0!"}},1,0.1,{"$f":"Table3[[#This Row],[a]]*Table3[[#This Row],[b]]*Table3[[#This Row],[c]]","v":{"$error":"#DIV/0!"}},{"$f":"Table3[[#This Row],[ES Percent]]*AnnEgyCons","v":{"$error":"#DIV/0!"}},true,"Stan Ma: past experience"]
[{"$f":"INDEX(Table7[Q],MATCH(Table3[[#This Row],[Question set]],Table7[Question Set],0))&\".\"&INDEX(Table5[S],MATCH(Table3[[#This Row],[Diagnostic Heading]],Table5[Diagnostic Heading],0))&\".\"&Table3[[#This Row],[Q]]","v":"1.4.1"},"Education","Energy Efficient Equipment",1,"Office equipment","no",null,"We have checked to ensure that the energy saver mode is enabled on our office equipment (e.g. computers, copiers, printers).","Check to confirm that the Energy Star® mode is enabled on your office equipment (e.g. computers, copiers and printers). Energy Star® is a low-power sleep mode that saves energy when the equipment is not used for a period. It is included in most office equipment, but often not enabled. Learn more about operating your office equipment efficiently through the link below. Learn more about operating your office equipment efficiently through the link below.","https://www.energystar.gov/products/office_equipment",{"$f":"INDEX(Table1[Evaluator Question Set],MATCH(Sector,Table1[BC Hydro Sector Allocation],0))=Table3[[#This Row],[Question set]]","v":{"$error":"#N/A"}},{"$f":"IF(Table3[[#This Row],[Selected]],INDIRECT(\"'\"&INDEX(Table5[SheetName],MATCH(Table3[[#This Row],[Diagnostic Heading]],Table5[Diagnostic Heading],0))&\"'\"&\"!C\"&11+Table3[[#This Row],[Q]]),\"\")","v":{"$error":"#N/A"}},{"$f":"IFERROR(AND(Table3[[#This Row],[BCH Funded]]=\"Yes\",Table3[[#This Row],[Answer]]=\"No\"),\"\")","v":""},{"$f":"IFERROR(AND(Table3[[#This Row],[BCH Funded]]=\"no\",Table3[[#This Row],[Answer]]=\"No\"),\"\")","v":""},{"$f":"IFERROR(IF(Table3[[#This Row],[Answer]]=\"No\",INDEX(Table10[],MATCH(INDEX(Table8[CPR Type],MATCH(Table3[[#This Row],[Report Heading]],Table8[Report Heading],0)),Table10[Segment],0),MATCH(Table3[[#This Row],[Question set]],Table10[#Headers],0)),0),0.01/COUNTIFS(Table3[Question set],INDEX(Table1[Evaluator Question Set],MATCH(Sector,Table1[BC Hydro Sector Allocation],0)),Table3[Diagnostic Heading],Table3[[#This Row],[Diagnostic Heading]],Table3[Selected],TRUE))","v":{"$error":"#DIV/0!"}},1,0.04,{"$f":"Table3[[#This Row],[a]]*Table3[[#This Row],[b]]*Table3[[#This Row],[c]]","v":{"$error":"#DIV/0!"}},{"$f":"Table3[[#This Row],[ES Percent]]*AnnEgyCons","v":{"$error":"#DIV/0!"}},true,"https://energy.gov/energysaver/articles/how-much-can-you-really-save-energy-efficient-improvements"]
[{"$f":"INDEX(Table7[Q],MATCH(Table3[[#This Row],[Question set]],Table7[Question Set],0))&\".\"&INDEX(Table5[S],MATCH(Table3[[#This Row],[Diagnostic Heading]],Table5[Diagnostic Heading],0))&\".\"&Table3[[#This Row],[Q]]","v":"1.4.2"},"Education","Energy Efficient Equipment",2,"Office Equipment","no",null,"We have upgraded our power bars to energy efficient power bars.","Consider upgrading the power bars on your office equipment to the latest current-sensing power bars. Learn more about BC Hydro’s financial incentives for this technology through the link below.","https://www.energystar.gov/products/low_carbon_it_campaign/more_it_energy_saving_tips",{"$f":"INDEX(Table1[Evaluator Question Set],MATCH(Sector,Table1[BC Hydro Sector Allocation],0))=Table3[[#This Row],[Question set]]","v":{"$error":"#N/A"}},{"$f":"IF(Table3[[#This Row],[Selected]],INDIRECT(\"'\"&INDEX(Table5[SheetName],MATCH(Table3[[#This Row],[Diagnostic Heading]],Table5[Diagnostic Heading],0))&\"'\"&\"!C\"&11+Table3[[#This Row],[Q]]),\"\")","v":{"$error":"#N/A"}},{"$f":"IFERROR(AND(Table3[[#This Row],[BCH Funded]]=\"Yes\",Table3[[#This Row],[Answer]]=\"No\"),\"\")","v":""},{"$f":"IFERROR(AND(Table3[[#This Row],[BCH Funded]]=\"no\",Table3[[#This Row],[Answer]]=\"No\"),\"\")","v":""},{"$f":"IFERROR(IF(Table3[[#This Row],[Answer]]=\"No\",INDEX(Table10[],MATCH(INDEX(Table8[CPR Type],MATCH(Table3[[#This Row],[Report Heading]],Table8[Report Heading],0)),Table10[Segment],0),MATCH(Table3[[#This Row],[Question set]],Table10[#Headers],0)),0),0.01/COUNTIFS(Table3[Question set],INDEX(Table1[Evaluator Question Set],MATCH(Sector,Table1[BC Hydro Sector Allocation],0)),Table3[Diagnostic Heading],Table3[[#This Row],[Diagnostic Heading]],Table3[Selected],TRUE))","v":{"$error":"#DIV/0!"}},1,0.1,{"$f":"Table3[[#This Row],[a]]*Table3[[#This Row],[b]]*Table3[[#This Row],[c]]","v":{"$error":"#DIV/0!"}},{"$f":"Table3[[#This Row],[ES Percent]]*AnnEgyCons","v":{"$error":"#DIV/0!"}},true,"https://www.nrel.gov/docs/fy12osti/55162.pdf"]
[{"$f":"INDEX(Table7[Q],MATCH(Table3[[#This Row],[Question set]],Table7[Question Set],0))&\".\"&INDEX(Table5[S],MATCH(Table3[[#This Row],[Diagnostic Heading]],Table5[Diagnostic Heading],0))&\".\"&Table3[[#This Row],[Q]]","v":"1.4.3"},"Education","Energy Efficient Equipment",3,"Office equipment","no",null,"Have you assessed the opportunity to install power management software on computers to control when computers shut down or sleep. ","Install / activated power management software on computers to control when computers shut down or sleep.","https://www.energystar.gov/products/low_carbon_it_campaign/power_management_computer",{"$f":"INDEX(Table1[Evaluator Question Set],MATCH(Sector,Table1[BC Hydro Sector Allocation],0))=Table3[[#This Row],[Question set]]","v":{"$error":"#N/A"}},{"$f":"IF(Table3[[#This Row],[Selected]],INDIRECT(\"'\"&INDEX(Table5[SheetName],MATCH(Table3[[#This Row],[Diagnostic Heading]],Table5[Diagnostic Heading],0))&\"'\"&\"!C\"&11+Table3[[#This Row],[Q]]),\"\")","v":{"$error":"#N/A"}},{"$f":"IFERROR(AND(Table3[[#This Row],[BCH Funded]]=\"Yes\",Table3[[#This Row],[Answer]]=\"No\"),\"\")","v":""},{"$f":"IFERROR(AND(Table3[[#This Row],[BCH Funded]]=\"no\",Table3[[#This Row],[Answer]]=\"No\"),\"\")","v":""},{"$f":"IFERROR(IF(Table3[[#This Row],[Answer]]=\"No\",INDEX(Table10[],MATCH(INDEX(Table8[CPR Type],MATCH(Table3[[#This Row],[Report Heading]],Table8[Report Heading],0)),Table10[Segment],0),MATCH(Table3[[#This Row],[Question set]],Table10[#Headers],0)),0),0.01/COUNTIFS(Table3[Question set],INDEX(Table1[Evaluator Question Set],MATCH(Sector,Table1[BC Hydro Sector Allocation],0)),Table3[Diagnostic Heading],Table3[[#This Row],[Diagnostic Heading]],Table3[Selected],TRUE))","v":{"$error":"#DIV/0!"}},1,0.35,{"$f":"Table3[[#This Row],[a]]*Table3[[#This Row],[b]]*Table3[[#This Row],[c]]","v":{"$error":"#DIV/0!"}},{"$f":"Table3[[#This Row],[ES Percent]]*AnnEgyCons","v":{"$error":"#DIV/0!"}},true,"https://www.energystar.gov/products/low_carbon_it_campaign/implementation_resources_enterprises/commercial_software"]
[{"$f":"INDEX(Table7[Q],MATCH(Table3[[#This Row],[Question set]],Table7[Question Set],0))&\".\"&INDEX(Table5[S],MATCH(Table3[[#This Row],[Diagnostic Heading]],Table5[Diagnostic Heading],0))&\".\"&Table3[[#This Row],[Q]]","v":"1.4.4"},"Education","Energy Efficient Equipment",4,"Vending Machines","no",null,"We purchase vending machines, which are registered with Energy Star®","Refrigerated beverage vending machines that have earned the Energy Star® are 50% more energy-efficient than standard machine models.","https://www.energystar.gov/products/other/vending_machines",{"$f":"INDEX(Table1[Evaluator Question Set],MATCH(Sector,Table1[BC Hydro Sector Allocation],0))=Table3[[#This Row],[Question set]]","v":{"$error":"#N/A"}},{"$f":"IF(Table3[[#This Row],[Selected]],INDIRECT(\"'\"&INDEX(Table5[SheetName],MATCH(Table3[[#This Row],[Diagnostic Heading]],Table5[Diagnostic Heading],0))&\"'\"&\"!C\"&11+Table3[[#This Row],[Q]]),\"\")","v":{"$error":"#N/A"}},{"$f":"IFERROR(AND(Table3[[#This Row],[BCH Funded]]=\"Yes\",Table3[[#This Row],[Answer]]=\"No\"),\"\")","v":""},{"$f":"IFERROR(AND(Table3[[#This Row],[BCH Funded]]=\"no\",Table3[[#This Row],[Answer]]=\"No\"),\"\")","v":""},{"$f":"IFERROR(IF(Table3[[#This Row],[Answer]]=\"No\",INDEX(Table10[],MATCH(INDEX(Table8[CPR Type],MATCH(Table3[[#This Row],[Report Heading]],Table8[Report Heading],0)),Table10[Segment],0),MATCH(Table3[[#This Row],[Question set]],Table10[#Headers],0)),0),0.01/COUNTIFS(Table3[Question set],INDEX(Table1[Evaluator Question Set],MATCH(Sector,Table1[BC Hydro Sector Allocation],0)),Table3[Diagnostic Heading],Table3[[#This Row],[Diagnostic Heading]],Table3[Selected],TRUE))","v":{"$error":"#DIV/0!"}},1,0.02,{"$f":"Table3[[#This Row],[a]]*Table3[[#This Row],[b]]*Table3[[#This Row],[c]]","v":{"$error":"#DIV/0!"}},{"$f":"Table3[[#This Row],[ES Percent]]*AnnEgyCons","v":{"$error":"#DIV/0!"}},true]
[{"$f":"INDEX(Table7[Q],MATCH(Table3[[#This Row],[Question set]],Table7[Question Set],0))&\".\"&INDEX(Table5[S],MATCH(Table3[[#This Row],[Diagnostic Heading]],Table5[Diagnostic Heading],0))&\".\"&Table3[[#This Row],[Q]]","v":"1.5.1"},"Education","Operating and Maintenance Practices",1,"Hot water control","no",null,"We have explored how to reduce hot water temperature while still maintaining required conditions.","Look into the possibility of reducing your hot water temperature while still maintaining required sanitary conditions. You'll be surprised at what can be saved through reducing hot water temperature without degrading the use.  Learn more about water heating and usage through the link below.","https://www.bchydro.com/powersmart/business/technologies-equipment/heating-cooling.html",{"$f":"INDEX(Table1[Evaluator Question Set],MATCH(Sector,Table1[BC Hydro Sector Allocation],0))=Table3[[#This Row],[Question set]]","v":{"$error":"#N/A"}},{"$f":"IF(Table3[[#This Row],[Selected]],INDIRECT(\"'\"&INDEX(Table5[SheetName],MATCH(Table3[[#This Row],[Diagnostic Heading]],Table5[Diagnostic Heading],0))&\"'\"&\"!C\"&11+Table3[[#This Row],[Q]]),\"\")","v":{"$error":"#N/A"}},{"$f":"IFERROR(AND(Table3[[#This Row],[BCH Funded]]=\"Yes\",Table3[[#This Row],[Answer]]=\"No\"),\"\")","v":""},{"$f":"IFERROR(AND(Table3[[#This Row],[BCH Funded]]=\"no\",Table3[[#This Row],[Answer]]=\"No\"),\"\")","v":""},{"$f":"IFERROR(IF(Table3[[#This Row],[Answer]]=\"No\",INDEX(Table10[],MATCH(INDEX(Table8[CPR Type],MATCH(Table3[[#This Row],[Report Heading]],Table8[Report Heading],0)),Table10[Segment],0),MATCH(Table3[[#This Row],[Question set]],Table10[#Headers],0)),0),0.01/COUNTIFS(Table3[Question set],INDEX(Table1[Evaluator Question Set],MATCH(Sector,Table1[BC Hydro Sector Allocation],0)),Table3[Diagnostic Heading],Table3[[#This Row],[Diagnostic Heading]],Table3[Selected],TRUE))","v":{"$error":"#DIV/0!"}},1,1,{"$f":"Table3[[#This Row],[a]]*Table3[[#This Row],[b]]*Table3[[#This Row],[c]]","v":{"$error":"#DIV/0!"}},{"$f":"Table3[[#This Row],[ES Percent]]*AnnEgyCons","v":{"$error":"#DIV/0!"}},true]
[{"$f":"INDEX(Table7[Q],MATCH(Table3[[#This Row],[Question set]],Table7[Question Set],0))&\".\"&INDEX(Table5[S],MATCH(Table3[[#This Row],[Diagnostic Heading]],Table5[Diagnostic Heading],0))&\".\"&Table3[[#This Row],[Q]]","v":"1.5.2"},"Education","Operating and Maintenance Practices",2,"Staff operating procedures","no",null,"Our staff turns off equipment when not needed (e.g., turns off lights and equipment when not in use, after hours and on weekends).","The most important tip for your business is “turn it off!!”. Introduce procedures to encourage staff to turn off equipment when not needed (e.g. turn off lights and office equipment when not in use, after hours and on weekends). Find more tips and information about how and when to turn off equipment through the link below.","https://www.bchydro.com/powersmart/business/technologies-equipment/lighting-systems.html#1",{"$f":"INDEX(Table1[Evaluator Question Set],MATCH(Sector,Table1[BC Hydro Sector Allocation],0))=Table3[[#This Row],[Question set]]","v":{"$error":"#N/A"}},{"$f":"IF(Table3[[#This Row],[Selected]],INDIRECT(\"'\"&INDEX(Table5[SheetName],MATCH(Table3[[#This Row],[Diagnostic Heading]],Table5[Diagnostic Heading],0))&\"'\"&\"!C\"&11+Table3[[#This Row],[Q]]),\"\")","v":{"$error":"#N/A"}},{"$f":"IFERROR(AND(Table3[[#This Row],[BCH Funded]]=\"Yes\",Table3[[#This Row],[Answer]]=\"No\"),\"\")","v":""},{"$f":"IFERROR(AND(Table3[[#This Row],[BCH Funded]]=\"no\",Table3[[#This Row],[Answer]]=\"No\"),\"\")","v":""},{"$f":"IFERROR(IF(Table3[[#This Row],[Answer]]=\"No\",INDEX(Table10[],MATCH(INDEX(Table8[CPR Type],MATCH(Table3[[#This Row],[Report Heading]],Table8[Report Heading],0)),Table10[Segment],0),MATCH(Table3[[#This Row],[Question set]],Table10[#Headers],0)),0),0.01/COUNTIFS(Table3[Question set],INDEX(Table1[Evaluator Question Set],MATCH(Sector,Table1[BC Hydro Sector Allocation],0)),Table3[Diagnostic Heading],Table3[[#This Row],[Diagnostic Heading]],Table3[Selected],TRUE))","v":{"$error":"#DIV/0!"}},1,1,{"$f":"Table3[[#This Row],[a]]*Table3[[#This Row],[b]]*Table3[[#This Row],[c]]","v":{"$error":"#DIV/0!"}},{"$f":"Table3[[#This Row],[ES Percent]]*AnnEgyCons","v":{"$error":"#DIV/0!"}},true]
[{"$f":"INDEX(Table7[Q],MATCH(Table3[[#This Row],[Question set]],Table7[Question Set],0))&\".\"&INDEX(Table5[S],MATCH(Table3[[#This Row],[Diagnostic Heading]],Table5[Diagnostic Heading],0))&\".\"&Table3[[#This Row],[Q]]","v":"1.5.3"},"Education","Operating and Maintenance Practices",3,"Maintenance practices","no",null,"We conduct regular maintenance on our heating, ventilation & air conditioning system (e.g. cleaning condenser coils, changing filters, checking operation of economizer).","Modify your maintenance procedures on your heating, ventilation & air conditioning system to include regular energy efficiency checks (e.g. cleaning condenser coils, changing filters, checking operation of economizers). Heating, ventilation and air conditioning systems are at their most efficient when they are well maintained. Learn more about maintenance procedures through the link below.","https://www.bchydro.com/powersmart/business/technologies-equipment/heating-cooling.html#d",{"$f":"INDEX(Table1[Evaluator Question Set],MATCH(Sector,Table1[BC Hydro Sector Allocation],0))=Table3[[#This Row],[Question set]]","v":{"$error":"#N/A"}},{"$f":"IF(Table3[[#This Row],[Selected]],INDIRECT(\"'\"&INDEX(Table5[SheetName],MATCH(Table3[[#This Row],[Diagnostic Heading]],Table5[Diagnostic Heading],0))&\"'\"&\"!C\"&11+Table3[[#This Row],[Q]]),\"\")","v":{"$error":"#N/A"}},{"$f":"IFERROR(AND(Table3[[#This Row],[BCH Funded]]=\"Yes\",Table3[[#This Row],[Answer]]=\"No\"),\"\")","v":""},{"$f":"IFERROR(AND(Table3[[#This Row],[BCH Funded]]=\"no\",Table3[[#This Row],[Answer]]=\"No\"),\"\")","v":""},{"$f":"IFERROR(IF(Table3[[#This Row],[Answer]]=\"No\",INDEX(Table10[],MATCH(INDEX(Table8[CPR Type],MATCH(Table3[[#This Row],[Report Heading]],Table8[Report Heading],0)),Table10[Segment],0),MATCH(Table3[[#This Row],[Question set]],Table10[#Headers],0)),0),0.01/COUNTIFS(Table3[Question set],INDEX(Table1[Evaluator Question Set],MATCH(Sector,Table1[BC Hydro Sector Allocation],0)),Table3[Diagnostic Heading],Table3[[#This Row],[Diagnostic Heading]],Table3[Selected],TRUE))","v":{"$error":"#DIV/0!"}},1,1,{"$f":"Table3[[#This Row],[a]]*Table3[[#This Row],[b]]*Table3[[#This Row],[c]]","v":{"$error":"#DIV/0!"}},{"$f":"Table3[[#This Row],[ES Percent]]*AnnEgyCons","v":{"$error":"#DIV/0!"}},true]
[{"$f":"INDEX(Table7[Q],MATCH(Table3[[#This Row],[Question set]],Table7[Question Set],0))&\".\"&INDEX(Table5[S],MATCH(Table3[[#This Row],[Diagnostic Heading]],Table5[Diagnostic Heading],0))&\".\"&Table3[[#This Row],[Q]]","v":"1.5.4"},"Education","Operating and Maintenance Practices",4,"Energy saving tips","no",null,"We have a list of energy saving tips for our type of business.","Prepare a list of energy saving tips for your type of business. BC Hydro Power Smart has tips available. Find energy saving tips through the link below.","https://www.bchydro.com/powersmart/business/technologies-equipment.html?WT.mc_id=rd_oldgreenyourbusiness",{"$f":"INDEX(Table1[Evaluator Question Set],MATCH(Sector,Table1[BC Hydro Sector Allocation],0))=Table3[[#This Row],[Question set]]","v":{"$error":"#N/A"}},{"$f":"IF(Table3[[#This Row],[Selected]],INDIRECT(\"'\"&INDEX(Table5[SheetName],MATCH(Table3[[#This Row],[Diagnostic Heading]],Table5[Diagnostic Heading],0))&\"'\"&\"!C\"&11+Table3[[#This Row],[Q]]),\"\")","v":{"$error":"#N/A"}},{"$f":"IFERROR(AND(Table3[[#This Row],[BCH Funded]]=\"Yes\",Table3[[#This Row],[Answer]]=\"No\"),\"\")","v":""},{"$f":"IFERROR(AND(Table3[[#This Row],[BCH Funded]]=\"no\",Table3[[#This Row],[Answer]]=\"No\"),\"\")","v":""},{"$f":"IFERROR(IF(Table3[[#This Row],[Answer]]=\"No\",INDEX(Table10[],MATCH(INDEX(Table8[CPR Type],MATCH(Table3[[#This Row],[Report Heading]],Table8[Report Heading],0)),Table10[Segment],0),MATCH(Table3[[#This Row],[Question set]],Table10[#Headers],0)),0),0.01/COUNTIFS(Table3[Question set],INDEX(Table1[Evaluator Question Set],MATCH(Sector,Table1[BC Hydro Sector Allocation],0)),Table3[Diagnostic Heading],Table3[[#This Row],[Diagnostic Heading]],Table3[Selected],TRUE))","v":{"$error":"#DIV/0!"}},1,1,{"$f":"Table3[[#This Row],[a]]*Table3[[#This Row],[b]]*Table3[[#This Row],[c]]","v":{"$error":"#DIV/0!"}},{"$f":"Table3[[#This Row],[ES Percent]]*AnnEgyCons","v":{"$error":"#DIV/0!"}},true]
[{"$f":"INDEX(Table7[Q],MATCH(Table3[[#This Row],[Question set]],Table7[Question Set],0))&\".\"&INDEX(Table5[S],MATCH(Table3[[#This Row],[Diagnostic Heading]],Table5[Diagnostic Heading],0))&\".\"&Table3[[#This Row],[Q]]","v":"1.5.5"},"Education","Operating and Maintenance Practices",5,"Staff Awareness","no",null,"We have conducted energy conservation awareness activities (e.g. signage, newsletters, competitions).","Conduct energy conservation awareness activities with your staff (e.g. signage, newsletters, competitions). Find tips and information on workplace conservation activities through the link below.","https://www.bchydro.com/powersmart/business/programs/workplace-conservation.html?WT.mc_id=rd_oldworkplaceconservationawareness",{"$f":"INDEX(Table1[Evaluator Question Set],MATCH(Sector,Table1[BC Hydro Sector Allocation],0))=Table3[[#This Row],[Question set]]","v":{"$error":"#N/A"}},{"$f":"IF(Table3[[#This Row],[Selected]],INDIRECT(\"'\"&INDEX(Table5[SheetName],MATCH(Table3[[#This Row],[Diagnostic Heading]],Table5[Diagnostic Heading],0))&\"'\"&\"!C\"&11+Table3[[#This Row],[Q]]),\"\")","v":{"$error":"#N/A"}},{"$f":"IFERROR(AND(Table3[[#This Row],[BCH Funded]]=\"Yes\",Table3[[#This Row],[Answer]]=\"No\"),\"\")","v":""},{"$f":"IFERROR(AND(Table3[[#This Row],[BCH Funded]]=\"no\",Table3[[#This Row],[Answer]]=\"No\"),\"\")","v":""},{"$f":"IFERROR(IF(Table3[[#This Row],[Answer]]=\"No\",INDEX(Table10[],MATCH(INDEX(Table8[CPR Type],MATCH(Table3[[#This Row],[Report Heading]],Table8[Report Heading],0)),Table10[Segment],0),MATCH(Table3[[#This Row],[Question set]],Table10[#Headers],0)),0),0.01/COUNTIFS(Table3[Question set],INDEX(Table1[Evaluator Question Set],MATCH(Sector,Table1[BC Hydro Sector Allocation],0)),Table3[Diagnostic Heading],Table3[[#This Row],[Diagnostic Heading]],Table3[Selected],TRUE))","v":{"$error":"#DIV/0!"}},1,1,{"$f":"Table3[[#This Row],[a]]*Table3[[#This Row],[b]]*Table3[[#This Row],[c]]","v":{"$error":"#DIV/0!"}},{"$f":"Table3[[#This Row],[ES Percent]]*AnnEgyCons","v":{"$error":"#DIV/0!"}},true]
[{"$f":"INDEX(Table7[Q],MATCH(Table3[[#This Row],[Question set]],Table7[Question Set],0))&\".\"&INDEX(Table5[S],MATCH(Table3[[#This Row],[Diagnostic Heading]],Table5[Diagnostic Heading],0))&\".\"&Table3[[#This Row],[Q]]","v":"1.6.1"},"Education","Management Practice",1,"Effective management of energy data","no",null,"We regularly go to bchydro.com and use MyHydro to track our energy usage.","Develop a process for managing energy bills and metered energy use information centrally. For example in a spreadsheet, database, or other online tool for ready access. Sign up to see your BC Hydro account information online using the link below.","https://www.bchydro.com/account/UI/Login?realm=bch-ps&goto=https%3A%2F%2Fwww.bchydro.com%3A443%2FBCHCustomerPortal%2Fweb%2Flogin.html",{"$f":"INDEX(Table1[Evaluator Question Set],MATCH(Sector,Table1[BC Hydro Sector Allocation],0))=Table3[[#This Row],[Question set]]","v":{"$error":"#N/A"}},{"$f":"IF(Table3[[#This Row],[Selected]],INDIRECT(\"'\"&INDEX(Table5[SheetName],MATCH(Table3[[#This Row],[Diagnostic Heading]],Table5[Diagnostic Heading],0))&\"'\"&\"!C\"&11+Table3[[#This Row],[Q]]),\"\")","v":{"$error":"#N/A"}},{"$f":"IFERROR(AND(Table3[[#This Row],[BCH Funded]]=\"Yes\",Table3[[#This Row],[Answer]]=\"No\"),\"\")","v":""},{"$f":"IFERROR(AND(Table3[[#This Row],[BCH Funded]]=\"no\",Table3[[#This Row],[Answer]]=\"No\"),\"\")","v":""},{"$f":"IFERROR(IF(Table3[[#This Row],[Answer]]=\"No\",INDEX(Table10[],MATCH(INDEX(Table8[CPR Type],MATCH(Table3[[#This Row],[Report Heading]],Table8[Report Heading],0)),Table10[Segment],0),MATCH(Table3[[#This Row],[Question set]],Table10[#Headers],0)),0),0.01/COUNTIFS(Table3[Question set],INDEX(Table1[Evaluator Question Set],MATCH(Sector,Table1[BC Hydro Sector Allocation],0)),Table3[Diagnostic Heading],Table3[[#This Row],[Diagnostic Heading]],Table3[Selected],TRUE))","v":{"$error":"#DIV/0!"}},1,1,{"$f":"Table3[[#This Row],[a]]*Table3[[#This Row],[b]]*Table3[[#This Row],[c]]","v":{"$error":"#DIV/0!"}},{"$f":"Table3[[#This Row],[ES Percent]]*AnnEgyCons","v":{"$error":"#DIV/0!"}},true]
[{"$f":"INDEX(Table7[Q],MATCH(Table3[[#This Row],[Question set]],Table7[Question Set],0))&\".\"&INDEX(Table5[S],MATCH(Table3[[#This Row],[Diagnostic Heading]],Table5[Diagnostic Heading],0))&\".\"&Table3[[#This Row],[Q]]","v":"1.6.2"},"Education","Management Practice",2,"Reporting systems for energy use","no",null,"We periodically report energy use for our business to relevant staff.","Establish a process to regularly report your energy efficiency to management and staff. Learn more about managing energy costs and consumption in your business through the link below.","https://www.bchydro.com/powersmart/business/types-of-business-customers.html",{"$f":"INDEX(Table1[Evaluator Question Set],MATCH(Sector,Table1[BC Hydro Sector Allocation],0))=Table3[[#This Row],[Question set]]","v":{"$error":"#N/A"}},{"$f":"IF(Table3[[#This Row],[Selected]],INDIRECT(\"'\"&INDEX(Table5[SheetName],MATCH(Table3[[#This Row],[Diagnostic Heading]],Table5[Diagnostic Heading],0))&\"'\"&\"!C\"&11+Table3[[#This Row],[Q]]),\"\")","v":{"$error":"#N/A"}},{"$f":"IFERROR(AND(Table3[[#This Row],[BCH Funded]]=\"Yes\",Table3[[#This Row],[Answer]]=\"No\"),\"\")","v":""},{"$f":"IFERROR(AND(Table3[[#This Row],[BCH Funded]]=\"no\",Table3[[#This Row],[Answer]]=\"No\"),\"\")","v":""},{"$f":"IFERROR(IF(Table3[[#This Row],[Answer]]=\"No\",INDEX(Table10[],MATCH(INDEX(Table8[CPR Type],MATCH(Table3[[#This Row],[Report Heading]],Table8[Report Heading],0)),Table10[Segment],0),MATCH(Table3[[#This Row],[Question set]],Table10[#Headers],0)),0),0.01/COUNTIFS(Table3[Question set],INDEX(Table1[Evaluator Question Set],MATCH(Sector,Table1[BC Hydro Sector Allocation],0)),Table3[Diagnostic Heading],Table3[[#This Row],[Diagnostic Heading]],Table3[Selected],TRUE))","v":{"$error":"#DIV/0!"}},1,1,{"$f":"Table3[[#This Row],[a]]*Table3[[#This Row],[b]]*Table3[[#This Row],[c]]","v":{"$error":"#DIV/0!"}},{"$f":"Table3[[#This Row],[ES Percent]]*AnnEgyCons","v":{"$error":"#DIV/0!"}},true]
[{"$f":"INDEX(Table7[Q],MATCH(Table3[[#This Row],[Question set]],Table7[Question Set],0))&\".\"&INDEX(Table5[S],MATCH(Table3[[#This Row],[Diagnostic Heading]],Table5[Diagnostic Heading],0))&\".\"&Table3[[#This Row],[Q]]","v":"1.6.3"},"Education","Management Practice",3,"Targets and Planning","no",null,"We have a target and action plan to reduce energy costs for the next year (e.g. kWh/sq. ft. by 10%).","Create a realistic target and action plan to reduce energy costs for the next year (e.g. kWh/sq. ft. by 10%). Find out how to manage your energy costs and consumption in your business through the link below.","https://www.bchydro.com/news/conservation/2014/myhydro-to-manage-energy-and-profitability.html",{"$f":"INDEX(Table1[Evaluator Question Set],MATCH(Sector,Table1[BC Hydro Sector Allocation],0))=Table3[[#This Row],[Question set]]","v":{"$error":"#N/A"}},{"$f":"IF(Table3[[#This Row],[Selected]],INDIRECT(\"'\"&INDEX(Table5[SheetName],MATCH(Table3[[#This Row],[Diagnostic Heading]],Table5[Diagnostic Heading],0))&\"'\"&\"!C\"&11+Table3[[#This Row],[Q]]),\"\")","v":{"$error":"#N/A"}},{"$f":"IFERROR(AND(Table3[[#This Row],[BCH Funded]]=\"Yes\",Table3[[#This Row],[Answer]]=\"No\"),\"\")","v":""},{"$f":"IFERROR(AND(Table3[[#This Row],[BCH Funded]]=\"no\",Table3[[#This Row],[Answer]]=\"No\"),\"\")","v":""},{"$f":"IFERROR(IF(Table3[[#This Row],[Answer]]=\"No\",INDEX(Table10[],MATCH(INDEX(Table8[CPR Type],MATCH(Table3[[#This Row],[Report Heading]],Table8[Report Heading],0)),Table10[Segment],0),MATCH(Table3[[#This Row],[Question set]],Table10[#Headers],0)),0),0.01/COUNTIFS(Table3[Question set],INDEX(Table1[Evaluator Question Set],MATCH(Sector,Table1[BC Hydro Sector Allocation],0)),Table3[Diagnostic Heading],Table3[[#This Row],[Diagnostic Heading]],Table3[Selected],TRUE))","v":{"$error":"#DIV/0!"}},1,1,{"$f":"Table3[[#This Row],[a]]*Table3[[#This Row],[b]]*Table3[[#This Row],[c]]","v":{"$error":"#DIV/0!"}},{"$f":"Table3[[#This Row],[ES Percent]]*AnnEgyCons","v":{"$error":"#DIV/0!"}},true]
[{"$f":"INDEX(Table7[Q],MATCH(Table3[[#This Row],[Question set]],Table7[Question Set],0))&\".\"&INDEX(Table5[S],MATCH(Table3[[#This Row],[Diagnostic Heading]],Table5[Diagnostic Heading],0))&\".\"&Table3[[#This Row],[Q]]","v":"1.6.4"},"Education","Management Practice",4,"Understanding of energy performance and opportunities","no",null,"We have completed an energy audit, which has quantified costs and savings opportunities.","Conduct an energy audit to quantify costs and identify savings opportunities. Learn how to do an energy audit and build a business case for energy efficiency through the link below.","http://www.bchydro.com/powersmart/business/business-energy-advisors.html?WT.mc_id=rd_bea",{"$f":"INDEX(Table1[Evaluator Question Set],MATCH(Sector,Table1[BC Hydro Sector Allocation],0))=Table3[[#This Row],[Question set]]","v":{"$error":"#N/A"}},{"$f":"IF(Table3[[#This Row],[Selected]],INDIRECT(\"'\"&INDEX(Table5[SheetName],MATCH(Table3[[#This Row],[Diagnostic Heading]],Table5[Diagnostic Heading],0))&\"'\"&\"!C\"&11+Table3[[#This Row],[Q]]),\"\")","v":{"$error":"#N/A"}},{"$f":"IFERROR(AND(Table3[[#This Row],[BCH Funded]]=\"Yes\",Table3[[#This Row],[Answer]]=\"No\"),\"\")","v":""},{"$f":"IFERROR(AND(Table3[[#This Row],[BCH Funded]]=\"no\",Table3[[#This Row],[Answer]]=\"No\"),\"\")","v":""},{"$f":"IFERROR(IF(Table3[[#This Row],[Answer]]=\"No\",INDEX(Table10[],MATCH(INDEX(Table8[CPR Type],MATCH(Table3[[#This Row],[Report Heading]],Table8[Report Heading],0)),Table10[Segment],0),MATCH(Table3[[#This Row],[Question set]],Table10[#Headers],0)),0),0.01/COUNTIFS(Table3[Question set],INDEX(Table1[Evaluator Question Set],MATCH(Sector,Table1[BC Hydro Sector Allocation],0)),Table3[Diagnostic Heading],Table3[[#This Row],[Diagnostic Heading]],Table3[Selected],TRUE))","v":{"$error":"#DIV/0!"}},1,1,{"$f":"Table3[[#This Row],[a]]*Table3[[#This Row],[b]]*Table3[[#This Row],[c]]","v":{"$error":"#DIV/0!"}},{"$f":"Table3[[#This Row],[ES Percent]]*AnnEgyCons","v":{"$error":"#DIV/0!"}},true]
[{"$f":"INDEX(Table7[Q],MATCH(Table3[[#This Row],[Question set]],Table7[Question Set],0))&\".\"&INDEX(Table5[S],MATCH(Table3[[#This Row],[Diagnostic Heading]],Table5[Diagnostic Heading],0))&\".\"&Table3[[#This Row],[Q]]","v":"1.6.5"},"Education","Management Practice",5,"Purchasing","no",null,"We use energy efficient guidelines and product catalogues when buying equipment or specify standards in our procurement process.","Use Power Smart buying guides and product catalogues when buying equipment or specify energy efficiency standards in your procurement process. Visit the link below for BC Hydro Power Smart buying guides.","https://www.bchydro.com/powersmart/business/technologies-equipment.html\nhttps://www.energystar.gov/products?s=mega",{"$f":"INDEX(Table1[Evaluator Question Set],MATCH(Sector,Table1[BC Hydro Sector Allocation],0))=Table3[[#This Row],[Question set]]","v":{"$error":"#N/A"}},{"$f":"IF(Table3[[#This Row],[Selected]],INDIRECT(\"'\"&INDEX(Table5[SheetName],MATCH(Table3[[#This Row],[Diagnostic Heading]],Table5[Diagnostic Heading],0))&\"'\"&\"!C\"&11+Table3[[#This Row],[Q]]),\"\")","v":{"$error":"#N/A"}},{"$f":"IFERROR(AND(Table3[[#This Row],[BCH Funded]]=\"Yes\",Table3[[#This Row],[Answer]]=\"No\"),\"\")","v":""},{"$f":"IFERROR(AND(Table3[[#This Row],[BCH Funded]]=\"no\",Table3[[#This Row],[Answer]]=\"No\"),\"\")","v":""},{"$f":"IFERROR(IF(Table3[[#This Row],[Answer]]=\"No\",INDEX(Table10[],MATCH(INDEX(Table8[CPR Type],MATCH(Table3[[#This Row],[Report Heading]],Table8[Report Heading],0)),Table10[Segment],0),MATCH(Table3[[#This Row],[Question set]],Table10[#Headers],0)),0),0.01/COUNTIFS(Table3[Question set],INDEX(Table1[Evaluator Question Set],MATCH(Sector,Table1[BC Hydro Sector Allocation],0)),Table3[Diagnostic Heading],Table3[[#This Row],[Diagnostic Heading]],Table3[Selected],TRUE))","v":{"$error":"#DIV/0!"}},1,1,{"$f":"Table3[[#This Row],[a]]*Table3[[#This Row],[b]]*Table3[[#This Row],[c]]","v":{"$error":"#DIV/0!"}},{"$f":"Table3[[#This Row],[ES Percent]]*AnnEgyCons","v":{"$error":"#DIV/0!"}},true]
[{"$f":"INDEX(Table7[Q],MATCH(Table3[[#This Row],[Question set]],Table7[Question Set],0))&\".\"&INDEX(Table5[S],MATCH(Table3[[#This Row],[Diagnostic Heading]],Table5[Diagnostic Heading],0))&\".\"&Table3[[#This Row],[Q]]","v":"2.1.1"},"Retail (non-food)","Lighting",1,"LED Lighting","yes","Average incentive of 50% of product cost","We have upgraded our incandescent lighting to energy efficient LED lamps.","BC Hydro funding is available. Assess the cost effectiveness of upgrading your incandescent lighting to energy efficient LEDs. LEDs use at least 75% less energy than a standard incandescent and last about 15 to 20 times longer than incandescent lighting, and about three times longer than CFLs. Learn more about LEDs by clicking the link below. ","http://www.bchydro.com/news/conservation/2014/led-lighting-increasingly-popular.html",{"$f":"INDEX(Table1[Evaluator Question Set],MATCH(Sector,Table1[BC Hydro Sector Allocation],0))=Table3[[#This Row],[Question set]]","v":{"$error":"#N/A"}},{"$f":"IF(Table3[[#This Row],[Selected]],INDIRECT(\"'\"&INDEX(Table5[SheetName],MATCH(Table3[[#This Row],[Diagnostic Heading]],Table5[Diagnostic Heading],0))&\"'\"&\"!C\"&11+Table3[[#This Row],[Q]]),\"\")","v":{"$error":"#N/A"}},{"$f":"IFERROR(AND(Table3[[#This Row],[BCH Funded]]=\"Yes\",Table3[[#This Row],[Answer]]=\"No\"),\"\")","v":""},{"$f":"IFERROR(AND(Table3[[#This Row],[BCH Funded]]=\"no\",Table3[[#This Row],[Answer]]=\"No\"),\"\")","v":""},{"$f":"IFERROR(IF(Table3[[#This Row],[Answer]]=\"No\",INDEX(Table10[],MATCH(INDEX(Table8[CPR Type],MATCH(Table3[[#This Row],[Report Heading]],Table8[Report Heading],0)),Table10[Segment],0),MATCH(Table3[[#This Row],[Question set]],Table10[#Headers],0)),0),0.01/COUNTIFS(Table3[Question set],INDEX(Table1[Evaluator Question Set],MATCH(Sector,Table1[BC Hydro Sector Allocation],0)),Table3[Diagnostic Heading],Table3[[#This Row],[Diagnostic Heading]],Table3[Selected],TRUE))","v":{"$error":"#DIV/0!"}},0.5,0.75,{"$f":"Table3[[#This Row],[a]]*Table3[[#This Row],[b]]*Table3[[#This Row],[c]]","v":{"$error":"#DIV/0!"}},{"$f":"Table3[[#This Row],[ES Percent]]*AnnEgyCons","v":{"$error":"#DIV/0!"}},true,"Cristian Suvagau"]
[{"$f":"INDEX(Table7[Q],MATCH(Table3[[#This Row],[Question set]],Table7[Question Set],0))&\".\"&INDEX(Table5[S],MATCH(Table3[[#This Row],[Diagnostic Heading]],Table5[Diagnostic Heading],0))&\".\"&Table3[[#This Row],[Q]]","v":"2.1.2"},"Retail (non-food)","Lighting",2,"Fluorescent lighting","yes","Average incentive of 25% of project cost when upgrading to LED","Our fluorescent lighting uses energy efficient T8 or T5 tubes.","Consider upgrading your fluorescent lighting to energy efficient T8 lamps. If you currently have T12 lamps, upgrading to the latest T8 lamps and electronic ballasts could reduce your lighting costs by up to 40%.  Also consider upgrading to LEDs to increase your savings by up to 60% and be eligible for BC Hydro incentives.","https://www.bchydro.com/ecatalog/eCatServlet?cmd=all_psp_incentives&existId=&energyId=13&p=1&sb=3&dir=1&ip=50",{"$f":"INDEX(Table1[Evaluator Question Set],MATCH(Sector,Table1[BC Hydro Sector Allocation],0))=Table3[[#This Row],[Question set]]","v":{"$error":"#N/A"}},{"$f":"IF(Table3[[#This Row],[Selected]],INDIRECT(\"'\"&INDEX(Table5[SheetName],MATCH(Table3[[#This Row],[Diagnostic Heading]],Table5[Diagnostic Heading],0))&\"'\"&\"!C\"&11+Table3[[#This Row],[Q]]),\"\")","v":{"$error":"#N/A"}},{"$f":"IFERROR(AND(Table3[[#This Row],[BCH Funded]]=\"Yes\",Table3[[#This Row],[Answer]]=\"No\"),\"\")","v":""},{"$f":"IFERROR(AND(Table3[[#This Row],[BCH Funded]]=\"no\",Table3[[#This Row],[Answer]]=\"No\"),\"\")","v":""},{"$f":"IFERROR(IF(Table3[[#This Row],[Answer]]=\"No\",INDEX(Table10[],MATCH(INDEX(Table8[CPR Type],MATCH(Table3[[#This Row],[Report Heading]],Table8[Report Heading],0)),Table10[Segment],0),MATCH(Table3[[#This Row],[Question set]],Table10[#Headers],0)),0),0.01/COUNTIFS(Table3[Question set],INDEX(Table1[Evaluator Question Set],MATCH(Sector,Table1[BC Hydro Sector Allocation],0)),Table3[Diagnostic Heading],Table3[[#This Row],[Diagnostic Heading]],Table3[Selected],TRUE))","v":{"$error":"#DIV/0!"}},0.4,0.3,{"$f":"Table3[[#This Row],[a]]*Table3[[#This Row],[b]]*Table3[[#This Row],[c]]","v":{"$error":"#DIV/0!"}},{"$f":"Table3[[#This Row],[ES Percent]]*AnnEgyCons","v":{"$error":"#DIV/0!"}},true,"Cristian Suvagau"]
[{"$f":"INDEX(Table7[Q],MATCH(Table3[[#This Row],[Question set]],Table7[Question Set],0))&\".\"&INDEX(Table5[S],MATCH(Table3[[#This Row],[Diagnostic Heading]],Table5[Diagnostic Heading],0))&\".\"&Table3[[#This Row],[Q]]","v":"2.1.3"},"Retail (non-food)","Lighting",3,"LED Exit lighting","no",null,"We have replaced incandescent exit signs with energy efficient LED exit signs.","Did you know that exit signs are now legislated by the federal government?","http://www.nrcan.gc.ca/energy/regulations-codes-standards/18419",{"$f":"INDEX(Table1[Evaluator Question Set],MATCH(Sector,Table1[BC Hydro Sector Allocation],0))=Table3[[#This Row],[Question set]]","v":{"$error":"#N/A"}},{"$f":"IF(Table3[[#This Row],[Selected]],INDIRECT(\"'\"&INDEX(Table5[SheetName],MATCH(Table3[[#This Row],[Diagnostic Heading]],Table5[Diagnostic Heading],0))&\"'\"&\"!C\"&11+Table3[[#This Row],[Q]]),\"\")","v":{"$error":"#N/A"}},{"$f":"IFERROR(AND(Table3[[#This Row],[BCH Funded]]=\"Yes\",Table3[[#This Row],[Answer]]=\"No\"),\"\")","v":""},{"$f":"IFERROR(AND(Table3[[#This Row],[BCH Funded]]=\"no\",Table3[[#This Row],[Answer]]=\"No\"),\"\")","v":""},{"$f":"IFERROR(IF(Table3[[#This Row],[Answer]]=\"No\",INDEX(Table10[],MATCH(INDEX(Table8[CPR Type],MATCH(Table3[[#This Row],[Report Heading]],Table8[Report Heading],0)),Table10[Segment],0),MATCH(Table3[[#This Row],[Question set]],Table10[#Headers],0)),0),0.01/COUNTIFS(Table3[Question set],INDEX(Table1[Evaluator Question Set],MATCH(Sector,Table1[BC Hydro Sector Allocation],0)),Table3[Diagnostic Heading],Table3[[#This Row],[Diagnostic Heading]],Table3[Selected],TRUE))","v":{"$error":"#DIV/0!"}},0.02,0.9,{"$f":"Table3[[#This Row],[a]]*Table3[[#This Row],[b]]*Table3[[#This Row],[c]]","v":{"$error":"#DIV/0!"}},{"$f":"Table3[[#This Row],[ES Percent]]*AnnEgyCons","v":{"$error":"#DIV/0!"}},true,"Cristian Suvagau"]
[{"$f":"INDEX(Table7[Q],MATCH(Table3[[#This Row],[Question set]],Table7[Question Set],0))&\".\"&INDEX(Table5[S],MATCH(Table3[[#This Row],[Diagnostic Heading]],Table5[Diagnostic Heading],0))&\".\"&Table3[[#This Row],[Q]]","v":"2.1.4"},"Retail (non-food)","Lighting",4,"Exterior Lighting","yes","Average incentive of 25% of project cost","We have upgraded our exterior lighting to energy efficient lamps and fixtures that reduce glare, light pollution and lighting costs (e.g. in parking lots).","Consider upgrading your exterior lighting (e.g. in parking lots) to T8 fluorescent or LED (incentives available for specific LED technologies). These will provide savings and you can get your return even quicker with incentives.","https://www.bchydro.com/ecatalog/eCatServlet?cmd=all_psp_incentives&existId=&energyId=13&p=1&sb=3&dir=1&ip=50",{"$f":"INDEX(Table1[Evaluator Question Set],MATCH(Sector,Table1[BC Hydro Sector Allocation],0))=Table3[[#This Row],[Question set]]","v":{"$error":"#N/A"}},{"$f":"IF(Table3[[#This Row],[Selected]],INDIRECT(\"'\"&INDEX(Table5[SheetName],MATCH(Table3[[#This Row],[Diagnostic Heading]],Table5[Diagnostic Heading],0))&\"'\"&\"!C\"&11+Table3[[#This Row],[Q]]),\"\")","v":{"$error":"#N/A"}},{"$f":"IFERROR(AND(Table3[[#This Row],[BCH Funded]]=\"Yes\",Table3[[#This Row],[Answer]]=\"No\"),\"\")","v":""},{"$f":"IFERROR(AND(Table3[[#This Row],[BCH Funded]]=\"no\",Table3[[#This Row],[Answer]]=\"No\"),\"\")","v":""},{"$f":"IFERROR(IF(Table3[[#This Row],[Answer]]=\"No\",INDEX(Table10[],MATCH(INDEX(Table8[CPR Type],MATCH(Table3[[#This Row],[Report Heading]],Table8[Report Heading],0)),Table10[Segment],0),MATCH(Table3[[#This Row],[Question set]],Table10[#Headers],0)),0),0.01/COUNTIFS(Table3[Question set],INDEX(Table1[Evaluator Question Set],MATCH(Sector,Table1[BC Hydro Sector Allocation],0)),Table3[Diagnostic Heading],Table3[[#This Row],[Diagnostic Heading]],Table3[Selected],TRUE))","v":{"$error":"#DIV/0!"}},1,0.5,{"$f":"Table3[[#This Row],[a]]*Table3[[#This Row],[b]]*Table3[[#This Row],[c]]","v":{"$error":"#DIV/0!"}},{"$f":"Table3[[#This Row],[ES Percent]]*AnnEgyCons","v":{"$error":"#DIV/0!"}},true,"Cristian Suvagau"]
[{"$f":"INDEX(Table7[Q],MATCH(Table3[[#This Row],[Question set]],Table7[Question Set],0))&\".\"&INDEX(Table5[S],MATCH(Table3[[#This Row],[Diagnostic Heading]],Table5[Diagnostic Heading],0))&\".\"&Table3[[#This Row],[Q]]","v":"2.1.5"},"Retail (non-food)","Lighting",5,"Lighting control","No",null,"We have installed controls on lighting to turn off when not required (e.g. timers or occupancy sensors in offices and meeting rooms, daylight harvesting in offices).","Lighting controls can provide you with energy savings and better management of your lighting systems.  Adding lighting controls may be eligible for additional incentive funding when completing a lighting retrofit as not all controls energy savings are recognized by BC Hydro.","https://www.bchydro.com/ecatalog/eCatServlet?cmd=all_psp_incentives&existId=&energyId=14",{"$f":"INDEX(Table1[Evaluator Question Set],MATCH(Sector,Table1[BC Hydro Sector Allocation],0))=Table3[[#This Row],[Question set]]","v":{"$error":"#N/A"}},{"$f":"IF(Table3[[#This Row],[Selected]],INDIRECT(\"'\"&INDEX(Table5[SheetName],MATCH(Table3[[#This Row],[Diagnostic Heading]],Table5[Diagnostic Heading],0))&\"'\"&\"!C\"&11+Table3[[#This Row],[Q]]),\"\")","v":{"$error":"#N/A"}},{"$f":"IFERROR(AND(Table3[[#This Row],[BCH Funded]]=\"Yes\",Table3[[#This Row],[Answer]]=\"No\"),\"\")","v":""},{"$f":"IFERROR(AND(Table3[[#This Row],[BCH Funded]]=\"no\",Table3[[#This Row],[Answer]]=\"No\"),\"\")","v":""},{"$f":"IFERROR(IF(Table3[[#This Row],[Answer]]=\"No\",INDEX(Table10[],MATCH(INDEX(Table8[CPR Type],MATCH(Table3[[#This Row],[Report Heading]],Table8[Report Heading],0)),Table10[Segment],0),MATCH(Table3[[#This Row],[Question set]],Table10[#Headers],0)),0),0.01/COUNTIFS(Table3[Question set],INDEX(Table1[Evaluator Question Set],MATCH(Sector,Table1[BC Hydro Sector Allocation],0)),Table3[Diagnostic Heading],Table3[[#This Row],[Diagnostic Heading]],Table3[Selected],TRUE))","v":{"$error":"#DIV/0!"}},0.15,0.3,{"$f":"Table3[[#This Row],[a]]*Table3[[#This Row],[b]]*Table3[[#This Row],[c]]","v":{"$error":"#DIV/0!"}},{"$f":"Table3[[#This Row],[ES Percent]]*AnnEgyCons","v":{"$error":"#DIV/0!"}},true,"Cristian Suvagau"]
[{"$f":"INDEX(Table7[Q],MATCH(Table3[[#This Row],[Question set]],Table7[Question Set],0))&\".\"&INDEX(Table5[S],MATCH(Table3[[#This Row],[Diagnostic Heading]],Table5[Diagnostic Heading],0))&\".\"&Table3[[#This Row],[Q]]","v":"2.2.1"},"Retail (non-food)","Heating, Ventilation, Air Conditioning / Refrigeration",1,"Refrigeration","no",null,"We have installed anti-sweat heater controls, or doors requiring low/no sweat heat on refrigerated display cases.","Assess the cost effectiveness of installing anti-sweat heater controls, or doors requiring low/no sweat heat on refrigerated display cases. ","https://www.bchydro.com/ecatalog/eCatServlet?cmd=all_psp_incentives&existId=24&energyId=16",{"$f":"INDEX(Table1[Evaluator Question Set],MATCH(Sector,Table1[BC Hydro Sector Allocation],0))=Table3[[#This Row],[Question set]]","v":{"$error":"#N/A"}},{"$f":"IF(Table3[[#This Row],[Selected]],INDIRECT(\"'\"&INDEX(Table5[SheetName],MATCH(Table3[[#This Row],[Diagnostic Heading]],Table5[Diagnostic Heading],0))&\"'\"&\"!C\"&11+Table3[[#This Row],[Q]]),\"\")","v":{"$error":"#N/A"}},{"$f":"IFERROR(AND(Table3[[#This Row],[BCH Funded]]=\"Yes\",Table3[[#This Row],[Answer]]=\"No\"),\"\")","v":""},{"$f":"IFERROR(AND(Table3[[#This Row],[BCH Funded]]=\"no\",Table3[[#This Row],[Answer]]=\"No\"),\"\")","v":""},{"$f":"IFERROR(IF(Table3[[#This Row],[Answer]]=\"No\",INDEX(Table10[],MATCH(INDEX(Table8[CPR Type],MATCH(Table3[[#This Row],[Report Heading]],Table8[Report Heading],0)),Table10[Segment],0),MATCH(Table3[[#This Row],[Question set]],Table10[#Headers],0)),0),0.01/COUNTIFS(Table3[Question set],INDEX(Table1[Evaluator Question Set],MATCH(Sector,Table1[BC Hydro Sector Allocation],0)),Table3[Diagnostic Heading],Table3[[#This Row],[Diagnostic Heading]],Table3[Selected],TRUE))","v":{"$error":"#DIV/0!"}},1,0.24,{"$f":"Table3[[#This Row],[a]]*Table3[[#This Row],[b]]*Table3[[#This Row],[c]]","v":{"$error":"#DIV/0!"}},{"$f":"Table3[[#This Row],[ES Percent]]*AnnEgyCons","v":{"$error":"#DIV/0!"}},true,"https://www.bchydro.com/powersmart/business/technologies-equipment.html"]
[{"$f":"INDEX(Table7[Q],MATCH(Table3[[#This Row],[Question set]],Table7[Question Set],0))&\".\"&INDEX(Table5[S],MATCH(Table3[[#This Row],[Diagnostic Heading]],Table5[Diagnostic Heading],0))&\".\"&Table3[[#This Row],[Q]]","v":"2.2.2"},"Retail (non-food)","Heating, Ventilation, Air Conditioning / Refrigeration",2,"Refrigeration","no",null,"Our cool room/freezer is insulated and includes a strip curtain and/or auto-closing door.","Dollars are leaking out! Add strip curtains to walk-in coolers to reduce the amount of energy lost to the surrounding air. Strip curtains used in busy kitchens can cut your refrigeration costs significantly! As an added bonus, these curtains repel windborne contaminants like dust and pollutants. Auto closers will ensure coolers and freezers do not remain open. Learn more about strip curtains from the case study link below.","https://www.bchydro.com/powersmart/business/success-stories/donalds-market-success.html",{"$f":"INDEX(Table1[Evaluator Question Set],MATCH(Sector,Table1[BC Hydro Sector Allocation],0))=Table3[[#This Row],[Question set]]","v":{"$error":"#N/A"}},{"$f":"IF(Table3[[#This Row],[Selected]],INDIRECT(\"'\"&INDEX(Table5[SheetName],MATCH(Table3[[#This Row],[Diagnostic Heading]],Table5[Diagnostic Heading],0))&\"'\"&\"!C\"&11+Table3[[#This Row],[Q]]),\"\")","v":{"$error":"#N/A"}},{"$f":"IFERROR(AND(Table3[[#This Row],[BCH Funded]]=\"Yes\",Table3[[#This Row],[Answer]]=\"No\"),\"\")","v":""},{"$f":"IFERROR(AND(Table3[[#This Row],[BCH Funded]]=\"no\",Table3[[#This Row],[Answer]]=\"No\"),\"\")","v":""},{"$f":"IFERROR(IF(Table3[[#This Row],[Answer]]=\"No\",INDEX(Table10[],MATCH(INDEX(Table8[CPR Type],MATCH(Table3[[#This Row],[Report Heading]],Table8[Report Heading],0)),Table10[Segment],0),MATCH(Table3[[#This Row],[Question set]],Table10[#Headers],0)),0),0.01/COUNTIFS(Table3[Question set],INDEX(Table1[Evaluator Question Set],MATCH(Sector,Table1[BC Hydro Sector Allocation],0)),Table3[Diagnostic Heading],Table3[[#This Row],[Diagnostic Heading]],Table3[Selected],TRUE))","v":{"$error":"#DIV/0!"}},1,0.24,{"$f":"Table3[[#This Row],[a]]*Table3[[#This Row],[b]]*Table3[[#This Row],[c]]","v":{"$error":"#DIV/0!"}},{"$f":"Table3[[#This Row],[ES Percent]]*AnnEgyCons","v":{"$error":"#DIV/0!"}},true,"https://www.bchydro.com/powersmart/business/technologies-equipment.html"]
[{"$f":"INDEX(Table7[Q],MATCH(Table3[[#This Row],[Question set]],Table7[Question Set],0))&\".\"&INDEX(Table5[S],MATCH(Table3[[#This Row],[Diagnostic Heading]],Table5[Diagnostic Heading],0))&\".\"&Table3[[#This Row],[Q]]","v":"2.2.3"},"Retail (non-food)","Heating, Ventilation, Air Conditioning / Refrigeration",3,"Air tightness","no",null,"We have examined ways to improve the air-tightness of air-conditioned spaces (e.g. closing doors, windows and installing air curtains).","Stretch your legs. Have a walk around and look for where you could improve the air-tightness of air-conditioned spaces (e.g. closing doors, windows, installing air curtains). Learn more about air leakage control in your building through the link below.","http://www.energycodes.gov/sites/default/files/documents/BECP_Buidling%20Energy%20Code%20Resource%20Guide%20Air%20Leakage%20Guide_Sept2011_v00_lores.pdf ",{"$f":"INDEX(Table1[Evaluator Question Set],MATCH(Sector,Table1[BC Hydro Sector Allocation],0))=Table3[[#This Row],[Question set]]","v":{"$error":"#N/A"}},{"$f":"IF(Table3[[#This Row],[Selected]],INDIRECT(\"'\"&INDEX(Table5[SheetName],MATCH(Table3[[#This Row],[Diagnostic Heading]],Table5[Diagnostic Heading],0))&\"'\"&\"!C\"&11+Table3[[#This Row],[Q]]),\"\")","v":{"$error":"#N/A"}},{"$f":"IFERROR(AND(Table3[[#This Row],[BCH Funded]]=\"Yes\",Table3[[#This Row],[Answer]]=\"No\"),\"\")","v":""},{"$f":"IFERROR(AND(Table3[[#This Row],[BCH Funded]]=\"no\",Table3[[#This Row],[Answer]]=\"No\"),\"\")","v":""},{"$f":"IFERROR(IF(Table3[[#This Row],[Answer]]=\"No\",INDEX(Table10[],MATCH(INDEX(Table8[CPR Type],MATCH(Table3[[#This Row],[Report Heading]],Table8[Report Heading],0)),Table10[Segment],0),MATCH(Table3[[#This Row],[Question set]],Table10[#Headers],0)),0),0.01/COUNTIFS(Table3[Question set],INDEX(Table1[Evaluator Question Set],MATCH(Sector,Table1[BC Hydro Sector Allocation],0)),Table3[Diagnostic Heading],Table3[[#This Row],[Diagnostic Heading]],Table3[Selected],TRUE))","v":{"$error":"#DIV/0!"}},1,0.02,{"$f":"Table3[[#This Row],[a]]*Table3[[#This Row],[b]]*Table3[[#This Row],[c]]","v":{"$error":"#DIV/0!"}},{"$f":"Table3[[#This Row],[ES Percent]]*AnnEgyCons","v":{"$error":"#DIV/0!"}},true,"ASHRAE- Simulation of the Impact of Commercial Building Envelope Airtightness on Building Energy Utilization"]
[{"$f":"INDEX(Table7[Q],MATCH(Table3[[#This Row],[Question set]],Table7[Question Set],0))&\".\"&INDEX(Table5[S],MATCH(Table3[[#This Row],[Diagnostic Heading]],Table5[Diagnostic Heading],0))&\".\"&Table3[[#This Row],[Q]]","v":"2.2.4"},"Retail (non-food)","Heating, Ventilation, Air Conditioning / Refrigeration",4,"Heating / cooling controls","yes","Average incentive of 20% of project cost","We have upgraded our heating, ventilation & air conditioning system to include variable frequency drives on fans and pumps and/or variable speed ECM pumps.","BC Hydro funding is available. Consider upgrading your heating, ventilation & air conditioning system to include variable frequency drives on fans and pumps and/or variable speed ECM pumps.","https://www.bchydro.com/ecatalog/",{"$f":"INDEX(Table1[Evaluator Question Set],MATCH(Sector,Table1[BC Hydro Sector Allocation],0))=Table3[[#This Row],[Question set]]","v":{"$error":"#N/A"}},{"$f":"IF(Table3[[#This Row],[Selected]],INDIRECT(\"'\"&INDEX(Table5[SheetName],MATCH(Table3[[#This Row],[Diagnostic Heading]],Table5[Diagnostic Heading],0))&\"'\"&\"!C\"&11+Table3[[#This Row],[Q]]),\"\")","v":{"$error":"#N/A"}},{"$f":"IFERROR(AND(Table3[[#This Row],[BCH Funded]]=\"Yes\",Table3[[#This Row],[Answer]]=\"No\"),\"\")","v":""},{"$f":"IFERROR(AND(Table3[[#This Row],[BCH Funded]]=\"no\",Table3[[#This Row],[Answer]]=\"No\"),\"\")","v":""},{"$f":"IFERROR(IF(Table3[[#This Row],[Answer]]=\"No\",INDEX(Table10[],MATCH(INDEX(Table8[CPR Type],MATCH(Table3[[#This Row],[Report Heading]],Table8[Report Heading],0)),Table10[Segment],0),MATCH(Table3[[#This Row],[Question set]],Table10[#Headers],0)),0),0.01/COUNTIFS(Table3[Question set],INDEX(Table1[Evaluator Question Set],MATCH(Sector,Table1[BC Hydro Sector Allocation],0)),Table3[Diagnostic Heading],Table3[[#This Row],[Diagnostic Heading]],Table3[Selected],TRUE))","v":{"$error":"#DIV/0!"}},1,0.2,{"$f":"Table3[[#This Row],[a]]*Table3[[#This Row],[b]]*Table3[[#This Row],[c]]","v":{"$error":"#DIV/0!"}},{"$f":"Table3[[#This Row],[ES Percent]]*AnnEgyCons","v":{"$error":"#DIV/0!"}},true,"Past commercial incentives"]
[{"$f":"INDEX(Table7[Q],MATCH(Table3[[#This Row],[Question set]],Table7[Question Set],0))&\".\"&INDEX(Table5[S],MATCH(Table3[[#This Row],[Diagnostic Heading]],Table5[Diagnostic Heading],0))&\".\"&Table3[[#This Row],[Q]]","v":"2.2.5"},"Retail (non-food)","Heating, Ventilation, Air Conditioning / Refrigeration",5,"Heating and cooling temperature set points","no",null,"We have adjusted temperature settings for heating and cooling to minimize energy use.","Work with your staff to have them adjust temperature settings for heating and cooling to minimize energy use. Learn more about operating your refrigeration units efficiently through the link below.","https://www.bchydro.com/powersmart/business/technologies-equipment/heating-cooling.html",{"$f":"INDEX(Table1[Evaluator Question Set],MATCH(Sector,Table1[BC Hydro Sector Allocation],0))=Table3[[#This Row],[Question set]]","v":{"$error":"#N/A"}},{"$f":"IF(Table3[[#This Row],[Selected]],INDIRECT(\"'\"&INDEX(Table5[SheetName],MATCH(Table3[[#This Row],[Diagnostic Heading]],Table5[Diagnostic Heading],0))&\"'\"&\"!C\"&11+Table3[[#This Row],[Q]]),\"\")","v":{"$error":"#N/A"}},{"$f":"IFERROR(AND(Table3[[#This Row],[BCH Funded]]=\"Yes\",Table3[[#This Row],[Answer]]=\"No\"),\"\")","v":""},{"$f":"IFERROR(AND(Table3[[#This Row],[BCH Funded]]=\"no\",Table3[[#This Row],[Answer]]=\"No\"),\"\")","v":""},{"$f":"IFERROR(IF(Table3[[#This Row],[Answer]]=\"No\",INDEX(Table10[],MATCH(INDEX(Table8[CPR Type],MATCH(Table3[[#This Row],[Report Heading]],Table8[Report Heading],0)),Table10[Segment],0),MATCH(Table3[[#This Row],[Question set]],Table10[#Headers],0)),0),0.01/COUNTIFS(Table3[Question set],INDEX(Table1[Evaluator Question Set],MATCH(Sector,Table1[BC Hydro Sector Allocation],0)),Table3[Diagnostic Heading],Table3[[#This Row],[Diagnostic Heading]],Table3[Selected],TRUE))","v":{"$error":"#DIV/0!"}},1,0.05,{"$f":"Table3[[#This Row],[a]]*Table3[[#This Row],[b]]*Table3[[#This Row],[c]]","v":{"$error":"#DIV/0!"}},{"$f":"Table3[[#This Row],[ES Percent]]*AnnEgyCons","v":{"$error":"#DIV/0!"}},true,"Past commercial incentives"]
[{"$f":"INDEX(Table7[Q],MATCH(Table3[[#This Row],[Question set]],Table7[Question Set],0))&\".\"&INDEX(Table5[S],MATCH(Table3[[#This Row],[Diagnostic Heading]],Table5[Diagnostic Heading],0))&\".\"&Table3[[#This Row],[Q]]","v":"2.4.1"},"Retail (non-food)","Energy Efficient Equipment",1,"LED case light","no",null,"We have assessed the cost effectiveness of installing LED case light occupancy sensors to reduce our energy costs.","Assess the cost effectiveness of installing LED case light occupancy sensors to reduce your energy costs.","https://www.bchydro.com/ecatalog/",{"$f":"INDEX(Table1[Evaluator Question Set],MATCH(Sector,Table1[BC Hydro Sector Allocation],0))=Table3[[#This Row],[Question set]]","v":{"$error":"#N/A"}},{"$f":"IF(Table3[[#This Row],[Selected]],INDIRECT(\"'\"&INDEX(Table5[SheetName],MATCH(Table3[[#This Row],[Diagnostic Heading]],Table5[Diagnostic Heading],0))&\"'\"&\"!C\"&11+Table3[[#This Row],[Q]]),\"\")","v":{"$error":"#N/A"}},{"$f":"IFERROR(AND(Table3[[#This Row],[BCH Funded]]=\"Yes\",Table3[[#This Row],[Answer]]=\"No\"),\"\")","v":""},{"$f":"IFERROR(AND(Table3[[#This Row],[BCH Funded]]=\"no\",Table3[[#This Row],[Answer]]=\"No\"),\"\")","v":""},{"$f":"IFERROR(IF(Table3[[#This Row],[Answer]]=\"No\",INDEX(Table10[],MATCH(INDEX(Table8[CPR Type],MATCH(Table3[[#This Row],[Report Heading]],Table8[Report Heading],0)),Table10[Segment],0),MATCH(Table3[[#This Row],[Question set]],Table10[#Headers],0)),0),0.01/COUNTIFS(Table3[Question set],INDEX(Table1[Evaluator Question Set],MATCH(Sector,Table1[BC Hydro Sector Allocation],0)),Table3[Diagnostic Heading],Table3[[#This Row],[Diagnostic Heading]],Table3[Selected],TRUE))","v":{"$error":"#DIV/0!"}},1,0.24,{"$f":"Table3[[#This Row],[a]]*Table3[[#This Row],[b]]*Table3[[#This Row],[c]]","v":{"$error":"#DIV/0!"}},{"$f":"Table3[[#This Row],[ES Percent]]*AnnEgyCons","v":{"$error":"#DIV/0!"}},true,"https://www.bchydro.com/powersmart/business/technologies-equipment.html"]
[{"$f":"INDEX(Table7[Q],MATCH(Table3[[#This Row],[Question set]],Table7[Question Set],0))&\".\"&INDEX(Table5[S],MATCH(Table3[[#This Row],[Diagnostic Heading]],Table5[Diagnostic Heading],0))&\".\"&Table3[[#This Row],[Q]]","v":"2.4.2"},"Retail (non-food)","Energy Efficient Equipment",2,"Programmable thermostat","no",null,"We have upgraded the controls on our HVAC system to include a programmable thermostat (which reduces energy costs by turning down heating or cooling systems when facilities are unoccupied).","Assess the cost and savings available when you upgrade the controls on your HVAC system to include a programmable thermostat. It reduces energy costs by turning down heating or cooling systems when facilities are unoccupied. Learn more about programmable thermostats in the link below.","https://www.bchydro.com/powersmart/business/technologies-equipment/heating-cooling.html",{"$f":"INDEX(Table1[Evaluator Question Set],MATCH(Sector,Table1[BC Hydro Sector Allocation],0))=Table3[[#This Row],[Question set]]","v":{"$error":"#N/A"}},{"$f":"IF(Table3[[#This Row],[Selected]],INDIRECT(\"'\"&INDEX(Table5[SheetName],MATCH(Table3[[#This Row],[Diagnostic Heading]],Table5[Diagnostic Heading],0))&\"'\"&\"!C\"&11+Table3[[#This Row],[Q]]),\"\")","v":{"$error":"#N/A"}},{"$f":"IFERROR(AND(Table3[[#This Row],[BCH Funded]]=\"Yes\",Table3[[#This Row],[Answer]]=\"No\"),\"\")","v":""},{"$f":"IFERROR(AND(Table3[[#This Row],[BCH Funded]]=\"no\",Table3[[#This Row],[Answer]]=\"No\"),\"\")","v":""},{"$f":"IFERROR(IF(Table3[[#This Row],[Answer]]=\"No\",INDEX(Table10[],MATCH(INDEX(Table8[CPR Type],MATCH(Table3[[#This Row],[Report Heading]],Table8[Report Heading],0)),Table10[Segment],0),MATCH(Table3[[#This Row],[Question set]],Table10[#Headers],0)),0),0.01/COUNTIFS(Table3[Question set],INDEX(Table1[Evaluator Question Set],MATCH(Sector,Table1[BC Hydro Sector Allocation],0)),Table3[Diagnostic Heading],Table3[[#This Row],[Diagnostic Heading]],Table3[Selected],TRUE))","v":{"$error":"#DIV/0!"}},1,0.02,{"$f":"Table3[[#This Row],[a]]*Table3[[#This Row],[b]]*Table3[[#This Row],[c]]","v":{"$error":"#DIV/0!"}},{"$f":"Table3[[#This Row],[ES Percent]]*AnnEgyCons","v":{"$error":"#DIV/0!"}},true,"ASHRAE- Simulation of the Impact of Commercial Building Envelope Airtightness on Building Energy Utilization"]
[{"$f":"INDEX(Table7[Q],MATCH(Table3[[#This Row],[Question set]],Table7[Question Set],0))&\".\"&INDEX(Table5[S],MATCH(Table3[[#This Row],[Diagnostic Heading]],Table5[Diagnostic Heading],0))&\".\"&Table3[[#This Row],[Q]]","v":"2.4.3"},"Retail (non-food)","Energy Efficient Equipment",3,"Economizer sensor","yes","Average incentive of 20% of project cost","We have assessed opportunities to upgrade to an efficient economizer controller sensor on our rooftop heating, ventilation & air conditioning system.","BC Hydro funding is available. Assess the cost effectiveness of upgrading your rooftop heating, ventilation & air conditioning system with an efficient economizer controller sensor.","https://www.bchydro.com/ecatalog/",{"$f":"INDEX(Table1[Evaluator Question Set],MATCH(Sector,Table1[BC Hydro Sector Allocation],0))=Table3[[#This Row],[Question set]]","v":{"$error":"#N/A"}},{"$f":"IF(Table3[[#This Row],[Selected]],INDIRECT(\"'\"&INDEX(Table5[SheetName],MATCH(Table3[[#This Row],[Diagnostic Heading]],Table5[Diagnostic Heading],0))&\"'\"&\"!C\"&11+Table3[[#This Row],[Q]]),\"\")","v":{"$error":"#N/A"}},{"$f":"IFERROR(AND(Table3[[#This Row],[BCH Funded]]=\"Yes\",Table3[[#This Row],[Answer]]=\"No\"),\"\")","v":""},{"$f":"IFERROR(AND(Table3[[#This Row],[BCH Funded]]=\"no\",Table3[[#This Row],[Answer]]=\"No\"),\"\")","v":""},{"$f":"IFERROR(IF(Table3[[#This Row],[Answer]]=\"No\",INDEX(Table10[],MATCH(INDEX(Table8[CPR Type],MATCH(Table3[[#This Row],[Report Heading]],Table8[Report Heading],0)),Table10[Segment],0),MATCH(Table3[[#This Row],[Question set]],Table10[#Headers],0)),0),0.01/COUNTIFS(Table3[Question set],INDEX(Table1[Evaluator Question Set],MATCH(Sector,Table1[BC Hydro Sector Allocation],0)),Table3[Diagnostic Heading],Table3[[#This Row],[Diagnostic Heading]],Table3[Selected],TRUE))","v":{"$error":"#DIV/0!"}},1,0.1,{"$f":"Table3[[#This Row],[a]]*Table3[[#This Row],[b]]*Table3[[#This Row],[c]]","v":{"$error":"#DIV/0!"}},{"$f":"Table3[[#This Row],[ES Percent]]*AnnEgyCons","v":{"$error":"#DIV/0!"}},true,"Stan Ma: past experience"]
[{"$f":"INDEX(Table7[Q],MATCH(Table3[[#This Row],[Question set]],Table7[Question Set],0))&\".\"&INDEX(Table5[S],MATCH(Table3[[#This Row],[Diagnostic Heading]],Table5[Diagnostic Heading],0))&\".\"&Table3[[#This Row],[Q]]","v":"2.4.4"},"Retail (non-food)","Energy Efficient Equipment",4,"Office Equipment","no",null,"We have upgraded our power bars to energy efficient power bars.","Consider upgrading the power bars on your office equipment to the latest current-sensing power bars. Learn more about BC Hydro’s financial incentives for this technology through the link below.","https://www.energystar.gov/products/low_carbon_it_campaign/more_it_energy_saving_tips",{"$f":"INDEX(Table1[Evaluator Question Set],MATCH(Sector,Table1[BC Hydro Sector Allocation],0))=Table3[[#This Row],[Question set]]","v":{"$error":"#N/A"}},{"$f":"IF(Table3[[#This Row],[Selected]],INDIRECT(\"'\"&INDEX(Table5[SheetName],MATCH(Table3[[#This Row],[Diagnostic Heading]],Table5[Diagnostic Heading],0))&\"'\"&\"!C\"&11+Table3[[#This Row],[Q]]),\"\")","v":{"$error":"#N/A"}},{"$f":"IFERROR(AND(Table3[[#This Row],[BCH Funded]]=\"Yes\",Table3[[#This Row],[Answer]]=\"No\"),\"\")","v":""},{"$f":"IFERROR(AND(Table3[[#This Row],[BCH Funded]]=\"no\",Table3[[#This Row],[Answer]]=\"No\"),\"\")","v":""},{"$f":"IFERROR(IF(Table3[[#This Row],[Answer]]=\"No\",INDEX(Table10[],MATCH(INDEX(Table8[CPR Type],MATCH(Table3[[#This Row],[Report Heading]],Table8[Report Heading],0)),Table10[Segment],0),MATCH(Table3[[#This Row],[Question set]],Table10[#Headers],0)),0),0.01/COUNTIFS(Table3[Question set],INDEX(Table1[Evaluator Question Set],MATCH(Sector,Table1[BC Hydro Sector Allocation],0)),Table3[Diagnostic Heading],Table3[[#This Row],[Diagnostic Heading]],Table3[Selected],TRUE))","v":{"$error":"#DIV/0!"}},1,0.05,{"$f":"Table3[[#This Row],[a]]*Table3[[#This Row],[b]]*Table3[[#This Row],[c]]","v":{"$error":"#DIV/0!"}},{"$f":"Table3[[#This Row],[ES Percent]]*AnnEgyCons","v":{"$error":"#DIV/0!"}},true,"Past commercial incentives"]
[{"$f":"INDEX(Table7[Q],MATCH(Table3[[#This Row],[Question set]],Table7[Question Set],0))&\".\"&INDEX(Table5[S],MATCH(Table3[[#This Row],[Diagnostic Heading]],Table5[Diagnostic Heading],0))&\".\"&Table3[[#This Row],[Q]]","v":"2.5.1"},"Retail (non-food)","Operating and Maintenance Practices",1,"Hot water control","no",null,"We have explored how to reduce hot water temperature while still maintaining required sanitary conditions.","Look into the possibility of reducing your hot water temperature while still maintaining required sanitary conditions. You'll be surprised at what can be saved through reducing hot water temperature without degrading the use. Learn more about water heating and usage through the link below.","https://www.bchydro.com/powersmart/business/technologies-equipment/heating-cooling.html",{"$f":"INDEX(Table1[Evaluator Question Set],MATCH(Sector,Table1[BC Hydro Sector Allocation],0))=Table3[[#This Row],[Question set]]","v":{"$error":"#N/A"}},{"$f":"IF(Table3[[#This Row],[Selected]],INDIRECT(\"'\"&INDEX(Table5[SheetName],MATCH(Table3[[#This Row],[Diagnostic Heading]],Table5[Diagnostic Heading],0))&\"'\"&\"!C\"&11+Table3[[#This Row],[Q]]),\"\")","v":{"$error":"#N/A"}},{"$f":"IFERROR(AND(Table3[[#This Row],[BCH Funded]]=\"Yes\",Table3[[#This Row],[Answer]]=\"No\"),\"\")","v":""},{"$f":"IFERROR(AND(Table3[[#This Row],[BCH Funded]]=\"no\",Table3[[#This Row],[Answer]]=\"No\"),\"\")","v":""},{"$f":"IFERROR(IF(Table3[[#This Row],[Answer]]=\"No\",INDEX(Table10[],MATCH(INDEX(Table8[CPR Type],MATCH(Table3[[#This Row],[Report Heading]],Table8[Report Heading],0)),Table10[Segment],0),MATCH(Table3[[#This Row],[Question set]],Table10[#Headers],0)),0),0.01/COUNTIFS(Table3[Question set],INDEX(Table1[Evaluator Question Set],MATCH(Sector,Table1[BC Hydro Sector Allocation],0)),Table3[Diagnostic Heading],Table3[[#This Row],[Diagnostic Heading]],Table3[Selected],TRUE))","v":{"$error":"#DIV/0!"}},1,1,{"$f":"Table3[[#This Row],[a]]*Table3[[#This Row],[b]]*Table3[[#This Row],[c]]","v":{"$error":"#DIV/0!"}},{"$f":"Table3[[#This Row],[ES Percent]]*AnnEgyCons","v":{"$error":"#DIV/0!"}},true]
[{"$f":"INDEX(Table7[Q],MATCH(Table3[[#This Row],[Question set]],Table7[Question Set],0))&\".\"&INDEX(Table5[S],MATCH(Table3[[#This Row],[Diagnostic Heading]],Table5[Diagnostic Heading],0))&\".\"&Table3[[#This Row],[Q]]","v":"2.5.2"},"Retail (non-food)","Operating and Maintenance Practices",2,"Staff operating procedures","no",null,"Our staff turns off equipment when not needed (e.g., turns off lights and equipment when not in use, after hours and on weekends).","The most important tip for your business is “turn it off!!”. Introduce procedures to encourage staff to turn off equipment when not needed (e.g. turn off lights and office equipment when not in use, after hours and on weekends). Find more tips and information about how and when to turn off equipment through the link below.","https://www.bchydro.com/powersmart/business/technologies-equipment/lighting-systems.html#1",{"$f":"INDEX(Table1[Evaluator Question Set],MATCH(Sector,Table1[BC Hydro Sector Allocation],0))=Table3[[#This Row],[Question set]]","v":{"$error":"#N/A"}},{"$f":"IF(Table3[[#This Row],[Selected]],INDIRECT(\"'\"&INDEX(Table5[SheetName],MATCH(Table3[[#This Row],[Diagnostic Heading]],Table5[Diagnostic Heading],0))&\"'\"&\"!C\"&11+Table3[[#This Row],[Q]]),\"\")","v":{"$error":"#N/A"}},{"$f":"IFERROR(AND(Table3[[#This Row],[BCH Funded]]=\"Yes\",Table3[[#This Row],[Answer]]=\"No\"),\"\")","v":""},{"$f":"IFERROR(AND(Table3[[#This Row],[BCH Funded]]=\"no\",Table3[[#This Row],[Answer]]=\"No\"),\"\")","v":""},{"$f":"IFERROR(IF(Table3[[#This Row],[Answer]]=\"No\",INDEX(Table10[],MATCH(INDEX(Table8[CPR Type],MATCH(Table3[[#This Row],[Report Heading]],Table8[Report Heading],0)),Table10[Segment],0),MATCH(Table3[[#This Row],[Question set]],Table10[#Headers],0)),0),0.01/COUNTIFS(Table3[Question set],INDEX(Table1[Evaluator Question Set],MATCH(Sector,Table1[BC Hydro Sector Allocation],0)),Table3[Diagnostic Heading],Table3[[#This Row],[Diagnostic Heading]],Table3[Selected],TRUE))","v":{"$error":"#DIV/0!"}},1,1,{"$f":"Table3[[#This Row],[a]]*Table3[[#This Row],[b]]*Table3[[#This Row],[c]]","v":{"$error":"#DIV/0!"}},{"$f":"Table3[[#This Row],[ES Percent]]*AnnEgyCons","v":{"$error":"#DIV/0!"}},true]
[{"$f":"INDEX(Table7[Q],MATCH(Table3[[#This Row],[Question set]],Table7[Question Set],0))&\".\"&INDEX(Table5[S],MATCH(Table3[[#This Row],[Diagnostic Heading]],Table5[Diagnostic Heading],0))&\".\"&Table3[[#This Row],[Q]]","v":"2.5.3"},"Retail (non-food)","Operating and Maintenance Practices",3,"Maintenance practices","no",null,"We conduct regular maintenance on our HVAC system (e.g. cleaning condenser coils, changing filters, checking operation of economizer).","Modify your maintenance procedures on your heating, ventilation & air conditioning system to include regular energy efficiency checks (e.g. cleaning condenser coils, changing filters, checking operation of economizers). HVAC systems are at their most efficient when they are well maintained. Learn more about maintenance procedures through the link below.","https://www.bchydro.com/powersmart/business/technologies-equipment/heating-cooling.html#d",{"$f":"INDEX(Table1[Evaluator Question Set],MATCH(Sector,Table1[BC Hydro Sector Allocation],0))=Table3[[#This Row],[Question set]]","v":{"$error":"#N/A"}},{"$f":"IF(Table3[[#This Row],[Selected]],INDIRECT(\"'\"&INDEX(Table5[SheetName],MATCH(Table3[[#This Row],[Diagnostic Heading]],Table5[Diagnostic Heading],0))&\"'\"&\"!C\"&11+Table3[[#This Row],[Q]]),\"\")","v":{"$error":"#N/A"}},{"$f":"IFERROR(AND(Table3[[#This Row],[BCH Funded]]=\"Yes\",Table3[[#This Row],[Answer]]=\"No\"),\"\")","v":""},{"$f":"IFERROR(AND(Table3[[#This Row],[BCH Funded]]=\"no\",Table3[[#This Row],[Answer]]=\"No\"),\"\")","v":""},{"$f":"IFERROR(IF(Table3[[#This Row],[Answer]]=\"No\",INDEX(Table10[],MATCH(INDEX(Table8[CPR Type],MATCH(Table3[[#This Row],[Report Heading]],Table8[Report Heading],0)),Table10[Segment],0),MATCH(Table3[[#This Row],[Question set]],Table10[#Headers],0)),0),0.01/COUNTIFS(Table3[Question set],INDEX(Table1[Evaluator Question Set],MATCH(Sector,Table1[BC Hydro Sector Allocation],0)),Table3[Diagnostic Heading],Table3[[#This Row],[Diagnostic Heading]],Table3[Selected],TRUE))","v":{"$error":"#DIV/0!"}},1,1,{"$f":"Table3[[#This Row],[a]]*Table3[[#This Row],[b]]*Table3[[#This Row],[c]]","v":{"$error":"#DIV/0!"}},{"$f":"Table3[[#This Row],[ES Percent]]*AnnEgyCons","v":{"$error":"#DIV/0!"}},true]
[{"$f":"INDEX(Table7[Q],MATCH(Table3[[#This Row],[Question set]],Table7[Question Set],0))&\".\"&INDEX(Table5[S],MATCH(Table3[[#This Row],[Diagnostic Heading]],Table5[Diagnostic Heading],0))&\".\"&Table3[[#This Row],[Q]]","v":"2.5.4"},"Retail (non-food)","Operating and Maintenance Practices",4,"Energy saving tips","no",null,"We have a list of energy saving tips for our type of business.","Prepare a list of energy saving tips for your type of business. BC Hydro Power Smart has tips available. Find energy saving tips through the link below.","https://www.bchydro.com/powersmart/business/technologies-equipment.html?WT.mc_id=rd_oldgreenyourbusiness",{"$f":"INDEX(Table1[Evaluator Question Set],MATCH(Sector,Table1[BC Hydro Sector Allocation],0))=Table3[[#This Row],[Question set]]","v":{"$error":"#N/A"}},{"$f":"IF(Table3[[#This Row],[Selected]],INDIRECT(\"'\"&INDEX(Table5[SheetName],MATCH(Table3[[#This Row],[Diagnostic Heading]],Table5[Diagnostic Heading],0))&\"'\"&\"!C\"&11+Table3[[#This Row],[Q]]),\"\")","v":{"$error":"#N/A"}},{"$f":"IFERROR(AND(Table3[[#This Row],[BCH Funded]]=\"Yes\",Table3[[#This Row],[Answer]]=\"No\"),\"\")","v":""},{"$f":"IFERROR(AND(Table3[[#This Row],[BCH Funded]]=\"no\",Table3[[#This Row],[Answer]]=\"No\"),\"\")","v":""},{"$f":"IFERROR(IF(Table3[[#This Row],[Answer]]=\"No\",INDEX(Table10[],MATCH(INDEX(Table8[CPR Type],MATCH(Table3[[#This Row],[Report Heading]],Table8[Report Heading],0)),Table10[Segment],0),MATCH(Table3[[#This Row],[Question set]],Table10[#Headers],0)),0),0.01/COUNTIFS(Table3[Question set],INDEX(Table1[Evaluator Question Set],MATCH(Sector,Table1[BC Hydro Sector Allocation],0)),Table3[Diagnostic Heading],Table3[[#This Row],[Diagnostic Heading]],Table3[Selected],TRUE))","v":{"$error":"#DIV/0!"}},1,1,{"$f":"Table3[[#This Row],[a]]*Table3[[#This Row],[b]]*Table3[[#This Row],[c]]","v":{"$error":"#DIV/0!"}},{"$f":"Table3[[#This Row],[ES Percent]]*AnnEgyCons","v":{"$error":"#DIV/0!"}},true]
[{"$f":"INDEX(Table7[Q],MATCH(Table3[[#This Row],[Question set]],Table7[Question Set],0))&\".\"&INDEX(Table5[S],MATCH(Table3[[#This Row],[Diagnostic Heading]],Table5[Diagnostic Heading],0))&\".\"&Table3[[#This Row],[Q]]","v":"2.5.5"},"Retail (non-food)","Operating and Maintenance Practices",5,"Staff Awareness","no",null,"We have conducted energy conservation awareness activities (e.g. signage, newsletters, competitions).","Conduct energy conservation awareness activities with your staff (e.g. signage, newsletters, competitions). Find tips and information on workplace conservation activities through the link below.","https://www.bchydro.com/powersmart/business/programs/workplace-conservation.html?WT.mc_id=rd_oldworkplaceconservationawareness",{"$f":"INDEX(Table1[Evaluator Question Set],MATCH(Sector,Table1[BC Hydro Sector Allocation],0))=Table3[[#This Row],[Question set]]","v":{"$error":"#N/A"}},{"$f":"IF(Table3[[#This Row],[Selected]],INDIRECT(\"'\"&INDEX(Table5[SheetName],MATCH(Table3[[#This Row],[Diagnostic Heading]],Table5[Diagnostic Heading],0))&\"'\"&\"!C\"&11+Table3[[#This Row],[Q]]),\"\")","v":{"$error":"#N/A"}},{"$f":"IFERROR(AND(Table3[[#This Row],[BCH Funded]]=\"Yes\",Table3[[#This Row],[Answer]]=\"No\"),\"\")","v":""},{"$f":"IFERROR(AND(Table3[[#This Row],[BCH Funded]]=\"no\",Table3[[#This Row],[Answer]]=\"No\"),\"\")","v":""},{"$f":"IFERROR(IF(Table3[[#This Row],[Answer]]=\"No\",INDEX(Table10[],MATCH(INDEX(Table8[CPR Type],MATCH(Table3[[#This Row],[Report Heading]],Table8[Report Heading],0)),Table10[Segment],0),MATCH(Table3[[#This Row],[Question set]],Table10[#Headers],0)),0),0.01/COUNTIFS(Table3[Question set],INDEX(Table1[Evaluator Question Set],MATCH(Sector,Table1[BC Hydro Sector Allocation],0)),Table3[Diagnostic Heading],Table3[[#This Row],[Diagnostic Heading]],Table3[Selected],TRUE))","v":{"$error":"#DIV/0!"}},1,1,{"$f":"Table3[[#This Row],[a]]*Table3[[#This Row],[b]]*Table3[[#This Row],[c]]","v":{"$error":"#DIV/0!"}},{"$f":"Table3[[#This Row],[ES Percent]]*AnnEgyCons","v":{"$error":"#DIV/0!"}},true]
[{"$f":"INDEX(Table7[Q],MATCH(Table3[[#This Row],[Question set]],Table7[Question Set],0))&\".\"&INDEX(Table5[S],MATCH(Table3[[#This Row],[Diagnostic Heading]],Table5[Diagnostic Heading],0))&\".\"&Table3[[#This Row],[Q]]","v":"2.6.1"},"Retail (non-food)","Management Practice",1,"Effective management of energy data","no",null,"We regularly go to bchydro.com and use MyHydro to track our energy usage.","Develop a process for managing energy bills and metered energy use information centrally. For example in a spreadsheet, database, or other online tool for ready access. Sign up to see your BC Hydro account information online using the link below.","https://www.bchydro.com/account/UI/Login?realm=bch-ps&goto=https%3A%2F%2Fwww.bchydro.com%3A443%2FBCHCustomerPortal%2Fweb%2Flogin.html",{"$f":"INDEX(Table1[Evaluator Question Set],MATCH(Sector,Table1[BC Hydro Sector Allocation],0))=Table3[[#This Row],[Question set]]","v":{"$error":"#N/A"}},{"$f":"IF(Table3[[#This Row],[Selected]],INDIRECT(\"'\"&INDEX(Table5[SheetName],MATCH(Table3[[#This Row],[Diagnostic Heading]],Table5[Diagnostic Heading],0))&\"'\"&\"!C\"&11+Table3[[#This Row],[Q]]),\"\")","v":{"$error":"#N/A"}},{"$f":"IFERROR(AND(Table3[[#This Row],[BCH Funded]]=\"Yes\",Table3[[#This Row],[Answer]]=\"No\"),\"\")","v":""},{"$f":"IFERROR(AND(Table3[[#This Row],[BCH Funded]]=\"no\",Table3[[#This Row],[Answer]]=\"No\"),\"\")","v":""},{"$f":"IFERROR(IF(Table3[[#This Row],[Answer]]=\"No\",INDEX(Table10[],MATCH(INDEX(Table8[CPR Type],MATCH(Table3[[#This Row],[Report Heading]],Table8[Report Heading],0)),Table10[Segment],0),MATCH(Table3[[#This Row],[Question set]],Table10[#Headers],0)),0),0.01/COUNTIFS(Table3[Question set],INDEX(Table1[Evaluator Question Set],MATCH(Sector,Table1[BC Hydro Sector Allocation],0)),Table3[Diagnostic Heading],Table3[[#This Row],[Diagnostic Heading]],Table3[Selected],TRUE))","v":{"$error":"#DIV/0!"}},1,1,{"$f":"Table3[[#This Row],[a]]*Table3[[#This Row],[b]]*Table3[[#This Row],[c]]","v":{"$error":"#DIV/0!"}},{"$f":"Table3[[#This Row],[ES Percent]]*AnnEgyCons","v":{"$error":"#DIV/0!"}},true]
[{"$f":"INDEX(Table7[Q],MATCH(Table3[[#This Row],[Question set]],Table7[Question Set],0))&\".\"&INDEX(Table5[S],MATCH(Table3[[#This Row],[Diagnostic Heading]],Table5[Diagnostic Heading],0))&\".\"&Table3[[#This Row],[Q]]","v":"2.6.2"},"Retail (non-food)","Management Practice",2,"Reporting systems for energy use","no",null,"We periodically report energy use for our business to relevant staff.","Establish a process to regularly report your energy efficiency to management and staff. Learn more about managing energy costs and consumption in your business through the link below.","https://www.bchydro.com/powersmart/business/types-of-business-customers.html",{"$f":"INDEX(Table1[Evaluator Question Set],MATCH(Sector,Table1[BC Hydro Sector Allocation],0))=Table3[[#This Row],[Question set]]","v":{"$error":"#N/A"}},{"$f":"IF(Table3[[#This Row],[Selected]],INDIRECT(\"'\"&INDEX(Table5[SheetName],MATCH(Table3[[#This Row],[Diagnostic Heading]],Table5[Diagnostic Heading],0))&\"'\"&\"!C\"&11+Table3[[#This Row],[Q]]),\"\")","v":{"$error":"#N/A"}},{"$f":"IFERROR(AND(Table3[[#This Row],[BCH Funded]]=\"Yes\",Table3[[#This Row],[Answer]]=\"No\"),\"\")","v":""},{"$f":"IFERROR(AND(Table3[[#This Row],[BCH Funded]]=\"no\",Table3[[#This Row],[Answer]]=\"No\"),\"\")","v":""},{"$f":"IFERROR(IF(Table3[[#This Row],[Answer]]=\"No\",INDEX(Table10[],MATCH(INDEX(Table8[CPR Type],MATCH(Table3[[#This Row],[Report Heading]],Table8[Report Heading],0)),Table10[Segment],0),MATCH(Table3[[#This Row],[Question set]],Table10[#Headers],0)),0),0.01/COUNTIFS(Table3[Question set],INDEX(Table1[Evaluator Question Set],MATCH(Sector,Table1[BC Hydro Sector Allocation],0)),Table3[Diagnostic Heading],Table3[[#This Row],[Diagnostic Heading]],Table3[Selected],TRUE))","v":{"$error":"#DIV/0!"}},1,1,{"$f":"Table3[[#This Row],[a]]*Table3[[#This Row],[b]]*Table3[[#This Row],[c]]","v":{"$error":"#DIV/0!"}},{"$f":"Table3[[#This Row],[ES Percent]]*AnnEgyCons","v":{"$error":"#DIV/0!"}},true]
[{"$f":"INDEX(Table7[Q],MATCH(Table3[[#This Row],[Question set]],Table7[Question Set],0))&\".\"&INDEX(Table5[S],MATCH(Table3[[#This Row],[Diagnostic Heading]],Table5[Diagnostic Heading],0))&\".\"&Table3[[#This Row],[Q]]","v":"2.6.3"},"Retail (non-food)","Management Practice",3,"Targets and Planning","no",null,"We have a target and action plan to reduce energy costs for the next year (e.g. kWh/sq. ft. by 10%).","Create a realistic target and action plan to reduce energy costs for the next year (e.g. kWh/sq. ft. by 10%). Find out how to manage your energy costs and consumption in your business through the link below.","https://www.bchydro.com/news/conservation/2014/myhydro-to-manage-energy-and-profitability.html",{"$f":"INDEX(Table1[Evaluator Question Set],MATCH(Sector,Table1[BC Hydro Sector Allocation],0))=Table3[[#This Row],[Question set]]","v":{"$error":"#N/A"}},{"$f":"IF(Table3[[#This Row],[Selected]],INDIRECT(\"'\"&INDEX(Table5[SheetName],MATCH(Table3[[#This Row],[Diagnostic Heading]],Table5[Diagnostic Heading],0))&\"'\"&\"!C\"&11+Table3[[#This Row],[Q]]),\"\")","v":{"$error":"#N/A"}},{"$f":"IFERROR(AND(Table3[[#This Row],[BCH Funded]]=\"Yes\",Table3[[#This Row],[Answer]]=\"No\"),\"\")","v":""},{"$f":"IFERROR(AND(Table3[[#This Row],[BCH Funded]]=\"no\",Table3[[#This Row],[Answer]]=\"No\"),\"\")","v":""},{"$f":"IFERROR(IF(Table3[[#This Row],[Answer]]=\"No\",INDEX(Table10[],MATCH(INDEX(Table8[CPR Type],MATCH(Table3[[#This Row],[Report Heading]],Table8[Report Heading],0)),Table10[Segment],0),MATCH(Table3[[#This Row],[Question set]],Table10[#Headers],0)),0),0.01/COUNTIFS(Table3[Question set],INDEX(Table1[Evaluator Question Set],MATCH(Sector,Table1[BC Hydro Sector Allocation],0)),Table3[Diagnostic Heading],Table3[[#This Row],[Diagnostic Heading]],Table3[Selected],TRUE))","v":{"$error":"#DIV/0!"}},1,1,{"$f":"Table3[[#This Row],[a]]*Table3[[#This Row],[b]]*Table3[[#This Row],[c]]","v":{"$error":"#DIV/0!"}},{"$f":"Table3[[#This Row],[ES Percent]]*AnnEgyCons","v":{"$error":"#DIV/0!"}},true]
[{"$f":"INDEX(Table7[Q],MATCH(Table3[[#This Row],[Question set]],Table7[Question Set],0))&\".\"&INDEX(Table5[S],MATCH(Table3[[#This Row],[Diagnostic Heading]],Table5[Diagnostic Heading],0))&\".\"&Table3[[#This Row],[Q]]","v":"2.6.4"},"Retail (non-food)","Management Practice",4,"Understanding of energy performance and opportunities","no",null,"We have completed an energy audit, which has quantified costs and savings opportunities.","Conduct an energy audit to quantify costs and identify savings opportunities. Learn how to do an energy audit and build a business case for energy efficiency through the link below.","http://www.bchydro.com/powersmart/business/business-energy-advisors.html?WT.mc_id=rd_bea",{"$f":"INDEX(Table1[Evaluator Question Set],MATCH(Sector,Table1[BC Hydro Sector Allocation],0))=Table3[[#This Row],[Question set]]","v":{"$error":"#N/A"}},{"$f":"IF(Table3[[#This Row],[Selected]],INDIRECT(\"'\"&INDEX(Table5[SheetName],MATCH(Table3[[#This Row],[Diagnostic Heading]],Table5[Diagnostic Heading],0))&\"'\"&\"!C\"&11+Table3[[#This Row],[Q]]),\"\")","v":{"$error":"#N/A"}},{"$f":"IFERROR(AND(Table3[[#This Row],[BCH Funded]]=\"Yes\",Table3[[#This Row],[Answer]]=\"No\"),\"\")","v":""},{"$f":"IFERROR(AND(Table3[[#This Row],[BCH Funded]]=\"no\",Table3[[#This Row],[Answer]]=\"No\"),\"\")","v":""},{"$f":"IFERROR(IF(Table3[[#This Row],[Answer]]=\"No\",INDEX(Table10[],MATCH(INDEX(Table8[CPR Type],MATCH(Table3[[#This Row],[Report Heading]],Table8[Report Heading],0)),Table10[Segment],0),MATCH(Table3[[#This Row],[Question set]],Table10[#Headers],0)),0),0.01/COUNTIFS(Table3[Question set],INDEX(Table1[Evaluator Question Set],MATCH(Sector,Table1[BC Hydro Sector Allocation],0)),Table3[Diagnostic Heading],Table3[[#This Row],[Diagnostic Heading]],Table3[Selected],TRUE))","v":{"$error":"#DIV/0!"}},1,1,{"$f":"Table3[[#This Row],[a]]*Table3[[#This Row],[b]]*Table3[[#This Row],[c]]","v":{"$error":"#DIV/0!"}},{"$f":"Table3[[#This Row],[ES Percent]]*AnnEgyCons","v":{"$error":"#DIV/0!"}},true]
[{"$f":"INDEX(Table7[Q],MATCH(Table3[[#This Row],[Question set]],Table7[Question Set],0))&\".\"&INDEX(Table5[S],MATCH(Table3[[#This Row],[Diagnostic Heading]],Table5[Diagnostic Heading],0))&\".\"&Table3[[#This Row],[Q]]","v":"2.6.5"},"Retail (non-food)","Management Practice",5,"Purchasing","no",null,"We use energy efficient guidelines and product catalogues when buying equipment or specify standards in our procurement process.","Use Power Smart buying guides and product catalogues when buying equipment or specify energy efficiency standards in your procurement process. Visit the link below for BC Hydro Power Smart buying guides.","https://www.bchydro.com/powersmart/business/technologies-equipment.html\nhttps://www.energystar.gov/products?s=mega",{"$f":"INDEX(Table1[Evaluator Question Set],MATCH(Sector,Table1[BC Hydro Sector Allocation],0))=Table3[[#This Row],[Question set]]","v":{"$error":"#N/A"}},{"$f":"IF(Table3[[#This Row],[Selected]],INDIRECT(\"'\"&INDEX(Table5[SheetName],MATCH(Table3[[#This Row],[Diagnostic Heading]],Table5[Diagnostic Heading],0))&\"'\"&\"!C\"&11+Table3[[#This Row],[Q]]),\"\")","v":{"$error":"#N/A"}},{"$f":"IFERROR(AND(Table3[[#This Row],[BCH Funded]]=\"Yes\",Table3[[#This Row],[Answer]]=\"No\"),\"\")","v":""},{"$f":"IFERROR(AND(Table3[[#This Row],[BCH Funded]]=\"no\",Table3[[#This Row],[Answer]]=\"No\"),\"\")","v":""},{"$f":"IFERROR(IF(Table3[[#This Row],[Answer]]=\"No\",INDEX(Table10[],MATCH(INDEX(Table8[CPR Type],MATCH(Table3[[#This Row],[Report Heading]],Table8[Report Heading],0)),Table10[Segment],0),MATCH(Table3[[#This Row],[Question set]],Table10[#Headers],0)),0),0.01/COUNTIFS(Table3[Question set],INDEX(Table1[Evaluator Question Set],MATCH(Sector,Table1[BC Hydro Sector Allocation],0)),Table3[Diagnostic Heading],Table3[[#This Row],[Diagnostic Heading]],Table3[Selected],TRUE))","v":{"$error":"#DIV/0!"}},1,1,{"$f":"Table3[[#This Row],[a]]*Table3[[#This Row],[b]]*Table3[[#This Row],[c]]","v":{"$error":"#DIV/0!"}},{"$f":"Table3[[#This Row],[ES Percent]]*AnnEgyCons","v":{"$error":"#DIV/0!"}},true]
[{"$f":"INDEX(Table7[Q],MATCH(Table3[[#This Row],[Question set]],Table7[Question Set],0))&\".\"&INDEX(Table5[S],MATCH(Table3[[#This Row],[Diagnostic Heading]],Table5[Diagnostic Heading],0))&\".\"&Table3[[#This Row],[Q]]","v":"3.1.1"},"Office","Lighting",1,"LED Lighting","No",null,"We have upgraded our incandescent lighting to energy efficient LED lamps.","BC Hydro funding is available. Assess the cost effectiveness of upgrading your incandescent lighting to energy efficient LEDs. LEDs use at least 75% less energy than a standard incandescent and last about 15 to 20 times longer than incandescent lighting, and about three times longer than CFLs. Learn more about LEDs by clicking the link below. ","http://www.bchydro.com/news/conservation/2014/led-lighting-increasingly-popular.html",{"$f":"INDEX(Table1[Evaluator Question Set],MATCH(Sector,Table1[BC Hydro Sector Allocation],0))=Table3[[#This Row],[Question set]]","v":{"$error":"#N/A"}},{"$f":"IF(Table3[[#This Row],[Selected]],INDIRECT(\"'\"&INDEX(Table5[SheetName],MATCH(Table3[[#This Row],[Diagnostic Heading]],Table5[Diagnostic Heading],0))&\"'\"&\"!C\"&11+Table3[[#This Row],[Q]]),\"\")","v":{"$error":"#N/A"}},{"$f":"IFERROR(AND(Table3[[#This Row],[BCH Funded]]=\"Yes\",Table3[[#This Row],[Answer]]=\"No\"),\"\")","v":""},{"$f":"IFERROR(AND(Table3[[#This Row],[BCH Funded]]=\"no\",Table3[[#This Row],[Answer]]=\"No\"),\"\")","v":""},{"$f":"IFERROR(IF(Table3[[#This Row],[Answer]]=\"No\",INDEX(Table10[],MATCH(INDEX(Table8[CPR Type],MATCH(Table3[[#This Row],[Report Heading]],Table8[Report Heading],0)),Table10[Segment],0),MATCH(Table3[[#This Row],[Question set]],Table10[#Headers],0)),0),0.01/COUNTIFS(Table3[Question set],INDEX(Table1[Evaluator Question Set],MATCH(Sector,Table1[BC Hydro Sector Allocation],0)),Table3[Diagnostic Heading],Table3[[#This Row],[Diagnostic Heading]],Table3[Selected],TRUE))","v":{"$error":"#DIV/0!"}},0.1,0.75,{"$f":"Table3[[#This Row],[a]]*Table3[[#This Row],[b]]*Table3[[#This Row],[c]]","v":{"$error":"#DIV/0!"}},{"$f":"Table3[[#This Row],[ES Percent]]*AnnEgyCons","v":{"$error":"#DIV/0!"}},true,"Cristian Suvagau"]
[{"$f":"INDEX(Table7[Q],MATCH(Table3[[#This Row],[Question set]],Table7[Question Set],0))&\".\"&INDEX(Table5[S],MATCH(Table3[[#This Row],[Diagnostic Heading]],Table5[Diagnostic Heading],0))&\".\"&Table3[[#This Row],[Q]]","v":"3.1.2"},"Office","Lighting",2,"Fluorescent lighting","yes","Average incentive of 25% of project cost when upgrading to LED","Our fluorescent lighting uses energy efficient T8 or T5 tubes.","Consider upgrading your fluorescent lighting to energy efficient T8 lamps. If you currently have T12 lamps, upgrading to the latest T8 lamps and electronic ballasts could reduce your lighting costs by up to 40%.  Also consider upgrading to LEDs to increase your savings by up to 60% and be eligible for BC Hydro incentives.","https://www.bchydro.com/ecatalog/eCatServlet?cmd=all_psp_incentives&existId=&energyId=13&p=1&sb=3&dir=1&ip=50",{"$f":"INDEX(Table1[Evaluator Question Set],MATCH(Sector,Table1[BC Hydro Sector Allocation],0))=Table3[[#This Row],[Question set]]","v":{"$error":"#N/A"}},{"$f":"IF(Table3[[#This Row],[Selected]],INDIRECT(\"'\"&INDEX(Table5[SheetName],MATCH(Table3[[#This Row],[Diagnostic Heading]],Table5[Diagnostic Heading],0))&\"'\"&\"!C\"&11+Table3[[#This Row],[Q]]),\"\")","v":{"$error":"#N/A"}},{"$f":"IFERROR(AND(Table3[[#This Row],[BCH Funded]]=\"Yes\",Table3[[#This Row],[Answer]]=\"No\"),\"\")","v":""},{"$f":"IFERROR(AND(Table3[[#This Row],[BCH Funded]]=\"no\",Table3[[#This Row],[Answer]]=\"No\"),\"\")","v":""},{"$f":"IFERROR(IF(Table3[[#This Row],[Answer]]=\"No\",INDEX(Table10[],MATCH(INDEX(Table8[CPR Type],MATCH(Table3[[#This Row],[Report Heading]],Table8[Report Heading],0)),Table10[Segment],0),MATCH(Table3[[#This Row],[Question set]],Table10[#Headers],0)),0),0.01/COUNTIFS(Table3[Question set],INDEX(Table1[Evaluator Question Set],MATCH(Sector,Table1[BC Hydro Sector Allocation],0)),Table3[Diagnostic Heading],Table3[[#This Row],[Diagnostic Heading]],Table3[Selected],TRUE))","v":{"$error":"#DIV/0!"}},0.8,0.3,{"$f":"Table3[[#This Row],[a]]*Table3[[#This Row],[b]]*Table3[[#This Row],[c]]","v":{"$error":"#DIV/0!"}},{"$f":"Table3[[#This Row],[ES Percent]]*AnnEgyCons","v":{"$error":"#DIV/0!"}},true,"Cristian Suvagau"]
[{"$f":"INDEX(Table7[Q],MATCH(Table3[[#This Row],[Question set]],Table7[Question Set],0))&\".\"&INDEX(Table5[S],MATCH(Table3[[#This Row],[Diagnostic Heading]],Table5[Diagnostic Heading],0))&\".\"&Table3[[#This Row],[Q]]","v":"3.1.3"},"Office","Lighting",3,"LED Exit lighting","no",null,"We have replaced incandescent exit signs with energy efficient LED exit signs.","Did you know that exit signs are now legislated by the federal government?","http://www.nrcan.gc.ca/energy/regulations-codes-standards/18419",{"$f":"INDEX(Table1[Evaluator Question Set],MATCH(Sector,Table1[BC Hydro Sector Allocation],0))=Table3[[#This Row],[Question set]]","v":{"$error":"#N/A"}},{"$f":"IF(Table3[[#This Row],[Selected]],INDIRECT(\"'\"&INDEX(Table5[SheetName],MATCH(Table3[[#This Row],[Diagnostic Heading]],Table5[Diagnostic Heading],0))&\"'\"&\"!C\"&11+Table3[[#This Row],[Q]]),\"\")","v":{"$error":"#N/A"}},{"$f":"IFERROR(AND(Table3[[#This Row],[BCH Funded]]=\"Yes\",Table3[[#This Row],[Answer]]=\"No\"),\"\")","v":""},{"$f":"IFERROR(AND(Table3[[#This Row],[BCH Funded]]=\"no\",Table3[[#This Row],[Answer]]=\"No\"),\"\")","v":""},{"$f":"IFERROR(IF(Table3[[#This Row],[Answer]]=\"No\",INDEX(Table10[],MATCH(INDEX(Table8[CPR Type],MATCH(Table3[[#This Row],[Report Heading]],Table8[Report Heading],0)),Table10[Segment],0),MATCH(Table3[[#This Row],[Question set]],Table10[#Headers],0)),0),0.01/COUNTIFS(Table3[Question set],INDEX(Table1[Evaluator Question Set],MATCH(Sector,Table1[BC Hydro Sector Allocation],0)),Table3[Diagnostic Heading],Table3[[#This Row],[Diagnostic Heading]],Table3[Selected],TRUE))","v":{"$error":"#DIV/0!"}},0.05,0.9,{"$f":"Table3[[#This Row],[a]]*Table3[[#This Row],[b]]*Table3[[#This Row],[c]]","v":{"$error":"#DIV/0!"}},{"$f":"Table3[[#This Row],[ES Percent]]*AnnEgyCons","v":{"$error":"#DIV/0!"}},true,"Cristian Suvagau"]
[{"$f":"INDEX(Table7[Q],MATCH(Table3[[#This Row],[Question set]],Table7[Question Set],0))&\".\"&INDEX(Table5[S],MATCH(Table3[[#This Row],[Diagnostic Heading]],Table5[Diagnostic Heading],0))&\".\"&Table3[[#This Row],[Q]]","v":"3.1.4"},"Office","Lighting",4,"Exterior Lighting","yes","Average incentive of 25% of project cost","We have upgraded our exterior lighting to energy efficient lamps and fixtures that reduce glare, light pollution and lighting costs (e.g. in parking lots).","Consider upgrading your exterior lighting (e.g. in parking lots) to T8 fluorescent or LED (incentives available for specific LED technologies). These will provide savings and you can get your return even quicker with incentives.","https://www.bchydro.com/ecatalog/eCatServlet?cmd=all_psp_incentives&existId=&energyId=13&p=1&sb=3&dir=1&ip=50",{"$f":"INDEX(Table1[Evaluator Question Set],MATCH(Sector,Table1[BC Hydro Sector Allocation],0))=Table3[[#This Row],[Question set]]","v":{"$error":"#N/A"}},{"$f":"IF(Table3[[#This Row],[Selected]],INDIRECT(\"'\"&INDEX(Table5[SheetName],MATCH(Table3[[#This Row],[Diagnostic Heading]],Table5[Diagnostic Heading],0))&\"'\"&\"!C\"&11+Table3[[#This Row],[Q]]),\"\")","v":{"$error":"#N/A"}},{"$f":"IFERROR(AND(Table3[[#This Row],[BCH Funded]]=\"Yes\",Table3[[#This Row],[Answer]]=\"No\"),\"\")","v":""},{"$f":"IFERROR(AND(Table3[[#This Row],[BCH Funded]]=\"no\",Table3[[#This Row],[Answer]]=\"No\"),\"\")","v":""},{"$f":"IFERROR(IF(Table3[[#This Row],[Answer]]=\"No\",INDEX(Table10[],MATCH(INDEX(Table8[CPR Type],MATCH(Table3[[#This Row],[Report Heading]],Table8[Report Heading],0)),Table10[Segment],0),MATCH(Table3[[#This Row],[Question set]],Table10[#Headers],0)),0),0.01/COUNTIFS(Table3[Question set],INDEX(Table1[Evaluator Question Set],MATCH(Sector,Table1[BC Hydro Sector Allocation],0)),Table3[Diagnostic Heading],Table3[[#This Row],[Diagnostic Heading]],Table3[Selected],TRUE))","v":{"$error":"#DIV/0!"}},1,0.5,{"$f":"Table3[[#This Row],[a]]*Table3[[#This Row],[b]]*Table3[[#This Row],[c]]","v":{"$error":"#DIV/0!"}},{"$f":"Table3[[#This Row],[ES Percent]]*AnnEgyCons","v":{"$error":"#DIV/0!"}},true,"Cristian Suvagau"]
[{"$f":"INDEX(Table7[Q],MATCH(Table3[[#This Row],[Question set]],Table7[Question Set],0))&\".\"&INDEX(Table5[S],MATCH(Table3[[#This Row],[Diagnostic Heading]],Table5[Diagnostic Heading],0))&\".\"&Table3[[#This Row],[Q]]","v":"3.1.5"},"Office","Lighting",5,"Lighting control","No",null,"We have installed controls on lighting to turn off when not required (e.g. timers or occupancy sensors in offices and meeting rooms, daylight harvesting in offices).","Lighting controls can provide you with energy savings and better management of your lighting systems.  Adding lighting controls may be eligible for additional incentive funding when completing a lighting retrofit as not all controls energy savings are recognized by BC Hydro.","https://www.bchydro.com/ecatalog/eCatServlet?cmd=all_psp_incentives&existId=&energyId=14",{"$f":"INDEX(Table1[Evaluator Question Set],MATCH(Sector,Table1[BC Hydro Sector Allocation],0))=Table3[[#This Row],[Question set]]","v":{"$error":"#N/A"}},{"$f":"IF(Table3[[#This Row],[Selected]],INDIRECT(\"'\"&INDEX(Table5[SheetName],MATCH(Table3[[#This Row],[Diagnostic Heading]],Table5[Diagnostic Heading],0))&\"'\"&\"!C\"&11+Table3[[#This Row],[Q]]),\"\")","v":{"$error":"#N/A"}},{"$f":"IFERROR(AND(Table3[[#This Row],[BCH Funded]]=\"Yes\",Table3[[#This Row],[Answer]]=\"No\"),\"\")","v":""},{"$f":"IFERROR(AND(Table3[[#This Row],[BCH Funded]]=\"no\",Table3[[#This Row],[Answer]]=\"No\"),\"\")","v":""},{"$f":"IFERROR(IF(Table3[[#This Row],[Answer]]=\"No\",INDEX(Table10[],MATCH(INDEX(Table8[CPR Type],MATCH(Table3[[#This Row],[Report Heading]],Table8[Report Heading],0)),Table10[Segment],0),MATCH(Table3[[#This Row],[Question set]],Table10[#Headers],0)),0),0.01/COUNTIFS(Table3[Question set],INDEX(Table1[Evaluator Question Set],MATCH(Sector,Table1[BC Hydro Sector Allocation],0)),Table3[Diagnostic Heading],Table3[[#This Row],[Diagnostic Heading]],Table3[Selected],TRUE))","v":{"$error":"#DIV/0!"}},0.3,0.3,{"$f":"Table3[[#This Row],[a]]*Table3[[#This Row],[b]]*Table3[[#This Row],[c]]","v":{"$error":"#DIV/0!"}},{"$f":"Table3[[#This Row],[ES Percent]]*AnnEgyCons","v":{"$error":"#DIV/0!"}},true,"Cristian Suvagau"]
[{"$f":"INDEX(Table7[Q],MATCH(Table3[[#This Row],[Question set]],Table7[Question Set],0))&\".\"&INDEX(Table5[S],MATCH(Table3[[#This Row],[Diagnostic Heading]],Table5[Diagnostic Heading],0))&\".\"&Table3[[#This Row],[Q]]","v":"3.2.1"},"Office","Heating, Ventilation, Air Conditioning / Refrigeration",1,"Air tightness","no",null,"We have examined ways to improve the air-tightness of air-conditioned spaces (e.g. closing doors, windows and installing air curtains).","Stretch your legs. Have a walk around and look for where you could improve the air-tightness of air-conditioned spaces (e.g. closing doors, windows, installing air curtains). Learn more about air leakage control in your building through the link below.","http://www.energycodes.gov/sites/default/files/documents/BECP_Buidling%20Energy%20Code%20Resource%20Guide%20Air%20Leakage%20Guide_Sept2011_v00_lores.pdf ",{"$f":"INDEX(Table1[Evaluator Question Set],MATCH(Sector,Table1[BC Hydro Sector Allocation],0))=Table3[[#This Row],[Question set]]","v":{"$error":"#N/A"}},{"$f":"IF(Table3[[#This Row],[Selected]],INDIRECT(\"'\"&INDEX(Table5[SheetName],MATCH(Table3[[#This Row],[Diagnostic Heading]],Table5[Diagnostic Heading],0))&\"'\"&\"!C\"&11+Table3[[#This Row],[Q]]),\"\")","v":{"$error":"#N/A"}},{"$f":"IFERROR(AND(Table3[[#This Row],[BCH Funded]]=\"Yes\",Table3[[#This Row],[Answer]]=\"No\"),\"\")","v":""},{"$f":"IFERROR(AND(Table3[[#This Row],[BCH Funded]]=\"no\",Table3[[#This Row],[Answer]]=\"No\"),\"\")","v":""},{"$f":"IFERROR(IF(Table3[[#This Row],[Answer]]=\"No\",INDEX(Table10[],MATCH(INDEX(Table8[CPR Type],MATCH(Table3[[#This Row],[Report Heading]],Table8[Report Heading],0)),Table10[Segment],0),MATCH(Table3[[#This Row],[Question set]],Table10[#Headers],0)),0),0.01/COUNTIFS(Table3[Question set],INDEX(Table1[Evaluator Question Set],MATCH(Sector,Table1[BC Hydro Sector Allocation],0)),Table3[Diagnostic Heading],Table3[[#This Row],[Diagnostic Heading]],Table3[Selected],TRUE))","v":{"$error":"#DIV/0!"}},1,0.02,{"$f":"Table3[[#This Row],[a]]*Table3[[#This Row],[b]]*Table3[[#This Row],[c]]","v":{"$error":"#DIV/0!"}},{"$f":"Table3[[#This Row],[ES Percent]]*AnnEgyCons","v":{"$error":"#DIV/0!"}},true,"ASHRAE- Simulation of the Impact of Commercial Building Envelope Airtightness on Building Energy Utilization"]
[{"$f":"INDEX(Table7[Q],MATCH(Table3[[#This Row],[Question set]],Table7[Question Set],0))&\".\"&INDEX(Table5[S],MATCH(Table3[[#This Row],[Diagnostic Heading]],Table5[Diagnostic Heading],0))&\".\"&Table3[[#This Row],[Q]]","v":"3.2.2"},"Office","Heating, Ventilation, Air Conditioning / Refrigeration",2,"Heating / cooling controls","yes","Average incentive of 20% of project cost","We have upgraded our heating, ventilation & air conditioning system to include variable frequency drives on fans and pumps and/or variable speed ECM pumps.","BC Hydro funding is available. Consider upgrading your heating, ventilation & air conditioning system to include variable frequency drives on fans and pumps and/or variable speed ECM pumps.","https://www.bchydro.com/ecatalog/",{"$f":"INDEX(Table1[Evaluator Question Set],MATCH(Sector,Table1[BC Hydro Sector Allocation],0))=Table3[[#This Row],[Question set]]","v":{"$error":"#N/A"}},{"$f":"IF(Table3[[#This Row],[Selected]],INDIRECT(\"'\"&INDEX(Table5[SheetName],MATCH(Table3[[#This Row],[Diagnostic Heading]],Table5[Diagnostic Heading],0))&\"'\"&\"!C\"&11+Table3[[#This Row],[Q]]),\"\")","v":{"$error":"#N/A"}},{"$f":"IFERROR(AND(Table3[[#This Row],[BCH Funded]]=\"Yes\",Table3[[#This Row],[Answer]]=\"No\"),\"\")","v":""},{"$f":"IFERROR(AND(Table3[[#This Row],[BCH Funded]]=\"no\",Table3[[#This Row],[Answer]]=\"No\"),\"\")","v":""},{"$f":"IFERROR(IF(Table3[[#This Row],[Answer]]=\"No\",INDEX(Table10[],MATCH(INDEX(Table8[CPR Type],MATCH(Table3[[#This Row],[Report Heading]],Table8[Report Heading],0)),Table10[Segment],0),MATCH(Table3[[#This Row],[Question set]],Table10[#Headers],0)),0),0.01/COUNTIFS(Table3[Question set],INDEX(Table1[Evaluator Question Set],MATCH(Sector,Table1[BC Hydro Sector Allocation],0)),Table3[Diagnostic Heading],Table3[[#This Row],[Diagnostic Heading]],Table3[Selected],TRUE))","v":{"$error":"#DIV/0!"}},1,0.2,{"$f":"Table3[[#This Row],[a]]*Table3[[#This Row],[b]]*Table3[[#This Row],[c]]","v":{"$error":"#DIV/0!"}},{"$f":"Table3[[#This Row],[ES Percent]]*AnnEgyCons","v":{"$error":"#DIV/0!"}},true,"Past commercial incentives"]
[{"$f":"INDEX(Table7[Q],MATCH(Table3[[#This Row],[Question set]],Table7[Question Set],0))&\".\"&INDEX(Table5[S],MATCH(Table3[[#This Row],[Diagnostic Heading]],Table5[Diagnostic Heading],0))&\".\"&Table3[[#This Row],[Q]]","v":"3.2.3"},"Office","Heating, Ventilation, Air Conditioning / Refrigeration",3,"Heating and cooling temperature set points","no",null,"We have adjusted temperature settings for heating and cooling to minimize energy use.","Pay attention to your thermostat settings. Air conditioning thermostats should be set no lower than 25° C; each degree you raise your temperature setting can save on air conditioning costs. To achieve similar savings when heating, 20° C is the recommended temperature. Learn more about adjusting thermostats through the link below.","https://www.bchydro.com/powersmart/business/technologies-equipment/heating-cooling.html",{"$f":"INDEX(Table1[Evaluator Question Set],MATCH(Sector,Table1[BC Hydro Sector Allocation],0))=Table3[[#This Row],[Question set]]","v":{"$error":"#N/A"}},{"$f":"IF(Table3[[#This Row],[Selected]],INDIRECT(\"'\"&INDEX(Table5[SheetName],MATCH(Table3[[#This Row],[Diagnostic Heading]],Table5[Diagnostic Heading],0))&\"'\"&\"!C\"&11+Table3[[#This Row],[Q]]),\"\")","v":{"$error":"#N/A"}},{"$f":"IFERROR(AND(Table3[[#This Row],[BCH Funded]]=\"Yes\",Table3[[#This Row],[Answer]]=\"No\"),\"\")","v":""},{"$f":"IFERROR(AND(Table3[[#This Row],[BCH Funded]]=\"no\",Table3[[#This Row],[Answer]]=\"No\"),\"\")","v":""},{"$f":"IFERROR(IF(Table3[[#This Row],[Answer]]=\"No\",INDEX(Table10[],MATCH(INDEX(Table8[CPR Type],MATCH(Table3[[#This Row],[Report Heading]],Table8[Report Heading],0)),Table10[Segment],0),MATCH(Table3[[#This Row],[Question set]],Table10[#Headers],0)),0),0.01/COUNTIFS(Table3[Question set],INDEX(Table1[Evaluator Question Set],MATCH(Sector,Table1[BC Hydro Sector Allocation],0)),Table3[Diagnostic Heading],Table3[[#This Row],[Diagnostic Heading]],Table3[Selected],TRUE))","v":{"$error":"#DIV/0!"}},1,0.05,{"$f":"Table3[[#This Row],[a]]*Table3[[#This Row],[b]]*Table3[[#This Row],[c]]","v":{"$error":"#DIV/0!"}},{"$f":"Table3[[#This Row],[ES Percent]]*AnnEgyCons","v":{"$error":"#DIV/0!"}},true,"Past commercial incentives"]
[{"$f":"INDEX(Table7[Q],MATCH(Table3[[#This Row],[Question set]],Table7[Question Set],0))&\".\"&INDEX(Table5[S],MATCH(Table3[[#This Row],[Diagnostic Heading]],Table5[Diagnostic Heading],0))&\".\"&Table3[[#This Row],[Q]]","v":"3.2.4"},"Office","Heating, Ventilation, Air Conditioning / Refrigeration",4,"Economizer operation","no",null,"We regularly check the operation of the economizer on our heating, ventilation & air conditioning system (an economizer is a vent controlled to use cooler outside air to reduce the heating, ventilation & air conditioning system energy use).","Have your heating, ventilation and air conditioning economizer checked for correct operation (an economizer is a vent controlled to use cooler outside air to reduce the heating, ventilation and air conditioning system energy use). If the vent is not operating it can increase heating, ventilation and air conditioning system energy use by up to 50%. Learn more about economizers through the link below.","https://www.bchydro.com/powersmart/business/technologies-equipment/heating-cooling.html",{"$f":"INDEX(Table1[Evaluator Question Set],MATCH(Sector,Table1[BC Hydro Sector Allocation],0))=Table3[[#This Row],[Question set]]","v":{"$error":"#N/A"}},{"$f":"IF(Table3[[#This Row],[Selected]],INDIRECT(\"'\"&INDEX(Table5[SheetName],MATCH(Table3[[#This Row],[Diagnostic Heading]],Table5[Diagnostic Heading],0))&\"'\"&\"!C\"&11+Table3[[#This Row],[Q]]),\"\")","v":{"$error":"#N/A"}},{"$f":"IFERROR(AND(Table3[[#This Row],[BCH Funded]]=\"Yes\",Table3[[#This Row],[Answer]]=\"No\"),\"\")","v":""},{"$f":"IFERROR(AND(Table3[[#This Row],[BCH Funded]]=\"no\",Table3[[#This Row],[Answer]]=\"No\"),\"\")","v":""},{"$f":"IFERROR(IF(Table3[[#This Row],[Answer]]=\"No\",INDEX(Table10[],MATCH(INDEX(Table8[CPR Type],MATCH(Table3[[#This Row],[Report Heading]],Table8[Report Heading],0)),Table10[Segment],0),MATCH(Table3[[#This Row],[Question set]],Table10[#Headers],0)),0),0.01/COUNTIFS(Table3[Question set],INDEX(Table1[Evaluator Question Set],MATCH(Sector,Table1[BC Hydro Sector Allocation],0)),Table3[Diagnostic Heading],Table3[[#This Row],[Diagnostic Heading]],Table3[Selected],TRUE))","v":{"$error":"#DIV/0!"}},1,0.2,{"$f":"Table3[[#This Row],[a]]*Table3[[#This Row],[b]]*Table3[[#This Row],[c]]","v":{"$error":"#DIV/0!"}},{"$f":"Table3[[#This Row],[ES Percent]]*AnnEgyCons","v":{"$error":"#DIV/0!"}},true,"Stan Ma: Catalyst DEMO Richmond Center = 29%"]
[{"$f":"INDEX(Table7[Q],MATCH(Table3[[#This Row],[Question set]],Table7[Question Set],0))&\".\"&INDEX(Table5[S],MATCH(Table3[[#This Row],[Diagnostic Heading]],Table5[Diagnostic Heading],0))&\".\"&Table3[[#This Row],[Q]]","v":"3.2.5"},"Office","Heating, Ventilation, Air Conditioning / Refrigeration",5,"Economizer sensor","yes","Average incentive of 20% of project cost","We have assessed opportunities to upgrade to an efficient economizer controller sensor on our rooftop heating, ventilation & air conditioning system.","BC Hydro funding is available. Assess the cost effectiveness of upgrading your rooftop heating, ventilation & air conditioning system with an efficient economizer controller sensor.","https://www.bchydro.com/ecatalog/",{"$f":"INDEX(Table1[Evaluator Question Set],MATCH(Sector,Table1[BC Hydro Sector Allocation],0))=Table3[[#This Row],[Question set]]","v":{"$error":"#N/A"}},{"$f":"IF(Table3[[#This Row],[Selected]],INDIRECT(\"'\"&INDEX(Table5[SheetName],MATCH(Table3[[#This Row],[Diagnostic Heading]],Table5[Diagnostic Heading],0))&\"'\"&\"!C\"&11+Table3[[#This Row],[Q]]),\"\")","v":{"$error":"#N/A"}},{"$f":"IFERROR(AND(Table3[[#This Row],[BCH Funded]]=\"Yes\",Table3[[#This Row],[Answer]]=\"No\"),\"\")","v":""},{"$f":"IFERROR(AND(Table3[[#This Row],[BCH Funded]]=\"no\",Table3[[#This Row],[Answer]]=\"No\"),\"\")","v":""},{"$f":"IFERROR(IF(Table3[[#This Row],[Answer]]=\"No\",INDEX(Table10[],MATCH(INDEX(Table8[CPR Type],MATCH(Table3[[#This Row],[Report Heading]],Table8[Report Heading],0)),Table10[Segment],0),MATCH(Table3[[#This Row],[Question set]],Table10[#Headers],0)),0),0.01/COUNTIFS(Table3[Question set],INDEX(Table1[Evaluator Question Set],MATCH(Sector,Table1[BC Hydro Sector Allocation],0)),Table3[Diagnostic Heading],Table3[[#This Row],[Diagnostic Heading]],Table3[Selected],TRUE))","v":{"$error":"#DIV/0!"}},1,0.1,{"$f":"Table3[[#This Row],[a]]*Table3[[#This Row],[b]]*Table3[[#This Row],[c]]","v":{"$error":"#DIV/0!"}},{"$f":"Table3[[#This Row],[ES Percent]]*AnnEgyCons","v":{"$error":"#DIV/0!"}},true,"Stan Ma: past experience"]
[{"$f":"INDEX(Table7[Q],MATCH(Table3[[#This Row],[Question set]],Table7[Question Set],0))&\".\"&INDEX(Table5[S],MATCH(Table3[[#This Row],[Diagnostic Heading]],Table5[Diagnostic Heading],0))&\".\"&Table3[[#This Row],[Q]]","v":"3.4.1"},"Office","Energy Efficient Equipment",1,"Office equipment","no",null,"We have checked to ensure that the energy saver mode is enabled on our office equipment (e.g. computers, copiers, printers).","Check to confirm that the Energy Star® mode is enabled on your office equipment (e.g. computers, copiers and printers). Energy Star® is a low-power sleep mode that saves energy when the equipment is not used for a period. It is included in most office equipment, but often not enabled. Learn more about operating your office equipment efficiently through the link below. Learn more about operating your office equipment efficiently through the link below.","https://www.energystar.gov/products/office_equipment",{"$f":"INDEX(Table1[Evaluator Question Set],MATCH(Sector,Table1[BC Hydro Sector Allocation],0))=Table3[[#This Row],[Question set]]","v":{"$error":"#N/A"}},{"$f":"IF(Table3[[#This Row],[Selected]],INDIRECT(\"'\"&INDEX(Table5[SheetName],MATCH(Table3[[#This Row],[Diagnostic Heading]],Table5[Diagnostic Heading],0))&\"'\"&\"!C\"&11+Table3[[#This Row],[Q]]),\"\")","v":{"$error":"#N/A"}},{"$f":"IFERROR(AND(Table3[[#This Row],[BCH Funded]]=\"Yes\",Table3[[#This Row],[Answer]]=\"No\"),\"\")","v":""},{"$f":"IFERROR(AND(Table3[[#This Row],[BCH Funded]]=\"no\",Table3[[#This Row],[Answer]]=\"No\"),\"\")","v":""},{"$f":"IFERROR(IF(Table3[[#This Row],[Answer]]=\"No\",INDEX(Table10[],MATCH(INDEX(Table8[CPR Type],MATCH(Table3[[#This Row],[Report Heading]],Table8[Report Heading],0)),Table10[Segment],0),MATCH(Table3[[#This Row],[Question set]],Table10[#Headers],0)),0),0.01/COUNTIFS(Table3[Question set],INDEX(Table1[Evaluator Question Set],MATCH(Sector,Table1[BC Hydro Sector Allocation],0)),Table3[Diagnostic Heading],Table3[[#This Row],[Diagnostic Heading]],Table3[Selected],TRUE))","v":{"$error":"#DIV/0!"}},1,0.35,{"$f":"Table3[[#This Row],[a]]*Table3[[#This Row],[b]]*Table3[[#This Row],[c]]","v":{"$error":"#DIV/0!"}},{"$f":"Table3[[#This Row],[ES Percent]]*AnnEgyCons","v":{"$error":"#DIV/0!"}},true,"https://www.energystar.gov/products/low_carbon_it_campaign/implementation_resources_enterprises/commercial_software"]
[{"$f":"INDEX(Table7[Q],MATCH(Table3[[#This Row],[Question set]],Table7[Question Set],0))&\".\"&INDEX(Table5[S],MATCH(Table3[[#This Row],[Diagnostic Heading]],Table5[Diagnostic Heading],0))&\".\"&Table3[[#This Row],[Q]]","v":"3.4.2"},"Office","Energy Efficient Equipment",2,"Office Equipment","no",null,"We have upgraded our power bars to energy efficient power bars.","Consider upgrading the power bars on your office equipment to the latest current-sensing power bars. Learn more about BC Hydro’s financial incentives for this technology through the link below.","https://www.energystar.gov/products/low_carbon_it_campaign/more_it_energy_saving_tips",{"$f":"INDEX(Table1[Evaluator Question Set],MATCH(Sector,Table1[BC Hydro Sector Allocation],0))=Table3[[#This Row],[Question set]]","v":{"$error":"#N/A"}},{"$f":"IF(Table3[[#This Row],[Selected]],INDIRECT(\"'\"&INDEX(Table5[SheetName],MATCH(Table3[[#This Row],[Diagnostic Heading]],Table5[Diagnostic Heading],0))&\"'\"&\"!C\"&11+Table3[[#This Row],[Q]]),\"\")","v":{"$error":"#N/A"}},{"$f":"IFERROR(AND(Table3[[#This Row],[BCH Funded]]=\"Yes\",Table3[[#This Row],[Answer]]=\"No\"),\"\")","v":""},{"$f":"IFERROR(AND(Table3[[#This Row],[BCH Funded]]=\"no\",Table3[[#This Row],[Answer]]=\"No\"),\"\")","v":""},{"$f":"IFERROR(IF(Table3[[#This Row],[Answer]]=\"No\",INDEX(Table10[],MATCH(INDEX(Table8[CPR Type],MATCH(Table3[[#This Row],[Report Heading]],Table8[Report Heading],0)),Table10[Segment],0),MATCH(Table3[[#This Row],[Question set]],Table10[#Headers],0)),0),0.01/COUNTIFS(Table3[Question set],INDEX(Table1[Evaluator Question Set],MATCH(Sector,Table1[BC Hydro Sector Allocation],0)),Table3[Diagnostic Heading],Table3[[#This Row],[Diagnostic Heading]],Table3[Selected],TRUE))","v":{"$error":"#DIV/0!"}},1,0.1,{"$f":"Table3[[#This Row],[a]]*Table3[[#This Row],[b]]*Table3[[#This Row],[c]]","v":{"$error":"#DIV/0!"}},{"$f":"Table3[[#This Row],[ES Percent]]*AnnEgyCons","v":{"$error":"#DIV/0!"}},true,"https://www.nrel.gov/docs/fy12osti/55162.pdf"]
[{"$f":"INDEX(Table7[Q],MATCH(Table3[[#This Row],[Question set]],Table7[Question Set],0))&\".\"&INDEX(Table5[S],MATCH(Table3[[#This Row],[Diagnostic Heading]],Table5[Diagnostic Heading],0))&\".\"&Table3[[#This Row],[Q]]","v":"3.4.3"},"Office","Energy Efficient Equipment",3,"Office equipment","no",null,"We have installed / activated power management software on computers to control when computers shut down or sleep.","Assess the opportunity to install power management software on computers to control when computers shut down or sleep. ","https://www.energystar.gov/products/low_carbon_it_campaign/power_management_computer",{"$f":"INDEX(Table1[Evaluator Question Set],MATCH(Sector,Table1[BC Hydro Sector Allocation],0))=Table3[[#This Row],[Question set]]","v":{"$error":"#N/A"}},{"$f":"IF(Table3[[#This Row],[Selected]],INDIRECT(\"'\"&INDEX(Table5[SheetName],MATCH(Table3[[#This Row],[Diagnostic Heading]],Table5[Diagnostic Heading],0))&\"'\"&\"!C\"&11+Table3[[#This Row],[Q]]),\"\")","v":{"$error":"#N/A"}},{"$f":"IFERROR(AND(Table3[[#This Row],[BCH Funded]]=\"Yes\",Table3[[#This Row],[Answer]]=\"No\"),\"\")","v":""},{"$f":"IFERROR(AND(Table3[[#This Row],[BCH Funded]]=\"no\",Table3[[#This Row],[Answer]]=\"No\"),\"\")","v":""},{"$f":"IFERROR(IF(Table3[[#This Row],[Answer]]=\"No\",INDEX(Table10[],MATCH(INDEX(Table8[CPR Type],MATCH(Table3[[#This Row],[Report Heading]],Table8[Report Heading],0)),Table10[Segment],0),MATCH(Table3[[#This Row],[Question set]],Table10[#Headers],0)),0),0.01/COUNTIFS(Table3[Question set],INDEX(Table1[Evaluator Question Set],MATCH(Sector,Table1[BC Hydro Sector Allocation],0)),Table3[Diagnostic Heading],Table3[[#This Row],[Diagnostic Heading]],Table3[Selected],TRUE))","v":{"$error":"#DIV/0!"}},1,0.35,{"$f":"Table3[[#This Row],[a]]*Table3[[#This Row],[b]]*Table3[[#This Row],[c]]","v":{"$error":"#DIV/0!"}},{"$f":"Table3[[#This Row],[ES Percent]]*AnnEgyCons","v":{"$error":"#DIV/0!"}},true,"https://www.energystar.gov/products/low_carbon_it_campaign/implementation_resources_enterprises/commercial_software"]
[{"$f":"INDEX(Table7[Q],MATCH(Table3[[#This Row],[Question set]],Table7[Question Set],0))&\".\"&INDEX(Table5[S],MATCH(Table3[[#This Row],[Diagnostic Heading]],Table5[Diagnostic Heading],0))&\".\"&Table3[[#This Row],[Q]]","v":"3.4.4"},"Office","Energy Efficient Equipment",4,"Vending Machines","no",null,"We use vending machine controllers, which incorporate occupancy sensors, on our vending machines to adjust when the area is unoccupied.","Ensure any vending machines purchased or installed, incorporate an occupancy sensor controller. ","https://www.energystar.gov/products/other/vending_machines",{"$f":"INDEX(Table1[Evaluator Question Set],MATCH(Sector,Table1[BC Hydro Sector Allocation],0))=Table3[[#This Row],[Question set]]","v":{"$error":"#N/A"}},{"$f":"IF(Table3[[#This Row],[Selected]],INDIRECT(\"'\"&INDEX(Table5[SheetName],MATCH(Table3[[#This Row],[Diagnostic Heading]],Table5[Diagnostic Heading],0))&\"'\"&\"!C\"&11+Table3[[#This Row],[Q]]),\"\")","v":{"$error":"#N/A"}},{"$f":"IFERROR(AND(Table3[[#This Row],[BCH Funded]]=\"Yes\",Table3[[#This Row],[Answer]]=\"No\"),\"\")","v":""},{"$f":"IFERROR(AND(Table3[[#This Row],[BCH Funded]]=\"no\",Table3[[#This Row],[Answer]]=\"No\"),\"\")","v":""},{"$f":"IFERROR(IF(Table3[[#This Row],[Answer]]=\"No\",INDEX(Table10[],MATCH(INDEX(Table8[CPR Type],MATCH(Table3[[#This Row],[Report Heading]],Table8[Report Heading],0)),Table10[Segment],0),MATCH(Table3[[#This Row],[Question set]],Table10[#Headers],0)),0),0.01/COUNTIFS(Table3[Question set],INDEX(Table1[Evaluator Question Set],MATCH(Sector,Table1[BC Hydro Sector Allocation],0)),Table3[Diagnostic Heading],Table3[[#This Row],[Diagnostic Heading]],Table3[Selected],TRUE))","v":{"$error":"#DIV/0!"}},1,0.1,{"$f":"Table3[[#This Row],[a]]*Table3[[#This Row],[b]]*Table3[[#This Row],[c]]","v":{"$error":"#DIV/0!"}},{"$f":"Table3[[#This Row],[ES Percent]]*AnnEgyCons","v":{"$error":"#DIV/0!"}},true]
[{"$f":"INDEX(Table7[Q],MATCH(Table3[[#This Row],[Question set]],Table7[Question Set],0))&\".\"&INDEX(Table5[S],MATCH(Table3[[#This Row],[Diagnostic Heading]],Table5[Diagnostic Heading],0))&\".\"&Table3[[#This Row],[Q]]","v":"3.5.1"},"Office","Operating and Maintenance Practices",1,"Hot water control","no",null,"We have explored how to reduce hot water temperature while still maintaining required conditions.","Look into the possibility of reducing your hot water temperature while still maintaining required sanitary conditions. You'll be surprised at what can be saved through reducing hot water temperature without degrading the use.  Learn more about water heating and usage through the link below.","https://www.bchydro.com/powersmart/business/technologies-equipment/heating-cooling.html",{"$f":"INDEX(Table1[Evaluator Question Set],MATCH(Sector,Table1[BC Hydro Sector Allocation],0))=Table3[[#This Row],[Question set]]","v":{"$error":"#N/A"}},{"$f":"IF(Table3[[#This Row],[Selected]],INDIRECT(\"'\"&INDEX(Table5[SheetName],MATCH(Table3[[#This Row],[Diagnostic Heading]],Table5[Diagnostic Heading],0))&\"'\"&\"!C\"&11+Table3[[#This Row],[Q]]),\"\")","v":{"$error":"#N/A"}},{"$f":"IFERROR(AND(Table3[[#This Row],[BCH Funded]]=\"Yes\",Table3[[#This Row],[Answer]]=\"No\"),\"\")","v":""},{"$f":"IFERROR(AND(Table3[[#This Row],[BCH Funded]]=\"no\",Table3[[#This Row],[Answer]]=\"No\"),\"\")","v":""},{"$f":"IFERROR(IF(Table3[[#This Row],[Answer]]=\"No\",INDEX(Table10[],MATCH(INDEX(Table8[CPR Type],MATCH(Table3[[#This Row],[Report Heading]],Table8[Report Heading],0)),Table10[Segment],0),MATCH(Table3[[#This Row],[Question set]],Table10[#Headers],0)),0),0.01/COUNTIFS(Table3[Question set],INDEX(Table1[Evaluator Question Set],MATCH(Sector,Table1[BC Hydro Sector Allocation],0)),Table3[Diagnostic Heading],Table3[[#This Row],[Diagnostic Heading]],Table3[Selected],TRUE))","v":{"$error":"#DIV/0!"}},1,1,{"$f":"Table3[[#This Row],[a]]*Table3[[#This Row],[b]]*Table3[[#This Row],[c]]","v":{"$error":"#DIV/0!"}},{"$f":"Table3[[#This Row],[ES Percent]]*AnnEgyCons","v":{"$error":"#DIV/0!"}},true]
[{"$f":"INDEX(Table7[Q],MATCH(Table3[[#This Row],[Question set]],Table7[Question Set],0))&\".\"&INDEX(Table5[S],MATCH(Table3[[#This Row],[Diagnostic Heading]],Table5[Diagnostic Heading],0))&\".\"&Table3[[#This Row],[Q]]","v":"3.5.2"},"Office","Operating and Maintenance Practices",2,"Staff operating procedures","no",null,"Our staff turns off equipment when not needed (e.g., turns off lights and equipment when not in use, after hours and on weekends).","The most important tip for your business is “turn it off!!”. Introduce procedures to encourage staff to turn off equipment when not needed (e.g. turn off lights and office equipment when not in use, after hours and on weekends). Find more tips and information about how and when to turn off equipment through the link below.","https://www.bchydro.com/powersmart/business/technologies-equipment/lighting-systems.html#1",{"$f":"INDEX(Table1[Evaluator Question Set],MATCH(Sector,Table1[BC Hydro Sector Allocation],0))=Table3[[#This Row],[Question set]]","v":{"$error":"#N/A"}},{"$f":"IF(Table3[[#This Row],[Selected]],INDIRECT(\"'\"&INDEX(Table5[SheetName],MATCH(Table3[[#This Row],[Diagnostic Heading]],Table5[Diagnostic Heading],0))&\"'\"&\"!C\"&11+Table3[[#This Row],[Q]]),\"\")","v":{"$error":"#N/A"}},{"$f":"IFERROR(AND(Table3[[#This Row],[BCH Funded]]=\"Yes\",Table3[[#This Row],[Answer]]=\"No\"),\"\")","v":""},{"$f":"IFERROR(AND(Table3[[#This Row],[BCH Funded]]=\"no\",Table3[[#This Row],[Answer]]=\"No\"),\"\")","v":""},{"$f":"IFERROR(IF(Table3[[#This Row],[Answer]]=\"No\",INDEX(Table10[],MATCH(INDEX(Table8[CPR Type],MATCH(Table3[[#This Row],[Report Heading]],Table8[Report Heading],0)),Table10[Segment],0),MATCH(Table3[[#This Row],[Question set]],Table10[#Headers],0)),0),0.01/COUNTIFS(Table3[Question set],INDEX(Table1[Evaluator Question Set],MATCH(Sector,Table1[BC Hydro Sector Allocation],0)),Table3[Diagnostic Heading],Table3[[#This Row],[Diagnostic Heading]],Table3[Selected],TRUE))","v":{"$error":"#DIV/0!"}},1,1,{"$f":"Table3[[#This Row],[a]]*Table3[[#This Row],[b]]*Table3[[#This Row],[c]]","v":{"$error":"#DIV/0!"}},{"$f":"Table3[[#This Row],[ES Percent]]*AnnEgyCons","v":{"$error":"#DIV/0!"}},true]
[{"$f":"INDEX(Table7[Q],MATCH(Table3[[#This Row],[Question set]],Table7[Question Set],0))&\".\"&INDEX(Table5[S],MATCH(Table3[[#This Row],[Diagnostic Heading]],Table5[Diagnostic Heading],0))&\".\"&Table3[[#This Row],[Q]]","v":"3.5.3"},"Office","Operating and Maintenance Practices",3,"Maintenance practices","no",null,"We conduct regular maintenance on our heating, ventilation & air conditioning system (e.g. cleaning condenser coils, changing filters, checking operation of economizer).","Modify your maintenance procedures on your heating, ventilation & air conditioning system to include regular energy efficiency checks (e.g. cleaning condenser coils, changing filters, checking operation of economizers). Heating, ventilation and air conditioning systems are at their most efficient when they are well maintained. Learn more about maintenance procedures through the link below.","https://www.bchydro.com/powersmart/business/technologies-equipment/heating-cooling.html#d",{"$f":"INDEX(Table1[Evaluator Question Set],MATCH(Sector,Table1[BC Hydro Sector Allocation],0))=Table3[[#This Row],[Question set]]","v":{"$error":"#N/A"}},{"$f":"IF(Table3[[#This Row],[Selected]],INDIRECT(\"'\"&INDEX(Table5[SheetName],MATCH(Table3[[#This Row],[Diagnostic Heading]],Table5[Diagnostic Heading],0))&\"'\"&\"!C\"&11+Table3[[#This Row],[Q]]),\"\")","v":{"$error":"#N/A"}},{"$f":"IFERROR(AND(Table3[[#This Row],[BCH Funded]]=\"Yes\",Table3[[#This Row],[Answer]]=\"No\"),\"\")","v":""},{"$f":"IFERROR(AND(Table3[[#This Row],[BCH Funded]]=\"no\",Table3[[#This Row],[Answer]]=\"No\"),\"\")","v":""},{"$f":"IFERROR(IF(Table3[[#This Row],[Answer]]=\"No\",INDEX(Table10[],MATCH(INDEX(Table8[CPR Type],MATCH(Table3[[#This Row],[Report Heading]],Table8[Report Heading],0)),Table10[Segment],0),MATCH(Table3[[#This Row],[Question set]],Table10[#Headers],0)),0),0.01/COUNTIFS(Table3[Question set],INDEX(Table1[Evaluator Question Set],MATCH(Sector,Table1[BC Hydro Sector Allocation],0)),Table3[Diagnostic Heading],Table3[[#This Row],[Diagnostic Heading]],Table3[Selected],TRUE))","v":{"$error":"#DIV/0!"}},1,1,{"$f":"Table3[[#This Row],[a]]*Table3[[#This Row],[b]]*Table3[[#This Row],[c]]","v":{"$error":"#DIV/0!"}},{"$f":"Table3[[#This Row],[ES Percent]]*AnnEgyCons","v":{"$error":"#DIV/0!"}},true]
[{"$f":"INDEX(Table7[Q],MATCH(Table3[[#This Row],[Question set]],Table7[Question Set],0))&\".\"&INDEX(Table5[S],MATCH(Table3[[#This Row],[Diagnostic Heading]],Table5[Diagnostic Heading],0))&\".\"&Table3[[#This Row],[Q]]","v":"3.5.4"},"Office","Operating and Maintenance Practices",4,"Energy saving tips","no",null,"We have a list of energy saving tips for our type of business.","Prepare a list of energy saving tips for your type of business. BC Hydro Power Smart has tips available. Find energy saving tips through the link below.","https://www.bchydro.com/powersmart/business/technologies-equipment.html?WT.mc_id=rd_oldgreenyourbusiness",{"$f":"INDEX(Table1[Evaluator Question Set],MATCH(Sector,Table1[BC Hydro Sector Allocation],0))=Table3[[#This Row],[Question set]]","v":{"$error":"#N/A"}},{"$f":"IF(Table3[[#This Row],[Selected]],INDIRECT(\"'\"&INDEX(Table5[SheetName],MATCH(Table3[[#This Row],[Diagnostic Heading]],Table5[Diagnostic Heading],0))&\"'\"&\"!C\"&11+Table3[[#This Row],[Q]]),\"\")","v":{"$error":"#N/A"}},{"$f":"IFERROR(AND(Table3[[#This Row],[BCH Funded]]=\"Yes\",Table3[[#This Row],[Answer]]=\"No\"),\"\")","v":""},{"$f":"IFERROR(AND(Table3[[#This Row],[BCH Funded]]=\"no\",Table3[[#This Row],[Answer]]=\"No\"),\"\")","v":""},{"$f":"IFERROR(IF(Table3[[#This Row],[Answer]]=\"No\",INDEX(Table10[],MATCH(INDEX(Table8[CPR Type],MATCH(Table3[[#This Row],[Report Heading]],Table8[Report Heading],0)),Table10[Segment],0),MATCH(Table3[[#This Row],[Question set]],Table10[#Headers],0)),0),0.01/COUNTIFS(Table3[Question set],INDEX(Table1[Evaluator Question Set],MATCH(Sector,Table1[BC Hydro Sector Allocation],0)),Table3[Diagnostic Heading],Table3[[#This Row],[Diagnostic Heading]],Table3[Selected],TRUE))","v":{"$error":"#DIV/0!"}},1,1,{"$f":"Table3[[#This Row],[a]]*Table3[[#This Row],[b]]*Table3[[#This Row],[c]]","v":{"$error":"#DIV/0!"}},{"$f":"Table3[[#This Row],[ES Percent]]*AnnEgyCons","v":{"$error":"#DIV/0!"}},true]
[{"$f":"INDEX(Table7[Q],MATCH(Table3[[#This Row],[Question set]],Table7[Question Set],0))&\".\"&INDEX(Table5[S],MATCH(Table3[[#This Row],[Diagnostic Heading]],Table5[Diagnostic Heading],0))&\".\"&Table3[[#This Row],[Q]]","v":"3.5.5"},"Office","Operating and Maintenance Practices",5,"Staff Awareness","no",null,"We have conducted energy conservation awareness activities (e.g. signage, newsletters, competitions).","Conduct energy conservation awareness activities with your staff (e.g. signage, newsletters, competitions). Find tips and information on workplace conservation activities through the link below.","https://www.bchydro.com/powersmart/business/programs/workplace-conservation.html?WT.mc_id=rd_oldworkplaceconservationawareness",{"$f":"INDEX(Table1[Evaluator Question Set],MATCH(Sector,Table1[BC Hydro Sector Allocation],0))=Table3[[#This Row],[Question set]]","v":{"$error":"#N/A"}},{"$f":"IF(Table3[[#This Row],[Selected]],INDIRECT(\"'\"&INDEX(Table5[SheetName],MATCH(Table3[[#This Row],[Diagnostic Heading]],Table5[Diagnostic Heading],0))&\"'\"&\"!C\"&11+Table3[[#This Row],[Q]]),\"\")","v":{"$error":"#N/A"}},{"$f":"IFERROR(AND(Table3[[#This Row],[BCH Funded]]=\"Yes\",Table3[[#This Row],[Answer]]=\"No\"),\"\")","v":""},{"$f":"IFERROR(AND(Table3[[#This Row],[BCH Funded]]=\"no\",Table3[[#This Row],[Answer]]=\"No\"),\"\")","v":""},{"$f":"IFERROR(IF(Table3[[#This Row],[Answer]]=\"No\",INDEX(Table10[],MATCH(INDEX(Table8[CPR Type],MATCH(Table3[[#This Row],[Report Heading]],Table8[Report Heading],0)),Table10[Segment],0),MATCH(Table3[[#This Row],[Question set]],Table10[#Headers],0)),0),0.01/COUNTIFS(Table3[Question set],INDEX(Table1[Evaluator Question Set],MATCH(Sector,Table1[BC Hydro Sector Allocation],0)),Table3[Diagnostic Heading],Table3[[#This Row],[Diagnostic Heading]],Table3[Selected],TRUE))","v":{"$error":"#DIV/0!"}},1,1,{"$f":"Table3[[#This Row],[a]]*Table3[[#This Row],[b]]*Table3[[#This Row],[c]]","v":{"$error":"#DIV/0!"}},{"$f":"Table3[[#This Row],[ES Percent]]*AnnEgyCons","v":{"$error":"#DIV/0!"}},true]
[{"$f":"INDEX(Table7[Q],MATCH(Table3[[#This Row],[Question set]],Table7[Question Set],0))&\".\"&INDEX(Table5[S],MATCH(Table3[[#This Row],[Diagnostic Heading]],Table5[Diagnostic Heading],0))&\".\"&Table3[[#This Row],[Q]]","v":"3.6.1"},"Office","Management Practice",1,"Effective management of energy data","no",null,"We regularly go to bchydro.com and use MyHydro to track our energy usage.","Develop a process for managing energy bills and metered energy use information centrally. For example in a spreadsheet, database, or other online tool for ready access. Sign up to see your BC Hydro account information online using the link below.","https://www.bchydro.com/account/UI/Login?realm=bch-ps&goto=https%3A%2F%2Fwww.bchydro.com%3A443%2FBCHCustomerPortal%2Fweb%2Flogin.html",{"$f":"INDEX(Table1[Evaluator Question Set],MATCH(Sector,Table1[BC Hydro Sector Allocation],0))=Table3[[#This Row],[Question set]]","v":{"$error":"#N/A"}},{"$f":"IF(Table3[[#This Row],[Selected]],INDIRECT(\"'\"&INDEX(Table5[SheetName],MATCH(Table3[[#This Row],[Diagnostic Heading]],Table5[Diagnostic Heading],0))&\"'\"&\"!C\"&11+Table3[[#This Row],[Q]]),\"\")","v":{"$error":"#N/A"}},{"$f":"IFERROR(AND(Table3[[#This Row],[BCH Funded]]=\"Yes\",Table3[[#This Row],[Answer]]=\"No\"),\"\")","v":""},{"$f":"IFERROR(AND(Table3[[#This Row],[BCH Funded]]=\"no\",Table3[[#This Row],[Answer]]=\"No\"),\"\")","v":""},{"$f":"IFERROR(IF(Table3[[#This Row],[Answer]]=\"No\",INDEX(Table10[],MATCH(INDEX(Table8[CPR Type],MATCH(Table3[[#This Row],[Report Heading]],Table8[Report Heading],0)),Table10[Segment],0),MATCH(Table3[[#This Row],[Question set]],Table10[#Headers],0)),0),0.01/COUNTIFS(Table3[Question set],INDEX(Table1[Evaluator Question Set],MATCH(Sector,Table1[BC Hydro Sector Allocation],0)),Table3[Diagnostic Heading],Table3[[#This Row],[Diagnostic Heading]],Table3[Selected],TRUE))","v":{"$error":"#DIV/0!"}},1,1,{"$f":"Table3[[#This Row],[a]]*Table3[[#This Row],[b]]*Table3[[#This Row],[c]]","v":{"$error":"#DIV/0!"}},{"$f":"Table3[[#This Row],[ES Percent]]*AnnEgyCons","v":{"$error":"#DIV/0!"}},true]
[{"$f":"INDEX(Table7[Q],MATCH(Table3[[#This Row],[Question set]],Table7[Question Set],0))&\".\"&INDEX(Table5[S],MATCH(Table3[[#This Row],[Diagnostic Heading]],Table5[Diagnostic Heading],0))&\".\"&Table3[[#This Row],[Q]]","v":"3.6.2"},"Office","Management Practice",2,"Reporting systems for energy use","no",null,"We periodically report energy use for our business to relevant staff.","Establish a process to regularly report your energy efficiency to management and staff. Learn more about managing energy costs and consumption in your business through the link below.","https://www.bchydro.com/powersmart/business/types-of-business-customers.html",{"$f":"INDEX(Table1[Evaluator Question Set],MATCH(Sector,Table1[BC Hydro Sector Allocation],0))=Table3[[#This Row],[Question set]]","v":{"$error":"#N/A"}},{"$f":"IF(Table3[[#This Row],[Selected]],INDIRECT(\"'\"&INDEX(Table5[SheetName],MATCH(Table3[[#This Row],[Diagnostic Heading]],Table5[Diagnostic Heading],0))&\"'\"&\"!C\"&11+Table3[[#This Row],[Q]]),\"\")","v":{"$error":"#N/A"}},{"$f":"IFERROR(AND(Table3[[#This Row],[BCH Funded]]=\"Yes\",Table3[[#This Row],[Answer]]=\"No\"),\"\")","v":""},{"$f":"IFERROR(AND(Table3[[#This Row],[BCH Funded]]=\"no\",Table3[[#This Row],[Answer]]=\"No\"),\"\")","v":""},{"$f":"IFERROR(IF(Table3[[#This Row],[Answer]]=\"No\",INDEX(Table10[],MATCH(INDEX(Table8[CPR Type],MATCH(Table3[[#This Row],[Report Heading]],Table8[Report Heading],0)),Table10[Segment],0),MATCH(Table3[[#This Row],[Question set]],Table10[#Headers],0)),0),0.01/COUNTIFS(Table3[Question set],INDEX(Table1[Evaluator Question Set],MATCH(Sector,Table1[BC Hydro Sector Allocation],0)),Table3[Diagnostic Heading],Table3[[#This Row],[Diagnostic Heading]],Table3[Selected],TRUE))","v":{"$error":"#DIV/0!"}},1,1,{"$f":"Table3[[#This Row],[a]]*Table3[[#This Row],[b]]*Table3[[#This Row],[c]]","v":{"$error":"#DIV/0!"}},{"$f":"Table3[[#This Row],[ES Percent]]*AnnEgyCons","v":{"$error":"#DIV/0!"}},true]
[{"$f":"INDEX(Table7[Q],MATCH(Table3[[#This Row],[Question set]],Table7[Question Set],0))&\".\"&INDEX(Table5[S],MATCH(Table3[[#This Row],[Diagnostic Heading]],Table5[Diagnostic Heading],0))&\".\"&Table3[[#This Row],[Q]]","v":"3.6.3"},"Office","Management Practice",3,"Targets and Planning","no",null,"We have a target and action plan to reduce energy costs for the next year (e.g. kWh/sq. ft. by 10%).","Create a realistic target and action plan to reduce energy costs for the next year (e.g. kWh/sq. ft. by 10%). Find out how to manage your energy costs and consumption in your business through the link below.","https://www.bchydro.com/news/conservation/2014/myhydro-to-manage-energy-and-profitability.html",{"$f":"INDEX(Table1[Evaluator Question Set],MATCH(Sector,Table1[BC Hydro Sector Allocation],0))=Table3[[#This Row],[Question set]]","v":{"$error":"#N/A"}},{"$f":"IF(Table3[[#This Row],[Selected]],INDIRECT(\"'\"&INDEX(Table5[SheetName],MATCH(Table3[[#This Row],[Diagnostic Heading]],Table5[Diagnostic Heading],0))&\"'\"&\"!C\"&11+Table3[[#This Row],[Q]]),\"\")","v":{"$error":"#N/A"}},{"$f":"IFERROR(AND(Table3[[#This Row],[BCH Funded]]=\"Yes\",Table3[[#This Row],[Answer]]=\"No\"),\"\")","v":""},{"$f":"IFERROR(AND(Table3[[#This Row],[BCH Funded]]=\"no\",Table3[[#This Row],[Answer]]=\"No\"),\"\")","v":""},{"$f":"IFERROR(IF(Table3[[#This Row],[Answer]]=\"No\",INDEX(Table10[],MATCH(INDEX(Table8[CPR Type],MATCH(Table3[[#This Row],[Report Heading]],Table8[Report Heading],0)),Table10[Segment],0),MATCH(Table3[[#This Row],[Question set]],Table10[#Headers],0)),0),0.01/COUNTIFS(Table3[Question set],INDEX(Table1[Evaluator Question Set],MATCH(Sector,Table1[BC Hydro Sector Allocation],0)),Table3[Diagnostic Heading],Table3[[#This Row],[Diagnostic Heading]],Table3[Selected],TRUE))","v":{"$error":"#DIV/0!"}},1,1,{"$f":"Table3[[#This Row],[a]]*Table3[[#This Row],[b]]*Table3[[#This Row],[c]]","v":{"$error":"#DIV/0!"}},{"$f":"Table3[[#This Row],[ES Percent]]*AnnEgyCons","v":{"$error":"#DIV/0!"}},true]
[{"$f":"INDEX(Table7[Q],MATCH(Table3[[#This Row],[Question set]],Table7[Question Set],0))&\".\"&INDEX(Table5[S],MATCH(Table3[[#This Row],[Diagnostic Heading]],Table5[Diagnostic Heading],0))&\".\"&Table3[[#This Row],[Q]]","v":"3.6.4"},"Office","Management Practice",4,"Understanding of energy performance and opportunities","no",null,"We have completed an energy audit, which has quantified costs and savings opportunities.","Conduct an energy audit to quantify costs and identify savings opportunities. Learn how to do an energy audit and build a business case for energy efficiency through the link below.","http://www.bchydro.com/powersmart/business/business-energy-advisors.html?WT.mc_id=rd_bea",{"$f":"INDEX(Table1[Evaluator Question Set],MATCH(Sector,Table1[BC Hydro Sector Allocation],0))=Table3[[#This Row],[Question set]]","v":{"$error":"#N/A"}},{"$f":"IF(Table3[[#This Row],[Selected]],INDIRECT(\"'\"&INDEX(Table5[SheetName],MATCH(Table3[[#This Row],[Diagnostic Heading]],Table5[Diagnostic Heading],0))&\"'\"&\"!C\"&11+Table3[[#This Row],[Q]]),\"\")","v":{"$error":"#N/A"}},{"$f":"IFERROR(AND(Table3[[#This Row],[BCH Funded]]=\"Yes\",Table3[[#This Row],[Answer]]=\"No\"),\"\")","v":""},{"$f":"IFERROR(AND(Table3[[#This Row],[BCH Funded]]=\"no\",Table3[[#This Row],[Answer]]=\"No\"),\"\")","v":""},{"$f":"IFERROR(IF(Table3[[#This Row],[Answer]]=\"No\",INDEX(Table10[],MATCH(INDEX(Table8[CPR Type],MATCH(Table3[[#This Row],[Report Heading]],Table8[Report Heading],0)),Table10[Segment],0),MATCH(Table3[[#This Row],[Question set]],Table10[#Headers],0)),0),0.01/COUNTIFS(Table3[Question set],INDEX(Table1[Evaluator Question Set],MATCH(Sector,Table1[BC Hydro Sector Allocation],0)),Table3[Diagnostic Heading],Table3[[#This Row],[Diagnostic Heading]],Table3[Selected],TRUE))","v":{"$error":"#DIV/0!"}},1,1,{"$f":"Table3[[#This Row],[a]]*Table3[[#This Row],[b]]*Table3[[#This Row],[c]]","v":{"$error":"#DIV/0!"}},{"$f":"Table3[[#This Row],[ES Percent]]*AnnEgyCons","v":{"$error":"#DIV/0!"}},true]
[{"$f":"INDEX(Table7[Q],MATCH(Table3[[#This Row],[Question set]],Table7[Question Set],0))&\".\"&INDEX(Table5[S],MATCH(Table3[[#This Row],[Diagnostic Heading]],Table5[Diagnostic Heading],0))&\".\"&Table3[[#This Row],[Q]]","v":"3.6.5"},"Office","Management Practice",5,"Purchasing","no",null,"We use energy efficient guidelines and product catalogues when buying equipment or specify standards in our procurement process.","Use Power Smart buying guides and product catalogues when buying equipment or specify energy efficiency standards in your procurement process. Visit the link below for BC Hydro Power Smart buying guides.","https://www.bchydro.com/powersmart/business/technologies-equipment.html\nhttps://www.energystar.gov/products?s=mega",{"$f":"INDEX(Table1[Evaluator Question Set],MATCH(Sector,Table1[BC Hydro Sector Allocation],0))=Table3[[#This Row],[Question set]]","v":{"$error":"#N/A"}},{"$f":"IF(Table3[[#This Row],[Selected]],INDIRECT(\"'\"&INDEX(Table5[SheetName],MATCH(Table3[[#This Row],[Diagnostic Heading]],Table5[Diagnostic Heading],0))&\"'\"&\"!C\"&11+Table3[[#This Row],[Q]]),\"\")","v":{"$error":"#N/A"}},{"$f":"IFERROR(AND(Table3[[#This Row],[BCH Funded]]=\"Yes\",Table3[[#This Row],[Answer]]=\"No\"),\"\")","v":""},{"$f":"IFERROR(AND(Table3[[#This Row],[BCH Funded]]=\"no\",Table3[[#This Row],[Answer]]=\"No\"),\"\")","v":""},{"$f":"IFERROR(IF(Table3[[#This Row],[Answer]]=\"No\",INDEX(Table10[],MATCH(INDEX(Table8[CPR Type],MATCH(Table3[[#This Row],[Report Heading]],Table8[Report Heading],0)),Table10[Segment],0),MATCH(Table3[[#This Row],[Question set]],Table10[#Headers],0)),0),0.01/COUNTIFS(Table3[Question set],INDEX(Table1[Evaluator Question Set],MATCH(Sector,Table1[BC Hydro Sector Allocation],0)),Table3[Diagnostic Heading],Table3[[#This Row],[Diagnostic Heading]],Table3[Selected],TRUE))","v":{"$error":"#DIV/0!"}},1,1,{"$f":"Table3[[#This Row],[a]]*Table3[[#This Row],[b]]*Table3[[#This Row],[c]]","v":{"$error":"#DIV/0!"}},{"$f":"Table3[[#This Row],[ES Percent]]*AnnEgyCons","v":{"$error":"#DIV/0!"}},true]
[{"$f":"INDEX(Table7[Q],MATCH(Table3[[#This Row],[Question set]],Table7[Question Set],0))&\".\"&INDEX(Table5[S],MATCH(Table3[[#This Row],[Diagnostic Heading]],Table5[Diagnostic Heading],0))&\".\"&Table3[[#This Row],[Q]]","v":"4.1.1"},"Hospitality","Lighting",1,"LED Lighting","yes","Average incentive of 50% of product cost","We have upgraded our incandescent lighting to energy efficient LED lamps.","BC Hydro funding is available. Assess the cost effectiveness of upgrading your incandescent lighting to energy efficient LEDs. LEDs use at least 75% less energy than a standard incandescent and last about 15 to 20 times longer than incandescent lighting, and about three times longer than CFLs. Learn more about LEDs by clicking the link below. ","http://www.bchydro.com/news/conservation/2014/led-lighting-increasingly-popular.html",{"$f":"INDEX(Table1[Evaluator Question Set],MATCH(Sector,Table1[BC Hydro Sector Allocation],0))=Table3[[#This Row],[Question set]]","v":{"$error":"#N/A"}},{"$f":"IF(Table3[[#This Row],[Selected]],INDIRECT(\"'\"&INDEX(Table5[SheetName],MATCH(Table3[[#This Row],[Diagnostic Heading]],Table5[Diagnostic Heading],0))&\"'\"&\"!C\"&11+Table3[[#This Row],[Q]]),\"\")","v":{"$error":"#N/A"}},{"$f":"IFERROR(AND(Table3[[#This Row],[BCH Funded]]=\"Yes\",Table3[[#This Row],[Answer]]=\"No\"),\"\")","v":""},{"$f":"IFERROR(AND(Table3[[#This Row],[BCH Funded]]=\"no\",Table3[[#This Row],[Answer]]=\"No\"),\"\")","v":""},{"$f":"IFERROR(IF(Table3[[#This Row],[Answer]]=\"No\",INDEX(Table10[],MATCH(INDEX(Table8[CPR Type],MATCH(Table3[[#This Row],[Report Heading]],Table8[Report Heading],0)),Table10[Segment],0),MATCH(Table3[[#This Row],[Question set]],Table10[#Headers],0)),0),0.01/COUNTIFS(Table3[Question set],INDEX(Table1[Evaluator Question Set],MATCH(Sector,Table1[BC Hydro Sector Allocation],0)),Table3[Diagnostic Heading],Table3[[#This Row],[Diagnostic Heading]],Table3[Selected],TRUE))","v":{"$error":"#DIV/0!"}},0.6,0.75,{"$f":"Table3[[#This Row],[a]]*Table3[[#This Row],[b]]*Table3[[#This Row],[c]]","v":{"$error":"#DIV/0!"}},{"$f":"Table3[[#This Row],[ES Percent]]*AnnEgyCons","v":{"$error":"#DIV/0!"}},true,"Cristian Suvagau"]
[{"$f":"INDEX(Table7[Q],MATCH(Table3[[#This Row],[Question set]],Table7[Question Set],0))&\".\"&INDEX(Table5[S],MATCH(Table3[[#This Row],[Diagnostic Heading]],Table5[Diagnostic Heading],0))&\".\"&Table3[[#This Row],[Q]]","v":"4.1.2"},"Hospitality","Lighting",2,"Fluorescent lighting","yes","Average incentive of 25% of project cost when upgrading to LED","Our fluorescent lighting uses energy efficient T8 or T5 tubes.","Consider upgrading your fluorescent lighting to energy efficient T8 lamps. If you currently have T12 lamps, upgrading to the latest T8 lamps and electronic ballasts could reduce your lighting costs by up to 40%.  Also consider upgrading to LEDs to increase your savings by up to 60% and be eligible for BC Hydro incentives.","https://www.bchydro.com/ecatalog/eCatServlet?cmd=all_psp_incentives&existId=&energyId=13&p=1&sb=3&dir=1&ip=50",{"$f":"INDEX(Table1[Evaluator Question Set],MATCH(Sector,Table1[BC Hydro Sector Allocation],0))=Table3[[#This Row],[Question set]]","v":{"$error":"#N/A"}},{"$f":"IF(Table3[[#This Row],[Selected]],INDIRECT(\"'\"&INDEX(Table5[SheetName],MATCH(Table3[[#This Row],[Diagnostic Heading]],Table5[Diagnostic Heading],0))&\"'\"&\"!C\"&11+Table3[[#This Row],[Q]]),\"\")","v":{"$error":"#N/A"}},{"$f":"IFERROR(AND(Table3[[#This Row],[BCH Funded]]=\"Yes\",Table3[[#This Row],[Answer]]=\"No\"),\"\")","v":""},{"$f":"IFERROR(AND(Table3[[#This Row],[BCH Funded]]=\"no\",Table3[[#This Row],[Answer]]=\"No\"),\"\")","v":""},{"$f":"IFERROR(IF(Table3[[#This Row],[Answer]]=\"No\",INDEX(Table10[],MATCH(INDEX(Table8[CPR Type],MATCH(Table3[[#This Row],[Report Heading]],Table8[Report Heading],0)),Table10[Segment],0),MATCH(Table3[[#This Row],[Question set]],Table10[#Headers],0)),0),0.01/COUNTIFS(Table3[Question set],INDEX(Table1[Evaluator Question Set],MATCH(Sector,Table1[BC Hydro Sector Allocation],0)),Table3[Diagnostic Heading],Table3[[#This Row],[Diagnostic Heading]],Table3[Selected],TRUE))","v":{"$error":"#DIV/0!"}},0.3,0.3,{"$f":"Table3[[#This Row],[a]]*Table3[[#This Row],[b]]*Table3[[#This Row],[c]]","v":{"$error":"#DIV/0!"}},{"$f":"Table3[[#This Row],[ES Percent]]*AnnEgyCons","v":{"$error":"#DIV/0!"}},true,"Cristian Suvagau"]
[{"$f":"INDEX(Table7[Q],MATCH(Table3[[#This Row],[Question set]],Table7[Question Set],0))&\".\"&INDEX(Table5[S],MATCH(Table3[[#This Row],[Diagnostic Heading]],Table5[Diagnostic Heading],0))&\".\"&Table3[[#This Row],[Q]]","v":"4.1.3"},"Hospitality","Lighting",3,"LED Exit lighting","no",null,"We have replaced incandescent exit signs with energy efficient LED exit signs.","Did you know that exit signs are now legislated by the federal government?","http://www.nrcan.gc.ca/energy/regulations-codes-standards/18419",{"$f":"INDEX(Table1[Evaluator Question Set],MATCH(Sector,Table1[BC Hydro Sector Allocation],0))=Table3[[#This Row],[Question set]]","v":{"$error":"#N/A"}},{"$f":"IF(Table3[[#This Row],[Selected]],INDIRECT(\"'\"&INDEX(Table5[SheetName],MATCH(Table3[[#This Row],[Diagnostic Heading]],Table5[Diagnostic Heading],0))&\"'\"&\"!C\"&11+Table3[[#This Row],[Q]]),\"\")","v":{"$error":"#N/A"}},{"$f":"IFERROR(AND(Table3[[#This Row],[BCH Funded]]=\"Yes\",Table3[[#This Row],[Answer]]=\"No\"),\"\")","v":""},{"$f":"IFERROR(AND(Table3[[#This Row],[BCH Funded]]=\"no\",Table3[[#This Row],[Answer]]=\"No\"),\"\")","v":""},{"$f":"IFERROR(IF(Table3[[#This Row],[Answer]]=\"No\",INDEX(Table10[],MATCH(INDEX(Table8[CPR Type],MATCH(Table3[[#This Row],[Report Heading]],Table8[Report Heading],0)),Table10[Segment],0),MATCH(Table3[[#This Row],[Question set]],Table10[#Headers],0)),0),0.01/COUNTIFS(Table3[Question set],INDEX(Table1[Evaluator Question Set],MATCH(Sector,Table1[BC Hydro Sector Allocation],0)),Table3[Diagnostic Heading],Table3[[#This Row],[Diagnostic Heading]],Table3[Selected],TRUE))","v":{"$error":"#DIV/0!"}},0.04,0.9,{"$f":"Table3[[#This Row],[a]]*Table3[[#This Row],[b]]*Table3[[#This Row],[c]]","v":{"$error":"#DIV/0!"}},{"$f":"Table3[[#This Row],[ES Percent]]*AnnEgyCons","v":{"$error":"#DIV/0!"}},true,"Cristian Suvagau"]
[{"$f":"INDEX(Table7[Q],MATCH(Table3[[#This Row],[Question set]],Table7[Question Set],0))&\".\"&INDEX(Table5[S],MATCH(Table3[[#This Row],[Diagnostic Heading]],Table5[Diagnostic Heading],0))&\".\"&Table3[[#This Row],[Q]]","v":"4.1.4"},"Hospitality","Lighting",4,"Exterior Lighting","yes","Average incentive of 25% of project cost","We have upgraded our exterior lighting to energy efficient lamps and fixtures that reduce glare, light pollution and lighting costs (e.g. in parking lots).","Consider upgrading your exterior lighting (e.g. in parking lots) to T8 fluorescent or LED (incentives available for specific LED technologies). These will provide savings and you can get your return even quicker with incentives.","https://www.bchydro.com/ecatalog/eCatServlet?cmd=all_psp_incentives&existId=&energyId=13&p=1&sb=3&dir=1&ip=50",{"$f":"INDEX(Table1[Evaluator Question Set],MATCH(Sector,Table1[BC Hydro Sector Allocation],0))=Table3[[#This Row],[Question set]]","v":{"$error":"#N/A"}},{"$f":"IF(Table3[[#This Row],[Selected]],INDIRECT(\"'\"&INDEX(Table5[SheetName],MATCH(Table3[[#This Row],[Diagnostic Heading]],Table5[Diagnostic Heading],0))&\"'\"&\"!C\"&11+Table3[[#This Row],[Q]]),\"\")","v":{"$error":"#N/A"}},{"$f":"IFERROR(AND(Table3[[#This Row],[BCH Funded]]=\"Yes\",Table3[[#This Row],[Answer]]=\"No\"),\"\")","v":""},{"$f":"IFERROR(AND(Table3[[#This Row],[BCH Funded]]=\"no\",Table3[[#This Row],[Answer]]=\"No\"),\"\")","v":""},{"$f":"IFERROR(IF(Table3[[#This Row],[Answer]]=\"No\",INDEX(Table10[],MATCH(INDEX(Table8[CPR Type],MATCH(Table3[[#This Row],[Report Heading]],Table8[Report Heading],0)),Table10[Segment],0),MATCH(Table3[[#This Row],[Question set]],Table10[#Headers],0)),0),0.01/COUNTIFS(Table3[Question set],INDEX(Table1[Evaluator Question Set],MATCH(Sector,Table1[BC Hydro Sector Allocation],0)),Table3[Diagnostic Heading],Table3[[#This Row],[Diagnostic Heading]],Table3[Selected],TRUE))","v":{"$error":"#DIV/0!"}},1,0.5,{"$f":"Table3[[#This Row],[a]]*Table3[[#This Row],[b]]*Table3[[#This Row],[c]]","v":{"$error":"#DIV/0!"}},{"$f":"Table3[[#This Row],[ES Percent]]*AnnEgyCons","v":{"$error":"#DIV/0!"}},true,"Cristian Suvagau"]
[{"$f":"INDEX(Table7[Q],MATCH(Table3[[#This Row],[Question set]],Table7[Question Set],0))&\".\"&INDEX(Table5[S],MATCH(Table3[[#This Row],[Diagnostic Heading]],Table5[Diagnostic Heading],0))&\".\"&Table3[[#This Row],[Q]]","v":"4.1.5"},"Hospitality","Lighting",5,"Lighting control","No",null,"We have installed controls on lighting to turn off when not required (e.g. timers or occupancy sensors in offices and meeting rooms, daylight harvesting in offices).","Lighting controls can provide you with energy savings and better management of your lighting systems.  Adding lighting controls may be eligible for additional incentive funding when completing a lighting retrofit as not all controls energy savings are recognized by BC Hydro.","https://www.bchydro.com/ecatalog/eCatServlet?cmd=all_psp_incentives&existId=&energyId=14",{"$f":"INDEX(Table1[Evaluator Question Set],MATCH(Sector,Table1[BC Hydro Sector Allocation],0))=Table3[[#This Row],[Question set]]","v":{"$error":"#N/A"}},{"$f":"IF(Table3[[#This Row],[Selected]],INDIRECT(\"'\"&INDEX(Table5[SheetName],MATCH(Table3[[#This Row],[Diagnostic Heading]],Table5[Diagnostic Heading],0))&\"'\"&\"!C\"&11+Table3[[#This Row],[Q]]),\"\")","v":{"$error":"#N/A"}},{"$f":"IFERROR(AND(Table3[[#This Row],[BCH Funded]]=\"Yes\",Table3[[#This Row],[Answer]]=\"No\"),\"\")","v":""},{"$f":"IFERROR(AND(Table3[[#This Row],[BCH Funded]]=\"no\",Table3[[#This Row],[Answer]]=\"No\"),\"\")","v":""},{"$f":"IFERROR(IF(Table3[[#This Row],[Answer]]=\"No\",INDEX(Table10[],MATCH(INDEX(Table8[CPR Type],MATCH(Table3[[#This Row],[Report Heading]],Table8[Report Heading],0)),Table10[Segment],0),MATCH(Table3[[#This Row],[Question set]],Table10[#Headers],0)),0),0.01/COUNTIFS(Table3[Question set],INDEX(Table1[Evaluator Question Set],MATCH(Sector,Table1[BC Hydro Sector Allocation],0)),Table3[Diagnostic Heading],Table3[[#This Row],[Diagnostic Heading]],Table3[Selected],TRUE))","v":{"$error":"#DIV/0!"}},0.4,0.3,{"$f":"Table3[[#This Row],[a]]*Table3[[#This Row],[b]]*Table3[[#This Row],[c]]","v":{"$error":"#DIV/0!"}},{"$f":"Table3[[#This Row],[ES Percent]]*AnnEgyCons","v":{"$error":"#DIV/0!"}},true,"Cristian Suvagau"]
[{"$f":"INDEX(Table7[Q],MATCH(Table3[[#This Row],[Question set]],Table7[Question Set],0))&\".\"&INDEX(Table5[S],MATCH(Table3[[#This Row],[Diagnostic Heading]],Table5[Diagnostic Heading],0))&\".\"&Table3[[#This Row],[Q]]","v":"4.2.1"},"Hospitality","Heating, Ventilation, Air Conditioning / Refrigeration",1,"Air tightness","no",null,"We have examined ways to improve the air-tightness of air-conditioned spaces (e.g. closing doors, windows and installing air curtains).","Stretch your legs. Have a walk around and look for where you could improve the air-tightness of air-conditioned spaces (e.g. closing doors, windows, installing air curtains). Learn more about air leakage control in your building through the link below.","http://www.energycodes.gov/sites/default/files/documents/BECP_Buidling%20Energy%20Code%20Resource%20Guide%20Air%20Leakage%20Guide_Sept2011_v00_lores.pdf ",{"$f":"INDEX(Table1[Evaluator Question Set],MATCH(Sector,Table1[BC Hydro Sector Allocation],0))=Table3[[#This Row],[Question set]]","v":{"$error":"#N/A"}},{"$f":"IF(Table3[[#This Row],[Selected]],INDIRECT(\"'\"&INDEX(Table5[SheetName],MATCH(Table3[[#This Row],[Diagnostic Heading]],Table5[Diagnostic Heading],0))&\"'\"&\"!C\"&11+Table3[[#This Row],[Q]]),\"\")","v":{"$error":"#N/A"}},{"$f":"IFERROR(AND(Table3[[#This Row],[BCH Funded]]=\"Yes\",Table3[[#This Row],[Answer]]=\"No\"),\"\")","v":""},{"$f":"IFERROR(AND(Table3[[#This Row],[BCH Funded]]=\"no\",Table3[[#This Row],[Answer]]=\"No\"),\"\")","v":""},{"$f":"IFERROR(IF(Table3[[#This Row],[Answer]]=\"No\",INDEX(Table10[],MATCH(INDEX(Table8[CPR Type],MATCH(Table3[[#This Row],[Report Heading]],Table8[Report Heading],0)),Table10[Segment],0),MATCH(Table3[[#This Row],[Question set]],Table10[#Headers],0)),0),0.01/COUNTIFS(Table3[Question set],INDEX(Table1[Evaluator Question Set],MATCH(Sector,Table1[BC Hydro Sector Allocation],0)),Table3[Diagnostic Heading],Table3[[#This Row],[Diagnostic Heading]],Table3[Selected],TRUE))","v":{"$error":"#DIV/0!"}},1,0.02,{"$f":"Table3[[#This Row],[a]]*Table3[[#This Row],[b]]*Table3[[#This Row],[c]]","v":{"$error":"#DIV/0!"}},{"$f":"Table3[[#This Row],[ES Percent]]*AnnEgyCons","v":{"$error":"#DIV/0!"}},true,"ASHRAE- Simulation of the Impact of Commercial Building Envelope Airtightness on Building Energy Utilization"]
[{"$f":"INDEX(Table7[Q],MATCH(Table3[[#This Row],[Question set]],Table7[Question Set],0))&\".\"&INDEX(Table5[S],MATCH(Table3[[#This Row],[Diagnostic Heading]],Table5[Diagnostic Heading],0))&\".\"&Table3[[#This Row],[Q]]","v":"4.2.2"},"Hospitality","Heating, Ventilation, Air Conditioning / Refrigeration",2,"Heating / cooling controls","yes","Average incentive of 20% of project cost","We have upgraded our heating, ventilation & air conditioning system to include variable frequency drives on fans and pumps and/or variable speed ECM pumps.","BC Hydro funding is available. Consider upgrading your heating, ventilation & air conditioning system to include variable frequency drives on fans and pumps and/or variable speed ECM pumps.","https://www.bchydro.com/ecatalog/",{"$f":"INDEX(Table1[Evaluator Question Set],MATCH(Sector,Table1[BC Hydro Sector Allocation],0))=Table3[[#This Row],[Question set]]","v":{"$error":"#N/A"}},{"$f":"IF(Table3[[#This Row],[Selected]],INDIRECT(\"'\"&INDEX(Table5[SheetName],MATCH(Table3[[#This Row],[Diagnostic Heading]],Table5[Diagnostic Heading],0))&\"'\"&\"!C\"&11+Table3[[#This Row],[Q]]),\"\")","v":{"$error":"#N/A"}},{"$f":"IFERROR(AND(Table3[[#This Row],[BCH Funded]]=\"Yes\",Table3[[#This Row],[Answer]]=\"No\"),\"\")","v":""},{"$f":"IFERROR(AND(Table3[[#This Row],[BCH Funded]]=\"no\",Table3[[#This Row],[Answer]]=\"No\"),\"\")","v":""},{"$f":"IFERROR(IF(Table3[[#This Row],[Answer]]=\"No\",INDEX(Table10[],MATCH(INDEX(Table8[CPR Type],MATCH(Table3[[#This Row],[Report Heading]],Table8[Report Heading],0)),Table10[Segment],0),MATCH(Table3[[#This Row],[Question set]],Table10[#Headers],0)),0),0.01/COUNTIFS(Table3[Question set],INDEX(Table1[Evaluator Question Set],MATCH(Sector,Table1[BC Hydro Sector Allocation],0)),Table3[Diagnostic Heading],Table3[[#This Row],[Diagnostic Heading]],Table3[Selected],TRUE))","v":{"$error":"#DIV/0!"}},1,0.2,{"$f":"Table3[[#This Row],[a]]*Table3[[#This Row],[b]]*Table3[[#This Row],[c]]","v":{"$error":"#DIV/0!"}},{"$f":"Table3[[#This Row],[ES Percent]]*AnnEgyCons","v":{"$error":"#DIV/0!"}},true,"Past commercial incentives"]
[{"$f":"INDEX(Table7[Q],MATCH(Table3[[#This Row],[Question set]],Table7[Question Set],0))&\".\"&INDEX(Table5[S],MATCH(Table3[[#This Row],[Diagnostic Heading]],Table5[Diagnostic Heading],0))&\".\"&Table3[[#This Row],[Q]]","v":"4.2.3"},"Hospitality","Heating, Ventilation, Air Conditioning / Refrigeration",3,"Heating and cooling temperature set points","no",null,"We have adjusted temperature settings for heating and cooling to minimize energy use.","Pay attention to your thermostat settings. Air conditioning thermostats should be set no lower than 25° C; each degree you raise your temperature setting can save on air conditioning costs. To achieve similar savings when heating, 20° C is the recommended temperature. Learn more about adjusting thermostats through the link below.","https://www.bchydro.com/powersmart/business/technologies-equipment/heating-cooling.html",{"$f":"INDEX(Table1[Evaluator Question Set],MATCH(Sector,Table1[BC Hydro Sector Allocation],0))=Table3[[#This Row],[Question set]]","v":{"$error":"#N/A"}},{"$f":"IF(Table3[[#This Row],[Selected]],INDIRECT(\"'\"&INDEX(Table5[SheetName],MATCH(Table3[[#This Row],[Diagnostic Heading]],Table5[Diagnostic Heading],0))&\"'\"&\"!C\"&11+Table3[[#This Row],[Q]]),\"\")","v":{"$error":"#N/A"}},{"$f":"IFERROR(AND(Table3[[#This Row],[BCH Funded]]=\"Yes\",Table3[[#This Row],[Answer]]=\"No\"),\"\")","v":""},{"$f":"IFERROR(AND(Table3[[#This Row],[BCH Funded]]=\"no\",Table3[[#This Row],[Answer]]=\"No\"),\"\")","v":""},{"$f":"IFERROR(IF(Table3[[#This Row],[Answer]]=\"No\",INDEX(Table10[],MATCH(INDEX(Table8[CPR Type],MATCH(Table3[[#This Row],[Report Heading]],Table8[Report Heading],0)),Table10[Segment],0),MATCH(Table3[[#This Row],[Question set]],Table10[#Headers],0)),0),0.01/COUNTIFS(Table3[Question set],INDEX(Table1[Evaluator Question Set],MATCH(Sector,Table1[BC Hydro Sector Allocation],0)),Table3[Diagnostic Heading],Table3[[#This Row],[Diagnostic Heading]],Table3[Selected],TRUE))","v":{"$error":"#DIV/0!"}},1,0.05,{"$f":"Table3[[#This Row],[a]]*Table3[[#This Row],[b]]*Table3[[#This Row],[c]]","v":{"$error":"#DIV/0!"}},{"$f":"Table3[[#This Row],[ES Percent]]*AnnEgyCons","v":{"$error":"#DIV/0!"}},true,"Past commercial incentives"]
[{"$f":"INDEX(Table7[Q],MATCH(Table3[[#This Row],[Question set]],Table7[Question Set],0))&\".\"&INDEX(Table5[S],MATCH(Table3[[#This Row],[Diagnostic Heading]],Table5[Diagnostic Heading],0))&\".\"&Table3[[#This Row],[Q]]","v":"4.2.4"},"Hospitality","Heating, Ventilation, Air Conditioning / Refrigeration",4,"Economizer operation","no",null,"We regularly check the operation of the economizer on our heating, ventilation & air conditioning system (an economizer is a vent controlled to use cooler outside air to reduce the heating, ventilation & air conditioning system energy use).","Have your heating, ventilation and air conditioning economizer checked for correct operation (an economizer is a vent controlled to use cooler outside air to reduce the heating, ventilation and air conditioning system energy use). If the vent is not operating it can increase heating, ventilation and air conditioning system energy use by up to 50%. Learn more about economizers through the link below.","https://www.bchydro.com/powersmart/business/technologies-equipment/heating-cooling.html",{"$f":"INDEX(Table1[Evaluator Question Set],MATCH(Sector,Table1[BC Hydro Sector Allocation],0))=Table3[[#This Row],[Question set]]","v":{"$error":"#N/A"}},{"$f":"IF(Table3[[#This Row],[Selected]],INDIRECT(\"'\"&INDEX(Table5[SheetName],MATCH(Table3[[#This Row],[Diagnostic Heading]],Table5[Diagnostic Heading],0))&\"'\"&\"!C\"&11+Table3[[#This Row],[Q]]),\"\")","v":{"$error":"#N/A"}},{"$f":"IFERROR(AND(Table3[[#This Row],[BCH Funded]]=\"Yes\",Table3[[#This Row],[Answer]]=\"No\"),\"\")","v":""},{"$f":"IFERROR(AND(Table3[[#This Row],[BCH Funded]]=\"no\",Table3[[#This Row],[Answer]]=\"No\"),\"\")","v":""},{"$f":"IFERROR(IF(Table3[[#This Row],[Answer]]=\"No\",INDEX(Table10[],MATCH(INDEX(Table8[CPR Type],MATCH(Table3[[#This Row],[Report Heading]],Table8[Report Heading],0)),Table10[Segment],0),MATCH(Table3[[#This Row],[Question set]],Table10[#Headers],0)),0),0.01/COUNTIFS(Table3[Question set],INDEX(Table1[Evaluator Question Set],MATCH(Sector,Table1[BC Hydro Sector Allocation],0)),Table3[Diagnostic Heading],Table3[[#This Row],[Diagnostic Heading]],Table3[Selected],TRUE))","v":{"$error":"#DIV/0!"}},1,0.2,{"$f":"Table3[[#This Row],[a]]*Table3[[#This Row],[b]]*Table3[[#This Row],[c]]","v":{"$error":"#DIV/0!"}},{"$f":"Table3[[#This Row],[ES Percent]]*AnnEgyCons","v":{"$error":"#DIV/0!"}},true,"Stan Ma: Catalyst DEMO Richmond Center = 29%"]
[{"$f":"INDEX(Table7[Q],MATCH(Table3[[#This Row],[Question set]],Table7[Question Set],0))&\".\"&INDEX(Table5[S],MATCH(Table3[[#This Row],[Diagnostic Heading]],Table5[Diagnostic Heading],0))&\".\"&Table3[[#This Row],[Q]]","v":"4.2.5"},"Hospitality","Heating, Ventilation, Air Conditioning / Refrigeration",5,"Economizer sensor","yes","Average incentive of 20% of project cost","We have assessed opportunities to upgrade to an efficient economizer controller sensor on our rooftop heating, ventilation & air conditioning system.","BC Hydro funding is available. Assess the cost effectiveness of upgrading your rooftop heating, ventilation & air conditioning system with an efficient economizer controller sensor.","https://www.bchydro.com/ecatalog/",{"$f":"INDEX(Table1[Evaluator Question Set],MATCH(Sector,Table1[BC Hydro Sector Allocation],0))=Table3[[#This Row],[Question set]]","v":{"$error":"#N/A"}},{"$f":"IF(Table3[[#This Row],[Selected]],INDIRECT(\"'\"&INDEX(Table5[SheetName],MATCH(Table3[[#This Row],[Diagnostic Heading]],Table5[Diagnostic Heading],0))&\"'\"&\"!C\"&11+Table3[[#This Row],[Q]]),\"\")","v":{"$error":"#N/A"}},{"$f":"IFERROR(AND(Table3[[#This Row],[BCH Funded]]=\"Yes\",Table3[[#This Row],[Answer]]=\"No\"),\"\")","v":""},{"$f":"IFERROR(AND(Table3[[#This Row],[BCH Funded]]=\"no\",Table3[[#This Row],[Answer]]=\"No\"),\"\")","v":""},{"$f":"IFERROR(IF(Table3[[#This Row],[Answer]]=\"No\",INDEX(Table10[],MATCH(INDEX(Table8[CPR Type],MATCH(Table3[[#This Row],[Report Heading]],Table8[Report Heading],0)),Table10[Segment],0),MATCH(Table3[[#This Row],[Question set]],Table10[#Headers],0)),0),0.01/COUNTIFS(Table3[Question set],INDEX(Table1[Evaluator Question Set],MATCH(Sector,Table1[BC Hydro Sector Allocation],0)),Table3[Diagnostic Heading],Table3[[#This Row],[Diagnostic Heading]],Table3[Selected],TRUE))","v":{"$error":"#DIV/0!"}},1,0.1,{"$f":"Table3[[#This Row],[a]]*Table3[[#This Row],[b]]*Table3[[#This Row],[c]]","v":{"$error":"#DIV/0!"}},{"$f":"Table3[[#This Row],[ES Percent]]*AnnEgyCons","v":{"$error":"#DIV/0!"}},true,"Stan Ma: past experience"]
[{"$f":"INDEX(Table7[Q],MATCH(Table3[[#This Row],[Question set]],Table7[Question Set],0))&\".\"&INDEX(Table5[S],MATCH(Table3[[#This Row],[Diagnostic Heading]],Table5[Diagnostic Heading],0))&\".\"&Table3[[#This Row],[Q]]","v":"4.4.1"},"Hospitality","Energy Efficient Equipment",1,"Efficient equipment","no",null,"We have installed equipment to manage and control large energy users (e.g. energy management system for lighting, water heaters, pools, laundry equipment).","Familiarize yourself with equipment available to assist with managing and controlling large energy users (e.g., energy management system for lighting, water heaters, pools, laundry equipment). Learn more about managing your energy costs and consumption through the link below.","https://www.bchydro.com/powersmart/business/technologies-equipment.html",{"$f":"INDEX(Table1[Evaluator Question Set],MATCH(Sector,Table1[BC Hydro Sector Allocation],0))=Table3[[#This Row],[Question set]]","v":{"$error":"#N/A"}},{"$f":"IF(Table3[[#This Row],[Selected]],INDIRECT(\"'\"&INDEX(Table5[SheetName],MATCH(Table3[[#This Row],[Diagnostic Heading]],Table5[Diagnostic Heading],0))&\"'\"&\"!C\"&11+Table3[[#This Row],[Q]]),\"\")","v":{"$error":"#N/A"}},{"$f":"IFERROR(AND(Table3[[#This Row],[BCH Funded]]=\"Yes\",Table3[[#This Row],[Answer]]=\"No\"),\"\")","v":""},{"$f":"IFERROR(AND(Table3[[#This Row],[BCH Funded]]=\"no\",Table3[[#This Row],[Answer]]=\"No\"),\"\")","v":""},{"$f":"IFERROR(IF(Table3[[#This Row],[Answer]]=\"No\",INDEX(Table10[],MATCH(INDEX(Table8[CPR Type],MATCH(Table3[[#This Row],[Report Heading]],Table8[Report Heading],0)),Table10[Segment],0),MATCH(Table3[[#This Row],[Question set]],Table10[#Headers],0)),0),0.01/COUNTIFS(Table3[Question set],INDEX(Table1[Evaluator Question Set],MATCH(Sector,Table1[BC Hydro Sector Allocation],0)),Table3[Diagnostic Heading],Table3[[#This Row],[Diagnostic Heading]],Table3[Selected],TRUE))","v":{"$error":"#DIV/0!"}},1,0.05,{"$f":"Table3[[#This Row],[a]]*Table3[[#This Row],[b]]*Table3[[#This Row],[c]]","v":{"$error":"#DIV/0!"}},{"$f":"Table3[[#This Row],[ES Percent]]*AnnEgyCons","v":{"$error":"#DIV/0!"}},true,"Typical EMIS program offer"]
[{"$f":"INDEX(Table7[Q],MATCH(Table3[[#This Row],[Question set]],Table7[Question Set],0))&\".\"&INDEX(Table5[S],MATCH(Table3[[#This Row],[Diagnostic Heading]],Table5[Diagnostic Heading],0))&\".\"&Table3[[#This Row],[Q]]","v":"4.4.2"},"Hospitality","Energy Efficient Equipment",2,"Energy Efficient Equipment","no",null,"We have equipment and appliances (i.e. ice machines, commercial kitchens) to align with Energy Star®.","Consider upgrading to a more efficient ice maker and benefit from an extra incentive. Learn more about BC Hydro’s financial incentives for this technology through the link below.","https://www.bchydro.com/powersmart/business/programs/express.html",{"$f":"INDEX(Table1[Evaluator Question Set],MATCH(Sector,Table1[BC Hydro Sector Allocation],0))=Table3[[#This Row],[Question set]]","v":{"$error":"#N/A"}},{"$f":"IF(Table3[[#This Row],[Selected]],INDIRECT(\"'\"&INDEX(Table5[SheetName],MATCH(Table3[[#This Row],[Diagnostic Heading]],Table5[Diagnostic Heading],0))&\"'\"&\"!C\"&11+Table3[[#This Row],[Q]]),\"\")","v":{"$error":"#N/A"}},{"$f":"IFERROR(AND(Table3[[#This Row],[BCH Funded]]=\"Yes\",Table3[[#This Row],[Answer]]=\"No\"),\"\")","v":""},{"$f":"IFERROR(AND(Table3[[#This Row],[BCH Funded]]=\"no\",Table3[[#This Row],[Answer]]=\"No\"),\"\")","v":""},{"$f":"IFERROR(IF(Table3[[#This Row],[Answer]]=\"No\",INDEX(Table10[],MATCH(INDEX(Table8[CPR Type],MATCH(Table3[[#This Row],[Report Heading]],Table8[Report Heading],0)),Table10[Segment],0),MATCH(Table3[[#This Row],[Question set]],Table10[#Headers],0)),0),0.01/COUNTIFS(Table3[Question set],INDEX(Table1[Evaluator Question Set],MATCH(Sector,Table1[BC Hydro Sector Allocation],0)),Table3[Diagnostic Heading],Table3[[#This Row],[Diagnostic Heading]],Table3[Selected],TRUE))","v":{"$error":"#DIV/0!"}},1,0.25,{"$f":"Table3[[#This Row],[a]]*Table3[[#This Row],[b]]*Table3[[#This Row],[c]]","v":{"$error":"#DIV/0!"}},{"$f":"Table3[[#This Row],[ES Percent]]*AnnEgyCons","v":{"$error":"#DIV/0!"}},true,"https://www1.eere.energy.gov/buildings/publications/pdfs/alliances/hea_plugloads.pdf"]
[{"$f":"INDEX(Table7[Q],MATCH(Table3[[#This Row],[Question set]],Table7[Question Set],0))&\".\"&INDEX(Table5[S],MATCH(Table3[[#This Row],[Diagnostic Heading]],Table5[Diagnostic Heading],0))&\".\"&Table3[[#This Row],[Q]]","v":"4.4.3"},"Hospitality","Energy Efficient Equipment",3,"Showerheads","no",null,"We have upgraded our showers to low flow showerheads that reduce both energy and water costs.","Assess the cost effectiveness of upgrading your showers to low flow showerheads that reduce both energy and water costs. Learn more about managing your energy costs and consumption through the link below.","https://www.bchydro.com/powersmart/residential/savings-and-rebates/do-it-yourself-and-save/install-water-saving-showerheads-aerators.html",{"$f":"INDEX(Table1[Evaluator Question Set],MATCH(Sector,Table1[BC Hydro Sector Allocation],0))=Table3[[#This Row],[Question set]]","v":{"$error":"#N/A"}},{"$f":"IF(Table3[[#This Row],[Selected]],INDIRECT(\"'\"&INDEX(Table5[SheetName],MATCH(Table3[[#This Row],[Diagnostic Heading]],Table5[Diagnostic Heading],0))&\"'\"&\"!C\"&11+Table3[[#This Row],[Q]]),\"\")","v":{"$error":"#N/A"}},{"$f":"IFERROR(AND(Table3[[#This Row],[BCH Funded]]=\"Yes\",Table3[[#This Row],[Answer]]=\"No\"),\"\")","v":""},{"$f":"IFERROR(AND(Table3[[#This Row],[BCH Funded]]=\"no\",Table3[[#This Row],[Answer]]=\"No\"),\"\")","v":""},{"$f":"IFERROR(IF(Table3[[#This Row],[Answer]]=\"No\",INDEX(Table10[],MATCH(INDEX(Table8[CPR Type],MATCH(Table3[[#This Row],[Report Heading]],Table8[Report Heading],0)),Table10[Segment],0),MATCH(Table3[[#This Row],[Question set]],Table10[#Headers],0)),0),0.01/COUNTIFS(Table3[Question set],INDEX(Table1[Evaluator Question Set],MATCH(Sector,Table1[BC Hydro Sector Allocation],0)),Table3[Diagnostic Heading],Table3[[#This Row],[Diagnostic Heading]],Table3[Selected],TRUE))","v":{"$error":"#DIV/0!"}},1,0.2,{"$f":"Table3[[#This Row],[a]]*Table3[[#This Row],[b]]*Table3[[#This Row],[c]]","v":{"$error":"#DIV/0!"}},{"$f":"Table3[[#This Row],[ES Percent]]*AnnEgyCons","v":{"$error":"#DIV/0!"}},true,"http://switch.bchydro.com/Shower_of_savings"]
[{"$f":"INDEX(Table7[Q],MATCH(Table3[[#This Row],[Question set]],Table7[Question Set],0))&\".\"&INDEX(Table5[S],MATCH(Table3[[#This Row],[Diagnostic Heading]],Table5[Diagnostic Heading],0))&\".\"&Table3[[#This Row],[Q]]","v":"4.4.4"},"Hospitality","Energy Efficient Equipment",4,"Vending Machines","no",null,"We use vending machine controllers, which incorporate occupancy sensors, on our vending machines to adjust when the area is unoccupied.","Ensure any vending machines purchased or installed, incorporate an occupancy sensor controller. ","https://www.energystar.gov/products/other/vending_machines",{"$f":"INDEX(Table1[Evaluator Question Set],MATCH(Sector,Table1[BC Hydro Sector Allocation],0))=Table3[[#This Row],[Question set]]","v":{"$error":"#N/A"}},{"$f":"IF(Table3[[#This Row],[Selected]],INDIRECT(\"'\"&INDEX(Table5[SheetName],MATCH(Table3[[#This Row],[Diagnostic Heading]],Table5[Diagnostic Heading],0))&\"'\"&\"!C\"&11+Table3[[#This Row],[Q]]),\"\")","v":{"$error":"#N/A"}},{"$f":"IFERROR(AND(Table3[[#This Row],[BCH Funded]]=\"Yes\",Table3[[#This Row],[Answer]]=\"No\"),\"\")","v":""},{"$f":"IFERROR(AND(Table3[[#This Row],[BCH Funded]]=\"no\",Table3[[#This Row],[Answer]]=\"No\"),\"\")","v":""},{"$f":"IFERROR(IF(Table3[[#This Row],[Answer]]=\"No\",INDEX(Table10[],MATCH(INDEX(Table8[CPR Type],MATCH(Table3[[#This Row],[Report Heading]],Table8[Report Heading],0)),Table10[Segment],0),MATCH(Table3[[#This Row],[Question set]],Table10[#Headers],0)),0),0.01/COUNTIFS(Table3[Question set],INDEX(Table1[Evaluator Question Set],MATCH(Sector,Table1[BC Hydro Sector Allocation],0)),Table3[Diagnostic Heading],Table3[[#This Row],[Diagnostic Heading]],Table3[Selected],TRUE))","v":{"$error":"#DIV/0!"}},1,0.1,{"$f":"Table3[[#This Row],[a]]*Table3[[#This Row],[b]]*Table3[[#This Row],[c]]","v":{"$error":"#DIV/0!"}},{"$f":"Table3[[#This Row],[ES Percent]]*AnnEgyCons","v":{"$error":"#DIV/0!"}},true]
[{"$f":"INDEX(Table7[Q],MATCH(Table3[[#This Row],[Question set]],Table7[Question Set],0))&\".\"&INDEX(Table5[S],MATCH(Table3[[#This Row],[Diagnostic Heading]],Table5[Diagnostic Heading],0))&\".\"&Table3[[#This Row],[Q]]","v":"4.4.5"},"Hospitality","Energy Efficient Equipment",5,"Refrigeration","no",null,"Our cool room/freezer is insulated and includes a strip curtain and/or auto-closing door.","Dollars are leaking out! Add strip curtains to walk-in coolers to reduce the amount of energy lost to the surrounding air. Strip curtains used in busy kitchens can cut your refrigeration costs significantly! As an added bonus, these curtains repel windborne contaminants like dust and pollutants. Auto closers will ensure coolers and freezers do not remain open. Learn more about strip curtains from the case study link below.","https://www.bchydro.com/powersmart/business/success-stories/donalds-market-success.html",{"$f":"INDEX(Table1[Evaluator Question Set],MATCH(Sector,Table1[BC Hydro Sector Allocation],0))=Table3[[#This Row],[Question set]]","v":{"$error":"#N/A"}},{"$f":"IF(Table3[[#This Row],[Selected]],INDIRECT(\"'\"&INDEX(Table5[SheetName],MATCH(Table3[[#This Row],[Diagnostic Heading]],Table5[Diagnostic Heading],0))&\"'\"&\"!C\"&11+Table3[[#This Row],[Q]]),\"\")","v":{"$error":"#N/A"}},{"$f":"IFERROR(AND(Table3[[#This Row],[BCH Funded]]=\"Yes\",Table3[[#This Row],[Answer]]=\"No\"),\"\")","v":""},{"$f":"IFERROR(AND(Table3[[#This Row],[BCH Funded]]=\"no\",Table3[[#This Row],[Answer]]=\"No\"),\"\")","v":""},{"$f":"IFERROR(IF(Table3[[#This Row],[Answer]]=\"No\",INDEX(Table10[],MATCH(INDEX(Table8[CPR Type],MATCH(Table3[[#This Row],[Report Heading]],Table8[Report Heading],0)),Table10[Segment],0),MATCH(Table3[[#This Row],[Question set]],Table10[#Headers],0)),0),0.01/COUNTIFS(Table3[Question set],INDEX(Table1[Evaluator Question Set],MATCH(Sector,Table1[BC Hydro Sector Allocation],0)),Table3[Diagnostic Heading],Table3[[#This Row],[Diagnostic Heading]],Table3[Selected],TRUE))","v":{"$error":"#DIV/0!"}},1,0.24,{"$f":"Table3[[#This Row],[a]]*Table3[[#This Row],[b]]*Table3[[#This Row],[c]]","v":{"$error":"#DIV/0!"}},{"$f":"Table3[[#This Row],[ES Percent]]*AnnEgyCons","v":{"$error":"#DIV/0!"}},true,"https://www.bchydro.com/powersmart/business/technologies-equipment.html"]
[{"$f":"INDEX(Table7[Q],MATCH(Table3[[#This Row],[Question set]],Table7[Question Set],0))&\".\"&INDEX(Table5[S],MATCH(Table3[[#This Row],[Diagnostic Heading]],Table5[Diagnostic Heading],0))&\".\"&Table3[[#This Row],[Q]]","v":"4.5.1"},"Hospitality","Operating and Maintenance Practices",1,"Hot water control","no",null,"We have explored how to reduce hot water temperature while still maintaining required conditions.","Look into the possibility of reducing your hot water temperature while still maintaining required sanitary conditions. You'll be surprised at what can be saved through reducing hot water temperature without degrading the use.  Learn more about water heating and usage through the link below.","https://www.bchydro.com/powersmart/business/technologies-equipment/heating-cooling.html",{"$f":"INDEX(Table1[Evaluator Question Set],MATCH(Sector,Table1[BC Hydro Sector Allocation],0))=Table3[[#This Row],[Question set]]","v":{"$error":"#N/A"}},{"$f":"IF(Table3[[#This Row],[Selected]],INDIRECT(\"'\"&INDEX(Table5[SheetName],MATCH(Table3[[#This Row],[Diagnostic Heading]],Table5[Diagnostic Heading],0))&\"'\"&\"!C\"&11+Table3[[#This Row],[Q]]),\"\")","v":{"$error":"#N/A"}},{"$f":"IFERROR(AND(Table3[[#This Row],[BCH Funded]]=\"Yes\",Table3[[#This Row],[Answer]]=\"No\"),\"\")","v":""},{"$f":"IFERROR(AND(Table3[[#This Row],[BCH Funded]]=\"no\",Table3[[#This Row],[Answer]]=\"No\"),\"\")","v":""},{"$f":"IFERROR(IF(Table3[[#This Row],[Answer]]=\"No\",INDEX(Table10[],MATCH(INDEX(Table8[CPR Type],MATCH(Table3[[#This Row],[Report Heading]],Table8[Report Heading],0)),Table10[Segment],0),MATCH(Table3[[#This Row],[Question set]],Table10[#Headers],0)),0),0.01/COUNTIFS(Table3[Question set],INDEX(Table1[Evaluator Question Set],MATCH(Sector,Table1[BC Hydro Sector Allocation],0)),Table3[Diagnostic Heading],Table3[[#This Row],[Diagnostic Heading]],Table3[Selected],TRUE))","v":{"$error":"#DIV/0!"}},1,1,{"$f":"Table3[[#This Row],[a]]*Table3[[#This Row],[b]]*Table3[[#This Row],[c]]","v":{"$error":"#DIV/0!"}},{"$f":"Table3[[#This Row],[ES Percent]]*AnnEgyCons","v":{"$error":"#DIV/0!"}},true]
[{"$f":"INDEX(Table7[Q],MATCH(Table3[[#This Row],[Question set]],Table7[Question Set],0))&\".\"&INDEX(Table5[S],MATCH(Table3[[#This Row],[Diagnostic Heading]],Table5[Diagnostic Heading],0))&\".\"&Table3[[#This Row],[Q]]","v":"4.5.2"},"Hospitality","Operating and Maintenance Practices",2,"Staff operating procedures","no",null,"Our staff turns off equipment when not needed (e.g., turns off lights and equipment when not in use, after hours and on weekends).","The most important tip for your business is “turn it off!!”. Introduce procedures to encourage staff to turn off equipment when not needed (e.g. turn off lights and office equipment when not in use, after hours and on weekends). Find more tips and information about how and when to turn off equipment through the link below.","https://www.bchydro.com/powersmart/business/technologies-equipment/lighting-systems.html#1",{"$f":"INDEX(Table1[Evaluator Question Set],MATCH(Sector,Table1[BC Hydro Sector Allocation],0))=Table3[[#This Row],[Question set]]","v":{"$error":"#N/A"}},{"$f":"IF(Table3[[#This Row],[Selected]],INDIRECT(\"'\"&INDEX(Table5[SheetName],MATCH(Table3[[#This Row],[Diagnostic Heading]],Table5[Diagnostic Heading],0))&\"'\"&\"!C\"&11+Table3[[#This Row],[Q]]),\"\")","v":{"$error":"#N/A"}},{"$f":"IFERROR(AND(Table3[[#This Row],[BCH Funded]]=\"Yes\",Table3[[#This Row],[Answer]]=\"No\"),\"\")","v":""},{"$f":"IFERROR(AND(Table3[[#This Row],[BCH Funded]]=\"no\",Table3[[#This Row],[Answer]]=\"No\"),\"\")","v":""},{"$f":"IFERROR(IF(Table3[[#This Row],[Answer]]=\"No\",INDEX(Table10[],MATCH(INDEX(Table8[CPR Type],MATCH(Table3[[#This Row],[Report Heading]],Table8[Report Heading],0)),Table10[Segment],0),MATCH(Table3[[#This Row],[Question set]],Table10[#Headers],0)),0),0.01/COUNTIFS(Table3[Question set],INDEX(Table1[Evaluator Question Set],MATCH(Sector,Table1[BC Hydro Sector Allocation],0)),Table3[Diagnostic Heading],Table3[[#This Row],[Diagnostic Heading]],Table3[Selected],TRUE))","v":{"$error":"#DIV/0!"}},1,1,{"$f":"Table3[[#This Row],[a]]*Table3[[#This Row],[b]]*Table3[[#This Row],[c]]","v":{"$error":"#DIV/0!"}},{"$f":"Table3[[#This Row],[ES Percent]]*AnnEgyCons","v":{"$error":"#DIV/0!"}},true]
[{"$f":"INDEX(Table7[Q],MATCH(Table3[[#This Row],[Question set]],Table7[Question Set],0))&\".\"&INDEX(Table5[S],MATCH(Table3[[#This Row],[Diagnostic Heading]],Table5[Diagnostic Heading],0))&\".\"&Table3[[#This Row],[Q]]","v":"4.5.3"},"Hospitality","Operating and Maintenance Practices",3,"Maintenance practices","no",null,"We conduct regular maintenance on our heating, ventilation & air conditioning system (e.g. cleaning condenser coils, changing filters, checking operation of economizer).","Modify your maintenance procedures on your heating, ventilation & air conditioning system to include regular energy efficiency checks (e.g. cleaning condenser coils, changing filters, checking operation of economizers). Heating, ventilation and air conditioning systems are at their most efficient when they are well maintained. Learn more about maintenance procedures through the link below.","https://www.bchydro.com/powersmart/business/technologies-equipment/heating-cooling.html#d",{"$f":"INDEX(Table1[Evaluator Question Set],MATCH(Sector,Table1[BC Hydro Sector Allocation],0))=Table3[[#This Row],[Question set]]","v":{"$error":"#N/A"}},{"$f":"IF(Table3[[#This Row],[Selected]],INDIRECT(\"'\"&INDEX(Table5[SheetName],MATCH(Table3[[#This Row],[Diagnostic Heading]],Table5[Diagnostic Heading],0))&\"'\"&\"!C\"&11+Table3[[#This Row],[Q]]),\"\")","v":{"$error":"#N/A"}},{"$f":"IFERROR(AND(Table3[[#This Row],[BCH Funded]]=\"Yes\",Table3[[#This Row],[Answer]]=\"No\"),\"\")","v":""},{"$f":"IFERROR(AND(Table3[[#This Row],[BCH Funded]]=\"no\",Table3[[#This Row],[Answer]]=\"No\"),\"\")","v":""},{"$f":"IFERROR(IF(Table3[[#This Row],[Answer]]=\"No\",INDEX(Table10[],MATCH(INDEX(Table8[CPR Type],MATCH(Table3[[#This Row],[Report Heading]],Table8[Report Heading],0)),Table10[Segment],0),MATCH(Table3[[#This Row],[Question set]],Table10[#Headers],0)),0),0.01/COUNTIFS(Table3[Question set],INDEX(Table1[Evaluator Question Set],MATCH(Sector,Table1[BC Hydro Sector Allocation],0)),Table3[Diagnostic Heading],Table3[[#This Row],[Diagnostic Heading]],Table3[Selected],TRUE))","v":{"$error":"#DIV/0!"}},1,1,{"$f":"Table3[[#This Row],[a]]*Table3[[#This Row],[b]]*Table3[[#This Row],[c]]","v":{"$error":"#DIV/0!"}},{"$f":"Table3[[#This Row],[ES Percent]]*AnnEgyCons","v":{"$error":"#DIV/0!"}},true]
[{"$f":"INDEX(Table7[Q],MATCH(Table3[[#This Row],[Question set]],Table7[Question Set],0))&\".\"&INDEX(Table5[S],MATCH(Table3[[#This Row],[Diagnostic Heading]],Table5[Diagnostic Heading],0))&\".\"&Table3[[#This Row],[Q]]","v":"4.5.4"},"Hospitality","Operating and Maintenance Practices",4,"Energy saving tips","no",null,"We have a list of energy saving tips for our type of business.","Prepare a list of energy saving tips for your type of business. BC Hydro Power Smart has tips available. Find energy saving tips through the link below.","https://www.bchydro.com/powersmart/business/technologies-equipment.html?WT.mc_id=rd_oldgreenyourbusiness",{"$f":"INDEX(Table1[Evaluator Question Set],MATCH(Sector,Table1[BC Hydro Sector Allocation],0))=Table3[[#This Row],[Question set]]","v":{"$error":"#N/A"}},{"$f":"IF(Table3[[#This Row],[Selected]],INDIRECT(\"'\"&INDEX(Table5[SheetName],MATCH(Table3[[#This Row],[Diagnostic Heading]],Table5[Diagnostic Heading],0))&\"'\"&\"!C\"&11+Table3[[#This Row],[Q]]),\"\")","v":{"$error":"#N/A"}},{"$f":"IFERROR(AND(Table3[[#This Row],[BCH Funded]]=\"Yes\",Table3[[#This Row],[Answer]]=\"No\"),\"\")","v":""},{"$f":"IFERROR(AND(Table3[[#This Row],[BCH Funded]]=\"no\",Table3[[#This Row],[Answer]]=\"No\"),\"\")","v":""},{"$f":"IFERROR(IF(Table3[[#This Row],[Answer]]=\"No\",INDEX(Table10[],MATCH(INDEX(Table8[CPR Type],MATCH(Table3[[#This Row],[Report Heading]],Table8[Report Heading],0)),Table10[Segment],0),MATCH(Table3[[#This Row],[Question set]],Table10[#Headers],0)),0),0.01/COUNTIFS(Table3[Question set],INDEX(Table1[Evaluator Question Set],MATCH(Sector,Table1[BC Hydro Sector Allocation],0)),Table3[Diagnostic Heading],Table3[[#This Row],[Diagnostic Heading]],Table3[Selected],TRUE))","v":{"$error":"#DIV/0!"}},1,1,{"$f":"Table3[[#This Row],[a]]*Table3[[#This Row],[b]]*Table3[[#This Row],[c]]","v":{"$error":"#DIV/0!"}},{"$f":"Table3[[#This Row],[ES Percent]]*AnnEgyCons","v":{"$error":"#DIV/0!"}},true]
[{"$f":"INDEX(Table7[Q],MATCH(Table3[[#This Row],[Question set]],Table7[Question Set],0))&\".\"&INDEX(Table5[S],MATCH(Table3[[#This Row],[Diagnostic Heading]],Table5[Diagnostic Heading],0))&\".\"&Table3[[#This Row],[Q]]","v":"4.5.5"},"Hospitality","Operating and Maintenance Practices",5,"Staff Awareness","no",null,"We have conducted energy conservation awareness activities (e.g. signage, newsletters, competitions).","Conduct energy conservation awareness activities with your staff (e.g. signage, newsletters, competitions). Find tips and information on workplace conservation activities through the link below.","https://www.bchydro.com/powersmart/business/programs/workplace-conservation.html?WT.mc_id=rd_oldworkplaceconservationawareness",{"$f":"INDEX(Table1[Evaluator Question Set],MATCH(Sector,Table1[BC Hydro Sector Allocation],0))=Table3[[#This Row],[Question set]]","v":{"$error":"#N/A"}},{"$f":"IF(Table3[[#This Row],[Selected]],INDIRECT(\"'\"&INDEX(Table5[SheetName],MATCH(Table3[[#This Row],[Diagnostic Heading]],Table5[Diagnostic Heading],0))&\"'\"&\"!C\"&11+Table3[[#This Row],[Q]]),\"\")","v":{"$error":"#N/A"}},{"$f":"IFERROR(AND(Table3[[#This Row],[BCH Funded]]=\"Yes\",Table3[[#This Row],[Answer]]=\"No\"),\"\")","v":""},{"$f":"IFERROR(AND(Table3[[#This Row],[BCH Funded]]=\"no\",Table3[[#This Row],[Answer]]=\"No\"),\"\")","v":""},{"$f":"IFERROR(IF(Table3[[#This Row],[Answer]]=\"No\",INDEX(Table10[],MATCH(INDEX(Table8[CPR Type],MATCH(Table3[[#This Row],[Report Heading]],Table8[Report Heading],0)),Table10[Segment],0),MATCH(Table3[[#This Row],[Question set]],Table10[#Headers],0)),0),0.01/COUNTIFS(Table3[Question set],INDEX(Table1[Evaluator Question Set],MATCH(Sector,Table1[BC Hydro Sector Allocation],0)),Table3[Diagnostic Heading],Table3[[#This Row],[Diagnostic Heading]],Table3[Selected],TRUE))","v":{"$error":"#DIV/0!"}},1,1,{"$f":"Table3[[#This Row],[a]]*Table3[[#This Row],[b]]*Table3[[#This Row],[c]]","v":{"$error":"#DIV/0!"}},{"$f":"Table3[[#This Row],[ES Percent]]*AnnEgyCons","v":{"$error":"#DIV/0!"}},true]
[{"$f":"INDEX(Table7[Q],MATCH(Table3[[#This Row],[Question set]],Table7[Question Set],0))&\".\"&INDEX(Table5[S],MATCH(Table3[[#This Row],[Diagnostic Heading]],Table5[Diagnostic Heading],0))&\".\"&Table3[[#This Row],[Q]]","v":"4.6.1"},"Hospitality","Management Practice",1,"Effective management of energy data","no",null,"We regularly go to bchydro.com and use MyHydro to track our energy usage.","Develop a process for managing energy bills and metered energy use information centrally. For example in a spreadsheet, database, or other online tool for ready access. Sign up to see your BC Hydro account information online using the link below.","https://www.bchydro.com/account/UI/Login?realm=bch-ps&goto=https%3A%2F%2Fwww.bchydro.com%3A443%2FBCHCustomerPortal%2Fweb%2Flogin.html",{"$f":"INDEX(Table1[Evaluator Question Set],MATCH(Sector,Table1[BC Hydro Sector Allocation],0))=Table3[[#This Row],[Question set]]","v":{"$error":"#N/A"}},{"$f":"IF(Table3[[#This Row],[Selected]],INDIRECT(\"'\"&INDEX(Table5[SheetName],MATCH(Table3[[#This Row],[Diagnostic Heading]],Table5[Diagnostic Heading],0))&\"'\"&\"!C\"&11+Table3[[#This Row],[Q]]),\"\")","v":{"$error":"#N/A"}},{"$f":"IFERROR(AND(Table3[[#This Row],[BCH Funded]]=\"Yes\",Table3[[#This Row],[Answer]]=\"No\"),\"\")","v":""},{"$f":"IFERROR(AND(Table3[[#This Row],[BCH Funded]]=\"no\",Table3[[#This Row],[Answer]]=\"No\"),\"\")","v":""},{"$f":"IFERROR(IF(Table3[[#This Row],[Answer]]=\"No\",INDEX(Table10[],MATCH(INDEX(Table8[CPR Type],MATCH(Table3[[#This Row],[Report Heading]],Table8[Report Heading],0)),Table10[Segment],0),MATCH(Table3[[#This Row],[Question set]],Table10[#Headers],0)),0),0.01/COUNTIFS(Table3[Question set],INDEX(Table1[Evaluator Question Set],MATCH(Sector,Table1[BC Hydro Sector Allocation],0)),Table3[Diagnostic Heading],Table3[[#This Row],[Diagnostic Heading]],Table3[Selected],TRUE))","v":{"$error":"#DIV/0!"}},1,1,{"$f":"Table3[[#This Row],[a]]*Table3[[#This Row],[b]]*Table3[[#This Row],[c]]","v":{"$error":"#DIV/0!"}},{"$f":"Table3[[#This Row],[ES Percent]]*AnnEgyCons","v":{"$error":"#DIV/0!"}},true]
[{"$f":"INDEX(Table7[Q],MATCH(Table3[[#This Row],[Question set]],Table7[Question Set],0))&\".\"&INDEX(Table5[S],MATCH(Table3[[#This Row],[Diagnostic Heading]],Table5[Diagnostic Heading],0))&\".\"&Table3[[#This Row],[Q]]","v":"4.6.2"},"Hospitality","Management Practice",2,"Reporting systems for energy use","no",null,"We periodically report energy use for our business to relevant staff.","Establish a process to regularly report your energy efficiency to management and staff. Learn more about managing energy costs and consumption in your business through the link below.","https://www.bchydro.com/powersmart/business/types-of-business-customers.html",{"$f":"INDEX(Table1[Evaluator Question Set],MATCH(Sector,Table1[BC Hydro Sector Allocation],0))=Table3[[#This Row],[Question set]]","v":{"$error":"#N/A"}},{"$f":"IF(Table3[[#This Row],[Selected]],INDIRECT(\"'\"&INDEX(Table5[SheetName],MATCH(Table3[[#This Row],[Diagnostic Heading]],Table5[Diagnostic Heading],0))&\"'\"&\"!C\"&11+Table3[[#This Row],[Q]]),\"\")","v":{"$error":"#N/A"}},{"$f":"IFERROR(AND(Table3[[#This Row],[BCH Funded]]=\"Yes\",Table3[[#This Row],[Answer]]=\"No\"),\"\")","v":""},{"$f":"IFERROR(AND(Table3[[#This Row],[BCH Funded]]=\"no\",Table3[[#This Row],[Answer]]=\"No\"),\"\")","v":""},{"$f":"IFERROR(IF(Table3[[#This Row],[Answer]]=\"No\",INDEX(Table10[],MATCH(INDEX(Table8[CPR Type],MATCH(Table3[[#This Row],[Report Heading]],Table8[Report Heading],0)),Table10[Segment],0),MATCH(Table3[[#This Row],[Question set]],Table10[#Headers],0)),0),0.01/COUNTIFS(Table3[Question set],INDEX(Table1[Evaluator Question Set],MATCH(Sector,Table1[BC Hydro Sector Allocation],0)),Table3[Diagnostic Heading],Table3[[#This Row],[Diagnostic Heading]],Table3[Selected],TRUE))","v":{"$error":"#DIV/0!"}},1,1,{"$f":"Table3[[#This Row],[a]]*Table3[[#This Row],[b]]*Table3[[#This Row],[c]]","v":{"$error":"#DIV/0!"}},{"$f":"Table3[[#This Row],[ES Percent]]*AnnEgyCons","v":{"$error":"#DIV/0!"}},true]
[{"$f":"INDEX(Table7[Q],MATCH(Table3[[#This Row],[Question set]],Table7[Question Set],0))&\".\"&INDEX(Table5[S],MATCH(Table3[[#This Row],[Diagnostic Heading]],Table5[Diagnostic Heading],0))&\".\"&Table3[[#This Row],[Q]]","v":"4.6.3"},"Hospitality","Management Practice",3,"Targets and Planning","no",null,"We have a target and action plan to reduce energy costs for the next year (e.g. kWh/sq. ft. by 10%).","Create a realistic target and action plan to reduce energy costs for the next year (e.g. kWh/sq. ft. by 10%). Find out how to manage your energy costs and consumption in your business through the link below.","https://www.bchydro.com/news/conservation/2014/myhydro-to-manage-energy-and-profitability.html",{"$f":"INDEX(Table1[Evaluator Question Set],MATCH(Sector,Table1[BC Hydro Sector Allocation],0))=Table3[[#This Row],[Question set]]","v":{"$error":"#N/A"}},{"$f":"IF(Table3[[#This Row],[Selected]],INDIRECT(\"'\"&INDEX(Table5[SheetName],MATCH(Table3[[#This Row],[Diagnostic Heading]],Table5[Diagnostic Heading],0))&\"'\"&\"!C\"&11+Table3[[#This Row],[Q]]),\"\")","v":{"$error":"#N/A"}},{"$f":"IFERROR(AND(Table3[[#This Row],[BCH Funded]]=\"Yes\",Table3[[#This Row],[Answer]]=\"No\"),\"\")","v":""},{"$f":"IFERROR(AND(Table3[[#This Row],[BCH Funded]]=\"no\",Table3[[#This Row],[Answer]]=\"No\"),\"\")","v":""},{"$f":"IFERROR(IF(Table3[[#This Row],[Answer]]=\"No\",INDEX(Table10[],MATCH(INDEX(Table8[CPR Type],MATCH(Table3[[#This Row],[Report Heading]],Table8[Report Heading],0)),Table10[Segment],0),MATCH(Table3[[#This Row],[Question set]],Table10[#Headers],0)),0),0.01/COUNTIFS(Table3[Question set],INDEX(Table1[Evaluator Question Set],MATCH(Sector,Table1[BC Hydro Sector Allocation],0)),Table3[Diagnostic Heading],Table3[[#This Row],[Diagnostic Heading]],Table3[Selected],TRUE))","v":{"$error":"#DIV/0!"}},1,1,{"$f":"Table3[[#This Row],[a]]*Table3[[#This Row],[b]]*Table3[[#This Row],[c]]","v":{"$error":"#DIV/0!"}},{"$f":"Table3[[#This Row],[ES Percent]]*AnnEgyCons","v":{"$error":"#DIV/0!"}},true]
[{"$f":"INDEX(Table7[Q],MATCH(Table3[[#This Row],[Question set]],Table7[Question Set],0))&\".\"&INDEX(Table5[S],MATCH(Table3[[#This Row],[Diagnostic Heading]],Table5[Diagnostic Heading],0))&\".\"&Table3[[#This Row],[Q]]","v":"4.6.4"},"Hospitality","Management Practice",4,"Understanding of energy performance and opportunities","no",null,"We have completed an energy audit, which has quantified costs and savings opportunities.","Conduct an energy audit to quantify costs and identify savings opportunities. Learn how to do an energy audit and build a business case for energy efficiency through the link below.","http://www.bchydro.com/powersmart/business/business-energy-advisors.html?WT.mc_id=rd_bea",{"$f":"INDEX(Table1[Evaluator Question Set],MATCH(Sector,Table1[BC Hydro Sector Allocation],0))=Table3[[#This Row],[Question set]]","v":{"$error":"#N/A"}},{"$f":"IF(Table3[[#This Row],[Selected]],INDIRECT(\"'\"&INDEX(Table5[SheetName],MATCH(Table3[[#This Row],[Diagnostic Heading]],Table5[Diagnostic Heading],0))&\"'\"&\"!C\"&11+Table3[[#This Row],[Q]]),\"\")","v":{"$error":"#N/A"}},{"$f":"IFERROR(AND(Table3[[#This Row],[BCH Funded]]=\"Yes\",Table3[[#This Row],[Answer]]=\"No\"),\"\")","v":""},{"$f":"IFERROR(AND(Table3[[#This Row],[BCH Funded]]=\"no\",Table3[[#This Row],[Answer]]=\"No\"),\"\")","v":""},{"$f":"IFERROR(IF(Table3[[#This Row],[Answer]]=\"No\",INDEX(Table10[],MATCH(INDEX(Table8[CPR Type],MATCH(Table3[[#This Row],[Report Heading]],Table8[Report Heading],0)),Table10[Segment],0),MATCH(Table3[[#This Row],[Question set]],Table10[#Headers],0)),0),0.01/COUNTIFS(Table3[Question set],INDEX(Table1[Evaluator Question Set],MATCH(Sector,Table1[BC Hydro Sector Allocation],0)),Table3[Diagnostic Heading],Table3[[#This Row],[Diagnostic Heading]],Table3[Selected],TRUE))","v":{"$error":"#DIV/0!"}},1,1,{"$f":"Table3[[#This Row],[a]]*Table3[[#This Row],[b]]*Table3[[#This Row],[c]]","v":{"$error":"#DIV/0!"}},{"$f":"Table3[[#This Row],[ES Percent]]*AnnEgyCons","v":{"$error":"#DIV/0!"}},true]
[{"$f":"INDEX(Table7[Q],MATCH(Table3[[#This Row],[Question set]],Table7[Question Set],0))&\".\"&INDEX(Table5[S],MATCH(Table3[[#This Row],[Diagnostic Heading]],Table5[Diagnostic Heading],0))&\".\"&Table3[[#This Row],[Q]]","v":"4.6.5"},"Hospitality","Management Practice",5,"Purchasing","no",null,"We use energy efficient guidelines and product catalogues when buying equipment or specify standards in our procurement process.","Use Power Smart buying guides and product catalogues when buying equipment or specify energy efficiency standards in your procurement process. Visit the link below for BC Hydro Power Smart buying guides.","https://www.bchydro.com/powersmart/business/technologies-equipment.html\nhttps://www.energystar.gov/products?s=mega",{"$f":"INDEX(Table1[Evaluator Question Set],MATCH(Sector,Table1[BC Hydro Sector Allocation],0))=Table3[[#This Row],[Question set]]","v":{"$error":"#N/A"}},{"$f":"IF(Table3[[#This Row],[Selected]],INDIRECT(\"'\"&INDEX(Table5[SheetName],MATCH(Table3[[#This Row],[Diagnostic Heading]],Table5[Diagnostic Heading],0))&\"'\"&\"!C\"&11+Table3[[#This Row],[Q]]),\"\")","v":{"$error":"#N/A"}},{"$f":"IFERROR(AND(Table3[[#This Row],[BCH Funded]]=\"Yes\",Table3[[#This Row],[Answer]]=\"No\"),\"\")","v":""},{"$f":"IFERROR(AND(Table3[[#This Row],[BCH Funded]]=\"no\",Table3[[#This Row],[Answer]]=\"No\"),\"\")","v":""},{"$f":"IFERROR(IF(Table3[[#This Row],[Answer]]=\"No\",INDEX(Table10[],MATCH(INDEX(Table8[CPR Type],MATCH(Table3[[#This Row],[Report Heading]],Table8[Report Heading],0)),Table10[Segment],0),MATCH(Table3[[#This Row],[Question set]],Table10[#Headers],0)),0),0.01/COUNTIFS(Table3[Question set],INDEX(Table1[Evaluator Question Set],MATCH(Sector,Table1[BC Hydro Sector Allocation],0)),Table3[Diagnostic Heading],Table3[[#This Row],[Diagnostic Heading]],Table3[Selected],TRUE))","v":{"$error":"#DIV/0!"}},1,1,{"$f":"Table3[[#This Row],[a]]*Table3[[#This Row],[b]]*Table3[[#This Row],[c]]","v":{"$error":"#DIV/0!"}},{"$f":"Table3[[#This Row],[ES Percent]]*AnnEgyCons","v":{"$error":"#DIV/0!"}},true]
[{"$f":"INDEX(Table7[Q],MATCH(Table3[[#This Row],[Question set]],Table7[Question Set],0))&\".\"&INDEX(Table5[S],MATCH(Table3[[#This Row],[Diagnostic Heading]],Table5[Diagnostic Heading],0))&\".\"&Table3[[#This Row],[Q]]","v":"5.1.1"},"Retail (food)","Lighting",1,"LED Lighting","yes","Average incentive of 50% of product cost","We have upgraded our incandescent lighting to energy efficient LED lamps.","BC Hydro funding is available. Assess the cost effectiveness of upgrading your incandescent lighting to energy efficient LEDs. LEDs use at least 75% less energy than a standard incandescent and last about 15 to 20 times longer than incandescent lighting, and about three times longer than CFLs. Learn more about LEDs by clicking the link below. ","http://www.bchydro.com/news/conservation/2014/led-lighting-increasingly-popular.html",{"$f":"INDEX(Table1[Evaluator Question Set],MATCH(Sector,Table1[BC Hydro Sector Allocation],0))=Table3[[#This Row],[Question set]]","v":{"$error":"#N/A"}},{"$f":"IF(Table3[[#This Row],[Selected]],INDIRECT(\"'\"&INDEX(Table5[SheetName],MATCH(Table3[[#This Row],[Diagnostic Heading]],Table5[Diagnostic Heading],0))&\"'\"&\"!C\"&11+Table3[[#This Row],[Q]]),\"\")","v":{"$error":"#N/A"}},{"$f":"IFERROR(AND(Table3[[#This Row],[BCH Funded]]=\"Yes\",Table3[[#This Row],[Answer]]=\"No\"),\"\")","v":""},{"$f":"IFERROR(AND(Table3[[#This Row],[BCH Funded]]=\"no\",Table3[[#This Row],[Answer]]=\"No\"),\"\")","v":""},{"$f":"IFERROR(IF(Table3[[#This Row],[Answer]]=\"No\",INDEX(Table10[],MATCH(INDEX(Table8[CPR Type],MATCH(Table3[[#This Row],[Report Heading]],Table8[Report Heading],0)),Table10[Segment],0),MATCH(Table3[[#This Row],[Question set]],Table10[#Headers],0)),0),0.01/COUNTIFS(Table3[Question set],INDEX(Table1[Evaluator Question Set],MATCH(Sector,Table1[BC Hydro Sector Allocation],0)),Table3[Diagnostic Heading],Table3[[#This Row],[Diagnostic Heading]],Table3[Selected],TRUE))","v":{"$error":"#DIV/0!"}},0.1,0.75,{"$f":"Table3[[#This Row],[a]]*Table3[[#This Row],[b]]*Table3[[#This Row],[c]]","v":{"$error":"#DIV/0!"}},{"$f":"Table3[[#This Row],[ES Percent]]*AnnEgyCons","v":{"$error":"#DIV/0!"}},true,"Cristian Suvagau"]
[{"$f":"INDEX(Table7[Q],MATCH(Table3[[#This Row],[Question set]],Table7[Question Set],0))&\".\"&INDEX(Table5[S],MATCH(Table3[[#This Row],[Diagnostic Heading]],Table5[Diagnostic Heading],0))&\".\"&Table3[[#This Row],[Q]]","v":"5.1.2"},"Retail (food)","Lighting",2,"Fluorescent lighting","yes","Average incentive of 25% of project cost when upgrading to LED","Our fluorescent lighting uses energy efficient T8 or T5 tubes.","Consider upgrading your fluorescent lighting to energy efficient T8 lamps. If you currently have T12 lamps, upgrading to the latest T8 lamps and electronic ballasts could reduce your lighting costs by up to 40%.  Also consider upgrading to LEDs to increase your savings by up to 60% and be eligible for BC Hydro incentives.","https://www.bchydro.com/ecatalog/eCatServlet?cmd=all_psp_incentives&existId=&energyId=13&p=1&sb=3&dir=1&ip=50",{"$f":"INDEX(Table1[Evaluator Question Set],MATCH(Sector,Table1[BC Hydro Sector Allocation],0))=Table3[[#This Row],[Question set]]","v":{"$error":"#N/A"}},{"$f":"IF(Table3[[#This Row],[Selected]],INDIRECT(\"'\"&INDEX(Table5[SheetName],MATCH(Table3[[#This Row],[Diagnostic Heading]],Table5[Diagnostic Heading],0))&\"'\"&\"!C\"&11+Table3[[#This Row],[Q]]),\"\")","v":{"$error":"#N/A"}},{"$f":"IFERROR(AND(Table3[[#This Row],[BCH Funded]]=\"Yes\",Table3[[#This Row],[Answer]]=\"No\"),\"\")","v":""},{"$f":"IFERROR(AND(Table3[[#This Row],[BCH Funded]]=\"no\",Table3[[#This Row],[Answer]]=\"No\"),\"\")","v":""},{"$f":"IFERROR(IF(Table3[[#This Row],[Answer]]=\"No\",INDEX(Table10[],MATCH(INDEX(Table8[CPR Type],MATCH(Table3[[#This Row],[Report Heading]],Table8[Report Heading],0)),Table10[Segment],0),MATCH(Table3[[#This Row],[Question set]],Table10[#Headers],0)),0),0.01/COUNTIFS(Table3[Question set],INDEX(Table1[Evaluator Question Set],MATCH(Sector,Table1[BC Hydro Sector Allocation],0)),Table3[Diagnostic Heading],Table3[[#This Row],[Diagnostic Heading]],Table3[Selected],TRUE))","v":{"$error":"#DIV/0!"}},0.9,0.3,{"$f":"Table3[[#This Row],[a]]*Table3[[#This Row],[b]]*Table3[[#This Row],[c]]","v":{"$error":"#DIV/0!"}},{"$f":"Table3[[#This Row],[ES Percent]]*AnnEgyCons","v":{"$error":"#DIV/0!"}},true,"Cristian Suvagau"]
[{"$f":"INDEX(Table7[Q],MATCH(Table3[[#This Row],[Question set]],Table7[Question Set],0))&\".\"&INDEX(Table5[S],MATCH(Table3[[#This Row],[Diagnostic Heading]],Table5[Diagnostic Heading],0))&\".\"&Table3[[#This Row],[Q]]","v":"5.1.3"},"Retail (food)","Lighting",3,"LED Exit lighting","No",null,"We have replaced incandescent exit signs with energy efficient LED exit signs.","Did you know that exit signs are now legislated by the federal government?","http://www.nrcan.gc.ca/energy/regulations-codes-standards/18419",{"$f":"INDEX(Table1[Evaluator Question Set],MATCH(Sector,Table1[BC Hydro Sector Allocation],0))=Table3[[#This Row],[Question set]]","v":{"$error":"#N/A"}},{"$f":"IF(Table3[[#This Row],[Selected]],INDIRECT(\"'\"&INDEX(Table5[SheetName],MATCH(Table3[[#This Row],[Diagnostic Heading]],Table5[Diagnostic Heading],0))&\"'\"&\"!C\"&11+Table3[[#This Row],[Q]]),\"\")","v":{"$error":"#N/A"}},{"$f":"IFERROR(AND(Table3[[#This Row],[BCH Funded]]=\"Yes\",Table3[[#This Row],[Answer]]=\"No\"),\"\")","v":""},{"$f":"IFERROR(AND(Table3[[#This Row],[BCH Funded]]=\"no\",Table3[[#This Row],[Answer]]=\"No\"),\"\")","v":""},{"$f":"IFERROR(IF(Table3[[#This Row],[Answer]]=\"No\",INDEX(Table10[],MATCH(INDEX(Table8[CPR Type],MATCH(Table3[[#This Row],[Report Heading]],Table8[Report Heading],0)),Table10[Segment],0),MATCH(Table3[[#This Row],[Question set]],Table10[#Headers],0)),0),0.01/COUNTIFS(Table3[Question set],INDEX(Table1[Evaluator Question Set],MATCH(Sector,Table1[BC Hydro Sector Allocation],0)),Table3[Diagnostic Heading],Table3[[#This Row],[Diagnostic Heading]],Table3[Selected],TRUE))","v":{"$error":"#DIV/0!"}},0.02,0.9,{"$f":"Table3[[#This Row],[a]]*Table3[[#This Row],[b]]*Table3[[#This Row],[c]]","v":{"$error":"#DIV/0!"}},{"$f":"Table3[[#This Row],[ES Percent]]*AnnEgyCons","v":{"$error":"#DIV/0!"}},true,"Cristian Suvagau"]
[{"$f":"INDEX(Table7[Q],MATCH(Table3[[#This Row],[Question set]],Table7[Question Set],0))&\".\"&INDEX(Table5[S],MATCH(Table3[[#This Row],[Diagnostic Heading]],Table5[Diagnostic Heading],0))&\".\"&Table3[[#This Row],[Q]]","v":"5.1.4"},"Retail (food)","Lighting",4,"Exterior Lighting","yes","Average incentive of 25% of project cost","We have upgraded our exterior lighting to energy efficient lamps and fixtures that reduce glare, light pollution and lighting costs (e.g. in parking lots).","Consider upgrading your exterior lighting (e.g. in parking lots) to T8 fluorescent or LED (incentives available for specific LED technologies). These will provide savings and you can get your return even quicker with incentives.","https://www.bchydro.com/ecatalog/eCatServlet?cmd=all_psp_incentives&existId=&energyId=13&p=1&sb=3&dir=1&ip=50",{"$f":"INDEX(Table1[Evaluator Question Set],MATCH(Sector,Table1[BC Hydro Sector Allocation],0))=Table3[[#This Row],[Question set]]","v":{"$error":"#N/A"}},{"$f":"IF(Table3[[#This Row],[Selected]],INDIRECT(\"'\"&INDEX(Table5[SheetName],MATCH(Table3[[#This Row],[Diagnostic Heading]],Table5[Diagnostic Heading],0))&\"'\"&\"!C\"&11+Table3[[#This Row],[Q]]),\"\")","v":{"$error":"#N/A"}},{"$f":"IFERROR(AND(Table3[[#This Row],[BCH Funded]]=\"Yes\",Table3[[#This Row],[Answer]]=\"No\"),\"\")","v":""},{"$f":"IFERROR(AND(Table3[[#This Row],[BCH Funded]]=\"no\",Table3[[#This Row],[Answer]]=\"No\"),\"\")","v":""},{"$f":"IFERROR(IF(Table3[[#This Row],[Answer]]=\"No\",INDEX(Table10[],MATCH(INDEX(Table8[CPR Type],MATCH(Table3[[#This Row],[Report Heading]],Table8[Report Heading],0)),Table10[Segment],0),MATCH(Table3[[#This Row],[Question set]],Table10[#Headers],0)),0),0.01/COUNTIFS(Table3[Question set],INDEX(Table1[Evaluator Question Set],MATCH(Sector,Table1[BC Hydro Sector Allocation],0)),Table3[Diagnostic Heading],Table3[[#This Row],[Diagnostic Heading]],Table3[Selected],TRUE))","v":{"$error":"#DIV/0!"}},1,0.5,{"$f":"Table3[[#This Row],[a]]*Table3[[#This Row],[b]]*Table3[[#This Row],[c]]","v":{"$error":"#DIV/0!"}},{"$f":"Table3[[#This Row],[ES Percent]]*AnnEgyCons","v":{"$error":"#DIV/0!"}},true,"Cristian Suvagau"]
[{"$f":"INDEX(Table7[Q],MATCH(Table3[[#This Row],[Question set]],Table7[Question Set],0))&\".\"&INDEX(Table5[S],MATCH(Table3[[#This Row],[Diagnostic Heading]],Table5[Diagnostic Heading],0))&\".\"&Table3[[#This Row],[Q]]","v":"5.1.5"},"Retail (food)","Lighting",5,"Lighting control","No",null,"We have installed controls on lighting to turn off when not required (e.g. timers or occupancy sensors in offices and meeting rooms, daylight harvesting in offices).","Lighting controls can provide you with energy savings and better management of your lighting systems.  Adding lighting controls may be eligible for additional incentive funding when completing a lighting retrofit as not all controls energy savings are recognized by BC Hydro.","https://www.bchydro.com/ecatalog/eCatServlet?cmd=all_psp_incentives&existId=&energyId=14",{"$f":"INDEX(Table1[Evaluator Question Set],MATCH(Sector,Table1[BC Hydro Sector Allocation],0))=Table3[[#This Row],[Question set]]","v":{"$error":"#N/A"}},{"$f":"IF(Table3[[#This Row],[Selected]],INDIRECT(\"'\"&INDEX(Table5[SheetName],MATCH(Table3[[#This Row],[Diagnostic Heading]],Table5[Diagnostic Heading],0))&\"'\"&\"!C\"&11+Table3[[#This Row],[Q]]),\"\")","v":{"$error":"#N/A"}},{"$f":"IFERROR(AND(Table3[[#This Row],[BCH Funded]]=\"Yes\",Table3[[#This Row],[Answer]]=\"No\"),\"\")","v":""},{"$f":"IFERROR(AND(Table3[[#This Row],[BCH Funded]]=\"no\",Table3[[#This Row],[Answer]]=\"No\"),\"\")","v":""},{"$f":"IFERROR(IF(Table3[[#This Row],[Answer]]=\"No\",INDEX(Table10[],MATCH(INDEX(Table8[CPR Type],MATCH(Table3[[#This Row],[Report Heading]],Table8[Report Heading],0)),Table10[Segment],0),MATCH(Table3[[#This Row],[Question set]],Table10[#Headers],0)),0),0.01/COUNTIFS(Table3[Question set],INDEX(Table1[Evaluator Question Set],MATCH(Sector,Table1[BC Hydro Sector Allocation],0)),Table3[Diagnostic Heading],Table3[[#This Row],[Diagnostic Heading]],Table3[Selected],TRUE))","v":{"$error":"#DIV/0!"}},0.2,0.3,{"$f":"Table3[[#This Row],[a]]*Table3[[#This Row],[b]]*Table3[[#This Row],[c]]","v":{"$error":"#DIV/0!"}},{"$f":"Table3[[#This Row],[ES Percent]]*AnnEgyCons","v":{"$error":"#DIV/0!"}},true,"Cristian Suvagau"]
[{"$f":"INDEX(Table7[Q],MATCH(Table3[[#This Row],[Question set]],Table7[Question Set],0))&\".\"&INDEX(Table5[S],MATCH(Table3[[#This Row],[Diagnostic Heading]],Table5[Diagnostic Heading],0))&\".\"&Table3[[#This Row],[Q]]","v":"5.2.1"},"Retail (food)","Heating, Ventilation, Air Conditioning / Refrigeration",1,"Refrigeration","no",null,"We have installed anti-sweat heater controls, or doors requiring low/no sweat heat on refrigerated display cases.","Assess the cost effectiveness of installing anti-sweat heater controls, or doors requiring low/no sweat heat on refrigerated display cases.","https://www.bchydro.com/ecatalog/eCatServlet?cmd=all_psp_incentives&existId=24&energyId=16",{"$f":"INDEX(Table1[Evaluator Question Set],MATCH(Sector,Table1[BC Hydro Sector Allocation],0))=Table3[[#This Row],[Question set]]","v":{"$error":"#N/A"}},{"$f":"IF(Table3[[#This Row],[Selected]],INDIRECT(\"'\"&INDEX(Table5[SheetName],MATCH(Table3[[#This Row],[Diagnostic Heading]],Table5[Diagnostic Heading],0))&\"'\"&\"!C\"&11+Table3[[#This Row],[Q]]),\"\")","v":{"$error":"#N/A"}},{"$f":"IFERROR(AND(Table3[[#This Row],[BCH Funded]]=\"Yes\",Table3[[#This Row],[Answer]]=\"No\"),\"\")","v":""},{"$f":"IFERROR(AND(Table3[[#This Row],[BCH Funded]]=\"no\",Table3[[#This Row],[Answer]]=\"No\"),\"\")","v":""},{"$f":"IFERROR(IF(Table3[[#This Row],[Answer]]=\"No\",INDEX(Table10[],MATCH(INDEX(Table8[CPR Type],MATCH(Table3[[#This Row],[Report Heading]],Table8[Report Heading],0)),Table10[Segment],0),MATCH(Table3[[#This Row],[Question set]],Table10[#Headers],0)),0),0.01/COUNTIFS(Table3[Question set],INDEX(Table1[Evaluator Question Set],MATCH(Sector,Table1[BC Hydro Sector Allocation],0)),Table3[Diagnostic Heading],Table3[[#This Row],[Diagnostic Heading]],Table3[Selected],TRUE))","v":{"$error":"#DIV/0!"}},1,0.24,{"$f":"Table3[[#This Row],[a]]*Table3[[#This Row],[b]]*Table3[[#This Row],[c]]","v":{"$error":"#DIV/0!"}},{"$f":"Table3[[#This Row],[ES Percent]]*AnnEgyCons","v":{"$error":"#DIV/0!"}},true,"https://www.bchydro.com/powersmart/business/technologies-equipment.html"]
[{"$f":"INDEX(Table7[Q],MATCH(Table3[[#This Row],[Question set]],Table7[Question Set],0))&\".\"&INDEX(Table5[S],MATCH(Table3[[#This Row],[Diagnostic Heading]],Table5[Diagnostic Heading],0))&\".\"&Table3[[#This Row],[Q]]","v":"5.2.2"},"Retail (food)","Heating, Ventilation, Air Conditioning / Refrigeration",2,"Refrigeration","no",null,"Our cool room/freezer is insulated and includes a strip curtain and/or auto-closing door.","Dollars are leaking out! Add strip curtains to walk-in coolers to reduce the amount of energy lost to the surrounding air. Strip curtains used in busy kitchens can cut your refrigeration costs significantly! As an added bonus, these curtains repel windborne contaminants like dust and pollutants. Auto closers will ensure coolers and freezers do not remain open. Learn more about strip curtains from the case study link below.","https://www.bchydro.com/powersmart/business/success-stories/donalds-market-success.html",{"$f":"INDEX(Table1[Evaluator Question Set],MATCH(Sector,Table1[BC Hydro Sector Allocation],0))=Table3[[#This Row],[Question set]]","v":{"$error":"#N/A"}},{"$f":"IF(Table3[[#This Row],[Selected]],INDIRECT(\"'\"&INDEX(Table5[SheetName],MATCH(Table3[[#This Row],[Diagnostic Heading]],Table5[Diagnostic Heading],0))&\"'\"&\"!C\"&11+Table3[[#This Row],[Q]]),\"\")","v":{"$error":"#N/A"}},{"$f":"IFERROR(AND(Table3[[#This Row],[BCH Funded]]=\"Yes\",Table3[[#This Row],[Answer]]=\"No\"),\"\")","v":""},{"$f":"IFERROR(AND(Table3[[#This Row],[BCH Funded]]=\"no\",Table3[[#This Row],[Answer]]=\"No\"),\"\")","v":""},{"$f":"IFERROR(IF(Table3[[#This Row],[Answer]]=\"No\",INDEX(Table10[],MATCH(INDEX(Table8[CPR Type],MATCH(Table3[[#This Row],[Report Heading]],Table8[Report Heading],0)),Table10[Segment],0),MATCH(Table3[[#This Row],[Question set]],Table10[#Headers],0)),0),0.01/COUNTIFS(Table3[Question set],INDEX(Table1[Evaluator Question Set],MATCH(Sector,Table1[BC Hydro Sector Allocation],0)),Table3[Diagnostic Heading],Table3[[#This Row],[Diagnostic Heading]],Table3[Selected],TRUE))","v":{"$error":"#DIV/0!"}},1,0.3,{"$f":"Table3[[#This Row],[a]]*Table3[[#This Row],[b]]*Table3[[#This Row],[c]]","v":{"$error":"#DIV/0!"}},{"$f":"Table3[[#This Row],[ES Percent]]*AnnEgyCons","v":{"$error":"#DIV/0!"}},true,"Past commercial incentives"]
[{"$f":"INDEX(Table7[Q],MATCH(Table3[[#This Row],[Question set]],Table7[Question Set],0))&\".\"&INDEX(Table5[S],MATCH(Table3[[#This Row],[Diagnostic Heading]],Table5[Diagnostic Heading],0))&\".\"&Table3[[#This Row],[Q]]","v":"5.2.3"},"Retail (food)","Heating, Ventilation, Air Conditioning / Refrigeration",3,"Air tightness","no",null,"We have examined ways to improve the air-tightness of air-conditioned and refrigerated spaces (e.g. maintaining door gaskets, closing doors, installing air curtains).","Regular maintenance of your door gaskets in coolers is important. Look at the door gaskets on all of your refrigerators and replace any that are torn, cracked or missing. A refrigerator must seal completely to be effective- and remember, you’re not trying to keep the cold air in, you’re trying to keep the hot, humid kitchen air out! ","http://www.energycodes.gov/sites/default/files/documents/BECP_Buidling%20Energy%20Code%20Resource%20Guide%20Air%20Leakage%20Guide_Sept2011_v00_lores.pdf ",{"$f":"INDEX(Table1[Evaluator Question Set],MATCH(Sector,Table1[BC Hydro Sector Allocation],0))=Table3[[#This Row],[Question set]]","v":{"$error":"#N/A"}},{"$f":"IF(Table3[[#This Row],[Selected]],INDIRECT(\"'\"&INDEX(Table5[SheetName],MATCH(Table3[[#This Row],[Diagnostic Heading]],Table5[Diagnostic Heading],0))&\"'\"&\"!C\"&11+Table3[[#This Row],[Q]]),\"\")","v":{"$error":"#N/A"}},{"$f":"IFERROR(AND(Table3[[#This Row],[BCH Funded]]=\"Yes\",Table3[[#This Row],[Answer]]=\"No\"),\"\")","v":""},{"$f":"IFERROR(AND(Table3[[#This Row],[BCH Funded]]=\"no\",Table3[[#This Row],[Answer]]=\"No\"),\"\")","v":""},{"$f":"IFERROR(IF(Table3[[#This Row],[Answer]]=\"No\",INDEX(Table10[],MATCH(INDEX(Table8[CPR Type],MATCH(Table3[[#This Row],[Report Heading]],Table8[Report Heading],0)),Table10[Segment],0),MATCH(Table3[[#This Row],[Question set]],Table10[#Headers],0)),0),0.01/COUNTIFS(Table3[Question set],INDEX(Table1[Evaluator Question Set],MATCH(Sector,Table1[BC Hydro Sector Allocation],0)),Table3[Diagnostic Heading],Table3[[#This Row],[Diagnostic Heading]],Table3[Selected],TRUE))","v":{"$error":"#DIV/0!"}},1,0.02,{"$f":"Table3[[#This Row],[a]]*Table3[[#This Row],[b]]*Table3[[#This Row],[c]]","v":{"$error":"#DIV/0!"}},{"$f":"Table3[[#This Row],[ES Percent]]*AnnEgyCons","v":{"$error":"#DIV/0!"}},true,"ASHRAE- Simulation of the Impact of Commercial Building Envelope Airtightness on Building Energy Utilization"]
[{"$f":"INDEX(Table7[Q],MATCH(Table3[[#This Row],[Question set]],Table7[Question Set],0))&\".\"&INDEX(Table5[S],MATCH(Table3[[#This Row],[Diagnostic Heading]],Table5[Diagnostic Heading],0))&\".\"&Table3[[#This Row],[Q]]","v":"5.2.4"},"Retail (food)","Heating, Ventilation, Air Conditioning / Refrigeration",4,"Heating / cooling controls","yes","Average incentive of 20% of project cost","We have upgraded our heating, ventilation & air conditioning system to include variable frequency drives on fans and pumps and/or variable speed ECM pumps.","BC Hydro funding is available. Consider upgrading your heating, ventilation & air conditioning system to include variable frequency drives on fans and pumps and/or variable speed ECM pumps.","https://www.bchydro.com/ecatalog/",{"$f":"INDEX(Table1[Evaluator Question Set],MATCH(Sector,Table1[BC Hydro Sector Allocation],0))=Table3[[#This Row],[Question set]]","v":{"$error":"#N/A"}},{"$f":"IF(Table3[[#This Row],[Selected]],INDIRECT(\"'\"&INDEX(Table5[SheetName],MATCH(Table3[[#This Row],[Diagnostic Heading]],Table5[Diagnostic Heading],0))&\"'\"&\"!C\"&11+Table3[[#This Row],[Q]]),\"\")","v":{"$error":"#N/A"}},{"$f":"IFERROR(AND(Table3[[#This Row],[BCH Funded]]=\"Yes\",Table3[[#This Row],[Answer]]=\"No\"),\"\")","v":""},{"$f":"IFERROR(AND(Table3[[#This Row],[BCH Funded]]=\"no\",Table3[[#This Row],[Answer]]=\"No\"),\"\")","v":""},{"$f":"IFERROR(IF(Table3[[#This Row],[Answer]]=\"No\",INDEX(Table10[],MATCH(INDEX(Table8[CPR Type],MATCH(Table3[[#This Row],[Report Heading]],Table8[Report Heading],0)),Table10[Segment],0),MATCH(Table3[[#This Row],[Question set]],Table10[#Headers],0)),0),0.01/COUNTIFS(Table3[Question set],INDEX(Table1[Evaluator Question Set],MATCH(Sector,Table1[BC Hydro Sector Allocation],0)),Table3[Diagnostic Heading],Table3[[#This Row],[Diagnostic Heading]],Table3[Selected],TRUE))","v":{"$error":"#DIV/0!"}},1,0.2,{"$f":"Table3[[#This Row],[a]]*Table3[[#This Row],[b]]*Table3[[#This Row],[c]]","v":{"$error":"#DIV/0!"}},{"$f":"Table3[[#This Row],[ES Percent]]*AnnEgyCons","v":{"$error":"#DIV/0!"}},true,"Past commercial incentives"]
[{"$f":"INDEX(Table7[Q],MATCH(Table3[[#This Row],[Question set]],Table7[Question Set],0))&\".\"&INDEX(Table5[S],MATCH(Table3[[#This Row],[Diagnostic Heading]],Table5[Diagnostic Heading],0))&\".\"&Table3[[#This Row],[Q]]","v":"5.2.5"},"Retail (food)","Heating, Ventilation, Air Conditioning / Refrigeration",5,"Heating and cooling temperature set points","no",null,"We have adjusted temperature settings for heating and cooling to minimize energy use.","Work with your staff to have them adjust temperature settings for heating and cooling to minimize energy use. Learn more about operating your refrigeration equipment efficiently through the link below.","https://www.bchydro.com/powersmart/business/technologies-equipment/heating-cooling.html",{"$f":"INDEX(Table1[Evaluator Question Set],MATCH(Sector,Table1[BC Hydro Sector Allocation],0))=Table3[[#This Row],[Question set]]","v":{"$error":"#N/A"}},{"$f":"IF(Table3[[#This Row],[Selected]],INDIRECT(\"'\"&INDEX(Table5[SheetName],MATCH(Table3[[#This Row],[Diagnostic Heading]],Table5[Diagnostic Heading],0))&\"'\"&\"!C\"&11+Table3[[#This Row],[Q]]),\"\")","v":{"$error":"#N/A"}},{"$f":"IFERROR(AND(Table3[[#This Row],[BCH Funded]]=\"Yes\",Table3[[#This Row],[Answer]]=\"No\"),\"\")","v":""},{"$f":"IFERROR(AND(Table3[[#This Row],[BCH Funded]]=\"no\",Table3[[#This Row],[Answer]]=\"No\"),\"\")","v":""},{"$f":"IFERROR(IF(Table3[[#This Row],[Answer]]=\"No\",INDEX(Table10[],MATCH(INDEX(Table8[CPR Type],MATCH(Table3[[#This Row],[Report Heading]],Table8[Report Heading],0)),Table10[Segment],0),MATCH(Table3[[#This Row],[Question set]],Table10[#Headers],0)),0),0.01/COUNTIFS(Table3[Question set],INDEX(Table1[Evaluator Question Set],MATCH(Sector,Table1[BC Hydro Sector Allocation],0)),Table3[Diagnostic Heading],Table3[[#This Row],[Diagnostic Heading]],Table3[Selected],TRUE))","v":{"$error":"#DIV/0!"}},1,0.05,{"$f":"Table3[[#This Row],[a]]*Table3[[#This Row],[b]]*Table3[[#This Row],[c]]","v":{"$error":"#DIV/0!"}},{"$f":"Table3[[#This Row],[ES Percent]]*AnnEgyCons","v":{"$error":"#DIV/0!"}},true,"Past commercial incentives"]
[{"$f":"INDEX(Table7[Q],MATCH(Table3[[#This Row],[Question set]],Table7[Question Set],0))&\".\"&INDEX(Table5[S],MATCH(Table3[[#This Row],[Diagnostic Heading]],Table5[Diagnostic Heading],0))&\".\"&Table3[[#This Row],[Q]]","v":"5.4.1"},"Retail (food)","Energy Efficient Equipment",1,"Dishwasher","no",null,"We have upgraded our commercial dishwasher to an Energy Star® model to reduce our energy and water costs.","Calculate the cost and savings from upgrading your commercial dishwasher to an Energy Star® model to reduce your energy and water costs.","https://www.energystar.gov/products/commercial_food_service_equipment/commercial_dishwashers",{"$f":"INDEX(Table1[Evaluator Question Set],MATCH(Sector,Table1[BC Hydro Sector Allocation],0))=Table3[[#This Row],[Question set]]","v":{"$error":"#N/A"}},{"$f":"IF(Table3[[#This Row],[Selected]],INDIRECT(\"'\"&INDEX(Table5[SheetName],MATCH(Table3[[#This Row],[Diagnostic Heading]],Table5[Diagnostic Heading],0))&\"'\"&\"!C\"&11+Table3[[#This Row],[Q]]),\"\")","v":{"$error":"#N/A"}},{"$f":"IFERROR(AND(Table3[[#This Row],[BCH Funded]]=\"Yes\",Table3[[#This Row],[Answer]]=\"No\"),\"\")","v":""},{"$f":"IFERROR(AND(Table3[[#This Row],[BCH Funded]]=\"no\",Table3[[#This Row],[Answer]]=\"No\"),\"\")","v":""},{"$f":"IFERROR(IF(Table3[[#This Row],[Answer]]=\"No\",INDEX(Table10[],MATCH(INDEX(Table8[CPR Type],MATCH(Table3[[#This Row],[Report Heading]],Table8[Report Heading],0)),Table10[Segment],0),MATCH(Table3[[#This Row],[Question set]],Table10[#Headers],0)),0),0.01/COUNTIFS(Table3[Question set],INDEX(Table1[Evaluator Question Set],MATCH(Sector,Table1[BC Hydro Sector Allocation],0)),Table3[Diagnostic Heading],Table3[[#This Row],[Diagnostic Heading]],Table3[Selected],TRUE))","v":{"$error":"#DIV/0!"}},1,0.25,{"$f":"Table3[[#This Row],[a]]*Table3[[#This Row],[b]]*Table3[[#This Row],[c]]","v":{"$error":"#DIV/0!"}},{"$f":"Table3[[#This Row],[ES Percent]]*AnnEgyCons","v":{"$error":"#DIV/0!"}},true,"http://www.nrcan.gc.ca/sites/www.nrcan.gc.ca/files/energy/pdf/energystar/Commercial-Kitchen-Guide_E_acc.pdf"]
[{"$f":"INDEX(Table7[Q],MATCH(Table3[[#This Row],[Question set]],Table7[Question Set],0))&\".\"&INDEX(Table5[S],MATCH(Table3[[#This Row],[Diagnostic Heading]],Table5[Diagnostic Heading],0))&\".\"&Table3[[#This Row],[Q]]","v":"5.4.2"},"Retail (food)","Energy Efficient Equipment",2,"Ovens and griddles","no",null,"We have assessed the cost effectiveness of upgrading convection ovens and electric griddles to Energy Star® models to reduce our energy costs.","Assess the cost effectiveness of upgrading your convection ovens and electric griddles to Energy Star® models to reduce your energy costs.","https://www.energystar.gov/index.cfm?c=archives.comm_griddles",{"$f":"INDEX(Table1[Evaluator Question Set],MATCH(Sector,Table1[BC Hydro Sector Allocation],0))=Table3[[#This Row],[Question set]]","v":{"$error":"#N/A"}},{"$f":"IF(Table3[[#This Row],[Selected]],INDIRECT(\"'\"&INDEX(Table5[SheetName],MATCH(Table3[[#This Row],[Diagnostic Heading]],Table5[Diagnostic Heading],0))&\"'\"&\"!C\"&11+Table3[[#This Row],[Q]]),\"\")","v":{"$error":"#N/A"}},{"$f":"IFERROR(AND(Table3[[#This Row],[BCH Funded]]=\"Yes\",Table3[[#This Row],[Answer]]=\"No\"),\"\")","v":""},{"$f":"IFERROR(AND(Table3[[#This Row],[BCH Funded]]=\"no\",Table3[[#This Row],[Answer]]=\"No\"),\"\")","v":""},{"$f":"IFERROR(IF(Table3[[#This Row],[Answer]]=\"No\",INDEX(Table10[],MATCH(INDEX(Table8[CPR Type],MATCH(Table3[[#This Row],[Report Heading]],Table8[Report Heading],0)),Table10[Segment],0),MATCH(Table3[[#This Row],[Question set]],Table10[#Headers],0)),0),0.01/COUNTIFS(Table3[Question set],INDEX(Table1[Evaluator Question Set],MATCH(Sector,Table1[BC Hydro Sector Allocation],0)),Table3[Diagnostic Heading],Table3[[#This Row],[Diagnostic Heading]],Table3[Selected],TRUE))","v":{"$error":"#DIV/0!"}},1,0.15,{"$f":"Table3[[#This Row],[a]]*Table3[[#This Row],[b]]*Table3[[#This Row],[c]]","v":{"$error":"#DIV/0!"}},{"$f":"Table3[[#This Row],[ES Percent]]*AnnEgyCons","v":{"$error":"#DIV/0!"}},true,"http://www.nrcan.gc.ca/sites/www.nrcan.gc.ca/files/energy/pdf/energystar/Commercial-Kitchen-Guide_E_acc.pdf"]
[{"$f":"INDEX(Table7[Q],MATCH(Table3[[#This Row],[Question set]],Table7[Question Set],0))&\".\"&INDEX(Table5[S],MATCH(Table3[[#This Row],[Diagnostic Heading]],Table5[Diagnostic Heading],0))&\".\"&Table3[[#This Row],[Q]]","v":"5.4.3"},"Retail (food)","Energy Efficient Equipment",3,"Kitchen exhaust","no",null,"We have added demand ventilation controls to our kitchen exhaust hood (i.e. added variable speed drives to our make-up unit and exhaust fan).","Calculate the cost and savings of adding demand ventilation controls to your kitchen exhaust hood (i.e. adding variable speed drives to your make-up unit and exhaust fan).","https://www.nrcan.gc.ca/sites/www.nrcan.gc.ca/files/energy/pdf/energystar/Commercial-Kitchen-Guide_E_acc.pdf",{"$f":"INDEX(Table1[Evaluator Question Set],MATCH(Sector,Table1[BC Hydro Sector Allocation],0))=Table3[[#This Row],[Question set]]","v":{"$error":"#N/A"}},{"$f":"IF(Table3[[#This Row],[Selected]],INDIRECT(\"'\"&INDEX(Table5[SheetName],MATCH(Table3[[#This Row],[Diagnostic Heading]],Table5[Diagnostic Heading],0))&\"'\"&\"!C\"&11+Table3[[#This Row],[Q]]),\"\")","v":{"$error":"#N/A"}},{"$f":"IFERROR(AND(Table3[[#This Row],[BCH Funded]]=\"Yes\",Table3[[#This Row],[Answer]]=\"No\"),\"\")","v":""},{"$f":"IFERROR(AND(Table3[[#This Row],[BCH Funded]]=\"no\",Table3[[#This Row],[Answer]]=\"No\"),\"\")","v":""},{"$f":"IFERROR(IF(Table3[[#This Row],[Answer]]=\"No\",INDEX(Table10[],MATCH(INDEX(Table8[CPR Type],MATCH(Table3[[#This Row],[Report Heading]],Table8[Report Heading],0)),Table10[Segment],0),MATCH(Table3[[#This Row],[Question set]],Table10[#Headers],0)),0),0.01/COUNTIFS(Table3[Question set],INDEX(Table1[Evaluator Question Set],MATCH(Sector,Table1[BC Hydro Sector Allocation],0)),Table3[Diagnostic Heading],Table3[[#This Row],[Diagnostic Heading]],Table3[Selected],TRUE))","v":{"$error":"#DIV/0!"}},1,0.2,{"$f":"Table3[[#This Row],[a]]*Table3[[#This Row],[b]]*Table3[[#This Row],[c]]","v":{"$error":"#DIV/0!"}},{"$f":"Table3[[#This Row],[ES Percent]]*AnnEgyCons","v":{"$error":"#DIV/0!"}},true,"Past commercial incentives"]
[{"$f":"INDEX(Table7[Q],MATCH(Table3[[#This Row],[Question set]],Table7[Question Set],0))&\".\"&INDEX(Table5[S],MATCH(Table3[[#This Row],[Diagnostic Heading]],Table5[Diagnostic Heading],0))&\".\"&Table3[[#This Row],[Q]]","v":"5.4.4"},"Retail (food)","Energy Efficient Equipment",4,"Steamers & hot food holding cabinets","no",null,"We have upgraded our convection steamers to electric pressureless Energy Star® models to reduce our energy costs. We have replaced our hot food holding cabinets with Energy Star®  models to reduce our energy costs.","Determine the costs and potential savings of replacing your convection steamers with electric pressureless Energy Star® models and your hot food cabinets with Energy Star® models to reduce your energy costs.","https://www.energystar.gov/products/commercial_food_service_equipment/commercial_steam_cookers",{"$f":"INDEX(Table1[Evaluator Question Set],MATCH(Sector,Table1[BC Hydro Sector Allocation],0))=Table3[[#This Row],[Question set]]","v":{"$error":"#N/A"}},{"$f":"IF(Table3[[#This Row],[Selected]],INDIRECT(\"'\"&INDEX(Table5[SheetName],MATCH(Table3[[#This Row],[Diagnostic Heading]],Table5[Diagnostic Heading],0))&\"'\"&\"!C\"&11+Table3[[#This Row],[Q]]),\"\")","v":{"$error":"#N/A"}},{"$f":"IFERROR(AND(Table3[[#This Row],[BCH Funded]]=\"Yes\",Table3[[#This Row],[Answer]]=\"No\"),\"\")","v":""},{"$f":"IFERROR(AND(Table3[[#This Row],[BCH Funded]]=\"no\",Table3[[#This Row],[Answer]]=\"No\"),\"\")","v":""},{"$f":"IFERROR(IF(Table3[[#This Row],[Answer]]=\"No\",INDEX(Table10[],MATCH(INDEX(Table8[CPR Type],MATCH(Table3[[#This Row],[Report Heading]],Table8[Report Heading],0)),Table10[Segment],0),MATCH(Table3[[#This Row],[Question set]],Table10[#Headers],0)),0),0.01/COUNTIFS(Table3[Question set],INDEX(Table1[Evaluator Question Set],MATCH(Sector,Table1[BC Hydro Sector Allocation],0)),Table3[Diagnostic Heading],Table3[[#This Row],[Diagnostic Heading]],Table3[Selected],TRUE))","v":{"$error":"#DIV/0!"}},1,0.5,{"$f":"Table3[[#This Row],[a]]*Table3[[#This Row],[b]]*Table3[[#This Row],[c]]","v":{"$error":"#DIV/0!"}},{"$f":"Table3[[#This Row],[ES Percent]]*AnnEgyCons","v":{"$error":"#DIV/0!"}},true,"http://www.nrcan.gc.ca/sites/www.nrcan.gc.ca/files/energy/pdf/energystar/Commercial-Kitchen-Guide_E_acc.pdf"]
[{"$f":"INDEX(Table7[Q],MATCH(Table3[[#This Row],[Question set]],Table7[Question Set],0))&\".\"&INDEX(Table5[S],MATCH(Table3[[#This Row],[Diagnostic Heading]],Table5[Diagnostic Heading],0))&\".\"&Table3[[#This Row],[Q]]","v":"5.4.5"},"Retail (food)","Energy Efficient Equipment",5,"Refrigeration Equipment","no",null,"When upgrading refrigeration equipment and appliances we look for models with the Energy Star® label. Energy Star® indicates energy efficient equipment.","Ensure you look for the Energy Star® label when upgrading refrigeration equipment and appliances. Energy Star® indicates energy efficient equipment. Learn more about Energy Star® refrigeration equipment through the link below.","http://www.energystar.gov/products/certified-products/detail/commercial-refrigerators-freezers",{"$f":"INDEX(Table1[Evaluator Question Set],MATCH(Sector,Table1[BC Hydro Sector Allocation],0))=Table3[[#This Row],[Question set]]","v":{"$error":"#N/A"}},{"$f":"IF(Table3[[#This Row],[Selected]],INDIRECT(\"'\"&INDEX(Table5[SheetName],MATCH(Table3[[#This Row],[Diagnostic Heading]],Table5[Diagnostic Heading],0))&\"'\"&\"!C\"&11+Table3[[#This Row],[Q]]),\"\")","v":{"$error":"#N/A"}},{"$f":"IFERROR(AND(Table3[[#This Row],[BCH Funded]]=\"Yes\",Table3[[#This Row],[Answer]]=\"No\"),\"\")","v":""},{"$f":"IFERROR(AND(Table3[[#This Row],[BCH Funded]]=\"no\",Table3[[#This Row],[Answer]]=\"No\"),\"\")","v":""},{"$f":"IFERROR(IF(Table3[[#This Row],[Answer]]=\"No\",INDEX(Table10[],MATCH(INDEX(Table8[CPR Type],MATCH(Table3[[#This Row],[Report Heading]],Table8[Report Heading],0)),Table10[Segment],0),MATCH(Table3[[#This Row],[Question set]],Table10[#Headers],0)),0),0.01/COUNTIFS(Table3[Question set],INDEX(Table1[Evaluator Question Set],MATCH(Sector,Table1[BC Hydro Sector Allocation],0)),Table3[Diagnostic Heading],Table3[[#This Row],[Diagnostic Heading]],Table3[Selected],TRUE))","v":{"$error":"#DIV/0!"}},1,0.35,{"$f":"Table3[[#This Row],[a]]*Table3[[#This Row],[b]]*Table3[[#This Row],[c]]","v":{"$error":"#DIV/0!"}},{"$f":"Table3[[#This Row],[ES Percent]]*AnnEgyCons","v":{"$error":"#DIV/0!"}},true,"http://www.nrcan.gc.ca/sites/www.nrcan.gc.ca/files/energy/pdf/energystar/Commercial-Kitchen-Guide_E_acc.pdf"]
[{"$f":"INDEX(Table7[Q],MATCH(Table3[[#This Row],[Question set]],Table7[Question Set],0))&\".\"&INDEX(Table5[S],MATCH(Table3[[#This Row],[Diagnostic Heading]],Table5[Diagnostic Heading],0))&\".\"&Table3[[#This Row],[Q]]","v":"5.5.1"},"Retail (food)","Operating and Maintenance Practices",1,"Hot water control","no",null,"We have explored how to reduce hot water temperature while still maintaining required conditions.","Look into the possibility of reducing your hot water temperature while still maintaining required sanitary conditions. You'll be surprised at what can be saved through reducing hot water temperature without degrading the use.  Learn more about water heating and usage through the link below.","https://www.bchydro.com/powersmart/business/technologies-equipment/heating-cooling.html",{"$f":"INDEX(Table1[Evaluator Question Set],MATCH(Sector,Table1[BC Hydro Sector Allocation],0))=Table3[[#This Row],[Question set]]","v":{"$error":"#N/A"}},{"$f":"IF(Table3[[#This Row],[Selected]],INDIRECT(\"'\"&INDEX(Table5[SheetName],MATCH(Table3[[#This Row],[Diagnostic Heading]],Table5[Diagnostic Heading],0))&\"'\"&\"!C\"&11+Table3[[#This Row],[Q]]),\"\")","v":{"$error":"#N/A"}},{"$f":"IFERROR(AND(Table3[[#This Row],[BCH Funded]]=\"Yes\",Table3[[#This Row],[Answer]]=\"No\"),\"\")","v":""},{"$f":"IFERROR(AND(Table3[[#This Row],[BCH Funded]]=\"no\",Table3[[#This Row],[Answer]]=\"No\"),\"\")","v":""},{"$f":"IFERROR(IF(Table3[[#This Row],[Answer]]=\"No\",INDEX(Table10[],MATCH(INDEX(Table8[CPR Type],MATCH(Table3[[#This Row],[Report Heading]],Table8[Report Heading],0)),Table10[Segment],0),MATCH(Table3[[#This Row],[Question set]],Table10[#Headers],0)),0),0.01/COUNTIFS(Table3[Question set],INDEX(Table1[Evaluator Question Set],MATCH(Sector,Table1[BC Hydro Sector Allocation],0)),Table3[Diagnostic Heading],Table3[[#This Row],[Diagnostic Heading]],Table3[Selected],TRUE))","v":{"$error":"#DIV/0!"}},1,1,{"$f":"Table3[[#This Row],[a]]*Table3[[#This Row],[b]]*Table3[[#This Row],[c]]","v":{"$error":"#DIV/0!"}},{"$f":"Table3[[#This Row],[ES Percent]]*AnnEgyCons","v":{"$error":"#DIV/0!"}},true]
[{"$f":"INDEX(Table7[Q],MATCH(Table3[[#This Row],[Question set]],Table7[Question Set],0))&\".\"&INDEX(Table5[S],MATCH(Table3[[#This Row],[Diagnostic Heading]],Table5[Diagnostic Heading],0))&\".\"&Table3[[#This Row],[Q]]","v":"5.5.2"},"Retail (food)","Operating and Maintenance Practices",2,"Staff operating procedures","no",null,"Our staff turns off equipment when not needed (e.g., turns off lights and equipment when not in use, after hours and on weekends).","The most important tip for your business is “turn it off!!”. Introduce procedures to encourage staff to turn off equipment when not needed (e.g. turn off lights and office equipment when not in use, after hours and on weekends). Find more tips and information about how and when to turn off equipment through the link below.","https://www.bchydro.com/powersmart/business/technologies-equipment/lighting-systems.html#1",{"$f":"INDEX(Table1[Evaluator Question Set],MATCH(Sector,Table1[BC Hydro Sector Allocation],0))=Table3[[#This Row],[Question set]]","v":{"$error":"#N/A"}},{"$f":"IF(Table3[[#This Row],[Selected]],INDIRECT(\"'\"&INDEX(Table5[SheetName],MATCH(Table3[[#This Row],[Diagnostic Heading]],Table5[Diagnostic Heading],0))&\"'\"&\"!C\"&11+Table3[[#This Row],[Q]]),\"\")","v":{"$error":"#N/A"}},{"$f":"IFERROR(AND(Table3[[#This Row],[BCH Funded]]=\"Yes\",Table3[[#This Row],[Answer]]=\"No\"),\"\")","v":""},{"$f":"IFERROR(AND(Table3[[#This Row],[BCH Funded]]=\"no\",Table3[[#This Row],[Answer]]=\"No\"),\"\")","v":""},{"$f":"IFERROR(IF(Table3[[#This Row],[Answer]]=\"No\",INDEX(Table10[],MATCH(INDEX(Table8[CPR Type],MATCH(Table3[[#This Row],[Report Heading]],Table8[Report Heading],0)),Table10[Segment],0),MATCH(Table3[[#This Row],[Question set]],Table10[#Headers],0)),0),0.01/COUNTIFS(Table3[Question set],INDEX(Table1[Evaluator Question Set],MATCH(Sector,Table1[BC Hydro Sector Allocation],0)),Table3[Diagnostic Heading],Table3[[#This Row],[Diagnostic Heading]],Table3[Selected],TRUE))","v":{"$error":"#DIV/0!"}},1,1,{"$f":"Table3[[#This Row],[a]]*Table3[[#This Row],[b]]*Table3[[#This Row],[c]]","v":{"$error":"#DIV/0!"}},{"$f":"Table3[[#This Row],[ES Percent]]*AnnEgyCons","v":{"$error":"#DIV/0!"}},true]
[{"$f":"INDEX(Table7[Q],MATCH(Table3[[#This Row],[Question set]],Table7[Question Set],0))&\".\"&INDEX(Table5[S],MATCH(Table3[[#This Row],[Diagnostic Heading]],Table5[Diagnostic Heading],0))&\".\"&Table3[[#This Row],[Q]]","v":"5.5.3"},"Retail (food)","Operating and Maintenance Practices",3,"Maintenance practices","no",null,"We conduct regular maintenance on our heating, ventilation & air conditioning system (e.g. cleaning condenser coils, changing filters, checking operation of economizer).","Modify your maintenance procedures on your heating, ventilation & air conditioning system to include regular energy efficiency checks (e.g. cleaning condenser coils, changing filters, checking operation of economizers). Heating, ventilation and air conditioning systems are at their most efficient when they are well maintained. Learn more about maintenance procedures through the link below.","https://www.bchydro.com/powersmart/business/technologies-equipment/heating-cooling.html#d",{"$f":"INDEX(Table1[Evaluator Question Set],MATCH(Sector,Table1[BC Hydro Sector Allocation],0))=Table3[[#This Row],[Question set]]","v":{"$error":"#N/A"}},{"$f":"IF(Table3[[#This Row],[Selected]],INDIRECT(\"'\"&INDEX(Table5[SheetName],MATCH(Table3[[#This Row],[Diagnostic Heading]],Table5[Diagnostic Heading],0))&\"'\"&\"!C\"&11+Table3[[#This Row],[Q]]),\"\")","v":{"$error":"#N/A"}},{"$f":"IFERROR(AND(Table3[[#This Row],[BCH Funded]]=\"Yes\",Table3[[#This Row],[Answer]]=\"No\"),\"\")","v":""},{"$f":"IFERROR(AND(Table3[[#This Row],[BCH Funded]]=\"no\",Table3[[#This Row],[Answer]]=\"No\"),\"\")","v":""},{"$f":"IFERROR(IF(Table3[[#This Row],[Answer]]=\"No\",INDEX(Table10[],MATCH(INDEX(Table8[CPR Type],MATCH(Table3[[#This Row],[Report Heading]],Table8[Report Heading],0)),Table10[Segment],0),MATCH(Table3[[#This Row],[Question set]],Table10[#Headers],0)),0),0.01/COUNTIFS(Table3[Question set],INDEX(Table1[Evaluator Question Set],MATCH(Sector,Table1[BC Hydro Sector Allocation],0)),Table3[Diagnostic Heading],Table3[[#This Row],[Diagnostic Heading]],Table3[Selected],TRUE))","v":{"$error":"#DIV/0!"}},1,1,{"$f":"Table3[[#This Row],[a]]*Table3[[#This Row],[b]]*Table3[[#This Row],[c]]","v":{"$error":"#DIV/0!"}},{"$f":"Table3[[#This Row],[ES Percent]]*AnnEgyCons","v":{"$error":"#DIV/0!"}},true]
[{"$f":"INDEX(Table7[Q],MATCH(Table3[[#This Row],[Question set]],Table7[Question Set],0))&\".\"&INDEX(Table5[S],MATCH(Table3[[#This Row],[Diagnostic Heading]],Table5[Diagnostic Heading],0))&\".\"&Table3[[#This Row],[Q]]","v":"5.5.4"},"Retail (food)","Operating and Maintenance Practices",4,"Energy saving tips","no",null,"We have a list of energy saving tips for our type of business.","Prepare a list of energy saving tips for your type of business. BC Hydro Power Smart has tips available. Find energy saving tips through the link below.","https://www.bchydro.com/powersmart/business/technologies-equipment.html?WT.mc_id=rd_oldgreenyourbusiness",{"$f":"INDEX(Table1[Evaluator Question Set],MATCH(Sector,Table1[BC Hydro Sector Allocation],0))=Table3[[#This Row],[Question set]]","v":{"$error":"#N/A"}},{"$f":"IF(Table3[[#This Row],[Selected]],INDIRECT(\"'\"&INDEX(Table5[SheetName],MATCH(Table3[[#This Row],[Diagnostic Heading]],Table5[Diagnostic Heading],0))&\"'\"&\"!C\"&11+Table3[[#This Row],[Q]]),\"\")","v":{"$error":"#N/A"}},{"$f":"IFERROR(AND(Table3[[#This Row],[BCH Funded]]=\"Yes\",Table3[[#This Row],[Answer]]=\"No\"),\"\")","v":""},{"$f":"IFERROR(AND(Table3[[#This Row],[BCH Funded]]=\"no\",Table3[[#This Row],[Answer]]=\"No\"),\"\")","v":""},{"$f":"IFERROR(IF(Table3[[#This Row],[Answer]]=\"No\",INDEX(Table10[],MATCH(INDEX(Table8[CPR Type],MATCH(Table3[[#This Row],[Report Heading]],Table8[Report Heading],0)),Table10[Segment],0),MATCH(Table3[[#This Row],[Question set]],Table10[#Headers],0)),0),0.01/COUNTIFS(Table3[Question set],INDEX(Table1[Evaluator Question Set],MATCH(Sector,Table1[BC Hydro Sector Allocation],0)),Table3[Diagnostic Heading],Table3[[#This Row],[Diagnostic Heading]],Table3[Selected],TRUE))","v":{"$error":"#DIV/0!"}},1,1,{"$f":"Table3[[#This Row],[a]]*Table3[[#This Row],[b]]*Table3[[#This Row],[c]]","v":{"$error":"#DIV/0!"}},{"$f":"Table3[[#This Row],[ES Percent]]*AnnEgyCons","v":{"$error":"#DIV/0!"}},true]
[{"$f":"INDEX(Table7[Q],MATCH(Table3[[#This Row],[Question set]],Table7[Question Set],0))&\".\"&INDEX(Table5[S],MATCH(Table3[[#This Row],[Diagnostic Heading]],Table5[Diagnostic Heading],0))&\".\"&Table3[[#This Row],[Q]]","v":"5.5.5"},"Retail (food)","Operating and Maintenance Practices",5,"Staff Awareness","no",null,"We have conducted energy conservation awareness activities (e.g. signage, newsletters, competitions).","Conduct energy conservation awareness activities with your staff (e.g. signage, newsletters, competitions). Find tips and information on workplace conservation activities through the link below.","https://www.bchydro.com/powersmart/business/programs/workplace-conservation.html?WT.mc_id=rd_oldworkplaceconservationawareness",{"$f":"INDEX(Table1[Evaluator Question Set],MATCH(Sector,Table1[BC Hydro Sector Allocation],0))=Table3[[#This Row],[Question set]]","v":{"$error":"#N/A"}},{"$f":"IF(Table3[[#This Row],[Selected]],INDIRECT(\"'\"&INDEX(Table5[SheetName],MATCH(Table3[[#This Row],[Diagnostic Heading]],Table5[Diagnostic Heading],0))&\"'\"&\"!C\"&11+Table3[[#This Row],[Q]]),\"\")","v":{"$error":"#N/A"}},{"$f":"IFERROR(AND(Table3[[#This Row],[BCH Funded]]=\"Yes\",Table3[[#This Row],[Answer]]=\"No\"),\"\")","v":""},{"$f":"IFERROR(AND(Table3[[#This Row],[BCH Funded]]=\"no\",Table3[[#This Row],[Answer]]=\"No\"),\"\")","v":""},{"$f":"IFERROR(IF(Table3[[#This Row],[Answer]]=\"No\",INDEX(Table10[],MATCH(INDEX(Table8[CPR Type],MATCH(Table3[[#This Row],[Report Heading]],Table8[Report Heading],0)),Table10[Segment],0),MATCH(Table3[[#This Row],[Question set]],Table10[#Headers],0)),0),0.01/COUNTIFS(Table3[Question set],INDEX(Table1[Evaluator Question Set],MATCH(Sector,Table1[BC Hydro Sector Allocation],0)),Table3[Diagnostic Heading],Table3[[#This Row],[Diagnostic Heading]],Table3[Selected],TRUE))","v":{"$error":"#DIV/0!"}},1,1,{"$f":"Table3[[#This Row],[a]]*Table3[[#This Row],[b]]*Table3[[#This Row],[c]]","v":{"$error":"#DIV/0!"}},{"$f":"Table3[[#This Row],[ES Percent]]*AnnEgyCons","v":{"$error":"#DIV/0!"}},true]
[{"$f":"INDEX(Table7[Q],MATCH(Table3[[#This Row],[Question set]],Table7[Question Set],0))&\".\"&INDEX(Table5[S],MATCH(Table3[[#This Row],[Diagnostic Heading]],Table5[Diagnostic Heading],0))&\".\"&Table3[[#This Row],[Q]]","v":"5.6.1"},"Retail (food)","Management Practice",1,"Effective management of energy data","no",null,"We regularly go to bchydro.com and use MyHydro to track our energy usage.","Develop a process for managing energy bills and metered energy use information centrally. For example in a spreadsheet, database, or other online tool for ready access. Sign up to see your BC Hydro account information online using the link below.","https://www.bchydro.com/account/UI/Login?realm=bch-ps&goto=https%3A%2F%2Fwww.bchydro.com%3A443%2FBCHCustomerPortal%2Fweb%2Flogin.html",{"$f":"INDEX(Table1[Evaluator Question Set],MATCH(Sector,Table1[BC Hydro Sector Allocation],0))=Table3[[#This Row],[Question set]]","v":{"$error":"#N/A"}},{"$f":"IF(Table3[[#This Row],[Selected]],INDIRECT(\"'\"&INDEX(Table5[SheetName],MATCH(Table3[[#This Row],[Diagnostic Heading]],Table5[Diagnostic Heading],0))&\"'\"&\"!C\"&11+Table3[[#This Row],[Q]]),\"\")","v":{"$error":"#N/A"}},{"$f":"IFERROR(AND(Table3[[#This Row],[BCH Funded]]=\"Yes\",Table3[[#This Row],[Answer]]=\"No\"),\"\")","v":""},{"$f":"IFERROR(AND(Table3[[#This Row],[BCH Funded]]=\"no\",Table3[[#This Row],[Answer]]=\"No\"),\"\")","v":""},{"$f":"IFERROR(IF(Table3[[#This Row],[Answer]]=\"No\",INDEX(Table10[],MATCH(INDEX(Table8[CPR Type],MATCH(Table3[[#This Row],[Report Heading]],Table8[Report Heading],0)),Table10[Segment],0),MATCH(Table3[[#This Row],[Question set]],Table10[#Headers],0)),0),0.01/COUNTIFS(Table3[Question set],INDEX(Table1[Evaluator Question Set],MATCH(Sector,Table1[BC Hydro Sector Allocation],0)),Table3[Diagnostic Heading],Table3[[#This Row],[Diagnostic Heading]],Table3[Selected],TRUE))","v":{"$error":"#DIV/0!"}},1,1,{"$f":"Table3[[#This Row],[a]]*Table3[[#This Row],[b]]*Table3[[#This Row],[c]]","v":{"$error":"#DIV/0!"}},{"$f":"Table3[[#This Row],[ES Percent]]*AnnEgyCons","v":{"$error":"#DIV/0!"}},true]
[{"$f":"INDEX(Table7[Q],MATCH(Table3[[#This Row],[Question set]],Table7[Question Set],0))&\".\"&INDEX(Table5[S],MATCH(Table3[[#This Row],[Diagnostic Heading]],Table5[Diagnostic Heading],0))&\".\"&Table3[[#This Row],[Q]]","v":"5.6.2"},"Retail (food)","Management Practice",2,"Reporting systems for energy use","no",null,"We periodically report energy use for our business to relevant staff.","Establish a process to regularly report your energy efficiency to management and staff. Learn more about managing energy costs and consumption in your business through the link below.","https://www.bchydro.com/powersmart/business/types-of-business-customers.html",{"$f":"INDEX(Table1[Evaluator Question Set],MATCH(Sector,Table1[BC Hydro Sector Allocation],0))=Table3[[#This Row],[Question set]]","v":{"$error":"#N/A"}},{"$f":"IF(Table3[[#This Row],[Selected]],INDIRECT(\"'\"&INDEX(Table5[SheetName],MATCH(Table3[[#This Row],[Diagnostic Heading]],Table5[Diagnostic Heading],0))&\"'\"&\"!C\"&11+Table3[[#This Row],[Q]]),\"\")","v":{"$error":"#N/A"}},{"$f":"IFERROR(AND(Table3[[#This Row],[BCH Funded]]=\"Yes\",Table3[[#This Row],[Answer]]=\"No\"),\"\")","v":""},{"$f":"IFERROR(AND(Table3[[#This Row],[BCH Funded]]=\"no\",Table3[[#This Row],[Answer]]=\"No\"),\"\")","v":""},{"$f":"IFERROR(IF(Table3[[#This Row],[Answer]]=\"No\",INDEX(Table10[],MATCH(INDEX(Table8[CPR Type],MATCH(Table3[[#This Row],[Report Heading]],Table8[Report Heading],0)),Table10[Segment],0),MATCH(Table3[[#This Row],[Question set]],Table10[#Headers],0)),0),0.01/COUNTIFS(Table3[Question set],INDEX(Table1[Evaluator Question Set],MATCH(Sector,Table1[BC Hydro Sector Allocation],0)),Table3[Diagnostic Heading],Table3[[#This Row],[Diagnostic Heading]],Table3[Selected],TRUE))","v":{"$error":"#DIV/0!"}},1,1,{"$f":"Table3[[#This Row],[a]]*Table3[[#This Row],[b]]*Table3[[#This Row],[c]]","v":{"$error":"#DIV/0!"}},{"$f":"Table3[[#This Row],[ES Percent]]*AnnEgyCons","v":{"$error":"#DIV/0!"}},true]
[{"$f":"INDEX(Table7[Q],MATCH(Table3[[#This Row],[Question set]],Table7[Question Set],0))&\".\"&INDEX(Table5[S],MATCH(Table3[[#This Row],[Diagnostic Heading]],Table5[Diagnostic Heading],0))&\".\"&Table3[[#This Row],[Q]]","v":"5.6.3"},"Retail (food)","Management Practice",3,"Targets and Planning","no",null,"We have a target and action plan to reduce energy costs for the next year (e.g. kWh/sq. ft. by 10%).","Create a realistic target and action plan to reduce energy costs for the next year (e.g. kWh/sq. ft. by 10%). Find out how to manage your energy costs and consumption in your business through the link below.","https://www.bchydro.com/news/conservation/2014/myhydro-to-manage-energy-and-profitability.html",{"$f":"INDEX(Table1[Evaluator Question Set],MATCH(Sector,Table1[BC Hydro Sector Allocation],0))=Table3[[#This Row],[Question set]]","v":{"$error":"#N/A"}},{"$f":"IF(Table3[[#This Row],[Selected]],INDIRECT(\"'\"&INDEX(Table5[SheetName],MATCH(Table3[[#This Row],[Diagnostic Heading]],Table5[Diagnostic Heading],0))&\"'\"&\"!C\"&11+Table3[[#This Row],[Q]]),\"\")","v":{"$error":"#N/A"}},{"$f":"IFERROR(AND(Table3[[#This Row],[BCH Funded]]=\"Yes\",Table3[[#This Row],[Answer]]=\"No\"),\"\")","v":""},{"$f":"IFERROR(AND(Table3[[#This Row],[BCH Funded]]=\"no\",Table3[[#This Row],[Answer]]=\"No\"),\"\")","v":""},{"$f":"IFERROR(IF(Table3[[#This Row],[Answer]]=\"No\",INDEX(Table10[],MATCH(INDEX(Table8[CPR Type],MATCH(Table3[[#This Row],[Report Heading]],Table8[Report Heading],0)),Table10[Segment],0),MATCH(Table3[[#This Row],[Question set]],Table10[#Headers],0)),0),0.01/COUNTIFS(Table3[Question set],INDEX(Table1[Evaluator Question Set],MATCH(Sector,Table1[BC Hydro Sector Allocation],0)),Table3[Diagnostic Heading],Table3[[#This Row],[Diagnostic Heading]],Table3[Selected],TRUE))","v":{"$error":"#DIV/0!"}},1,1,{"$f":"Table3[[#This Row],[a]]*Table3[[#This Row],[b]]*Table3[[#This Row],[c]]","v":{"$error":"#DIV/0!"}},{"$f":"Table3[[#This Row],[ES Percent]]*AnnEgyCons","v":{"$error":"#DIV/0!"}},true]
[{"$f":"INDEX(Table7[Q],MATCH(Table3[[#This Row],[Question set]],Table7[Question Set],0))&\".\"&INDEX(Table5[S],MATCH(Table3[[#This Row],[Diagnostic Heading]],Table5[Diagnostic Heading],0))&\".\"&Table3[[#This Row],[Q]]","v":"5.6.4"},"Retail (food)","Management Practice",4,"Understanding of energy performance and opportunities","no",null,"We have completed an energy audit, which has quantified costs and savings opportunities.","Conduct an energy audit to quantify costs and identify savings opportunities. Learn how to do an energy audit and build a business case for energy efficiency through the link below.","http://www.bchydro.com/powersmart/business/business-energy-advisors.html?WT.mc_id=rd_bea",{"$f":"INDEX(Table1[Evaluator Question Set],MATCH(Sector,Table1[BC Hydro Sector Allocation],0))=Table3[[#This Row],[Question set]]","v":{"$error":"#N/A"}},{"$f":"IF(Table3[[#This Row],[Selected]],INDIRECT(\"'\"&INDEX(Table5[SheetName],MATCH(Table3[[#This Row],[Diagnostic Heading]],Table5[Diagnostic Heading],0))&\"'\"&\"!C\"&11+Table3[[#This Row],[Q]]),\"\")","v":{"$error":"#N/A"}},{"$f":"IFERROR(AND(Table3[[#This Row],[BCH Funded]]=\"Yes\",Table3[[#This Row],[Answer]]=\"No\"),\"\")","v":""},{"$f":"IFERROR(AND(Table3[[#This Row],[BCH Funded]]=\"no\",Table3[[#This Row],[Answer]]=\"No\"),\"\")","v":""},{"$f":"IFERROR(IF(Table3[[#This Row],[Answer]]=\"No\",INDEX(Table10[],MATCH(INDEX(Table8[CPR Type],MATCH(Table3[[#This Row],[Report Heading]],Table8[Report Heading],0)),Table10[Segment],0),MATCH(Table3[[#This Row],[Question set]],Table10[#Headers],0)),0),0.01/COUNTIFS(Table3[Question set],INDEX(Table1[Evaluator Question Set],MATCH(Sector,Table1[BC Hydro Sector Allocation],0)),Table3[Diagnostic Heading],Table3[[#This Row],[Diagnostic Heading]],Table3[Selected],TRUE))","v":{"$error":"#DIV/0!"}},1,1,{"$f":"Table3[[#This Row],[a]]*Table3[[#This Row],[b]]*Table3[[#This Row],[c]]","v":{"$error":"#DIV/0!"}},{"$f":"Table3[[#This Row],[ES Percent]]*AnnEgyCons","v":{"$error":"#DIV/0!"}},true]
[{"$f":"INDEX(Table7[Q],MATCH(Table3[[#This Row],[Question set]],Table7[Question Set],0))&\".\"&INDEX(Table5[S],MATCH(Table3[[#This Row],[Diagnostic Heading]],Table5[Diagnostic Heading],0))&\".\"&Table3[[#This Row],[Q]]","v":"5.6.5"},"Retail (food)","Management Practice",5,"Purchasing","no",null,"We use energy efficient guidelines and product catalogues when buying equipment or specify standards in our procurement process.","Use Power Smart buying guides and product catalogues when buying equipment or specify energy efficiency standards in your procurement process. Visit the link below for BC Hydro Power Smart buying guides.","https://www.bchydro.com/powersmart/business/technologies-equipment.html\nhttps://www.energystar.gov/products?s=mega",{"$f":"INDEX(Table1[Evaluator Question Set],MATCH(Sector,Table1[BC Hydro Sector Allocation],0))=Table3[[#This Row],[Question set]]","v":{"$error":"#N/A"}},{"$f":"IF(Table3[[#This Row],[Selected]],INDIRECT(\"'\"&INDEX(Table5[SheetName],MATCH(Table3[[#This Row],[Diagnostic Heading]],Table5[Diagnostic Heading],0))&\"'\"&\"!C\"&11+Table3[[#This Row],[Q]]),\"\")","v":{"$error":"#N/A"}},{"$f":"IFERROR(AND(Table3[[#This Row],[BCH Funded]]=\"Yes\",Table3[[#This Row],[Answer]]=\"No\"),\"\")","v":""},{"$f":"IFERROR(AND(Table3[[#This Row],[BCH Funded]]=\"no\",Table3[[#This Row],[Answer]]=\"No\"),\"\")","v":""},{"$f":"IFERROR(IF(Table3[[#This Row],[Answer]]=\"No\",INDEX(Table10[],MATCH(INDEX(Table8[CPR Type],MATCH(Table3[[#This Row],[Report Heading]],Table8[Report Heading],0)),Table10[Segment],0),MATCH(Table3[[#This Row],[Question set]],Table10[#Headers],0)),0),0.01/COUNTIFS(Table3[Question set],INDEX(Table1[Evaluator Question Set],MATCH(Sector,Table1[BC Hydro Sector Allocation],0)),Table3[Diagnostic Heading],Table3[[#This Row],[Diagnostic Heading]],Table3[Selected],TRUE))","v":{"$error":"#DIV/0!"}},1,1,{"$f":"Table3[[#This Row],[a]]*Table3[[#This Row],[b]]*Table3[[#This Row],[c]]","v":{"$error":"#DIV/0!"}},{"$f":"Table3[[#This Row],[ES Percent]]*AnnEgyCons","v":{"$error":"#DIV/0!"}},true]

{"sheet":"Variables","index":8,"n_rows":46,"n_cols":82,"rows_kept":46,"cut":false,"hidden":true,"merged":[[20,59,20,60],[4,51,4,58],[20,69,20,70],[21,69,21,70],[4,62,4,71],[1,81,7,89],[14,62,14,70],[12,58,14,58],[13,51,13,57],[3,59,5,60],[2,69,2,70],[11,69,11,70],[12,62,12,70],[13,62,13,70],[3,62,3,71]]}
["BC Hydro Sector Allocation","Evaluator Question Set","Rebate",null,"Question Set","Q",null,null,"S","Diagnostic Heading","SheetName",null,"#","Report Heading","BC Stat Type","CPR Type",null,null,null,null,null,null,null,null,null,null,null,null,null,null,null,null,null,null,null,null,null,null,"Diagnostic Heading","Factor","Description","Source",null,null,"Barrier","Reason","B","R"]
["Advanced Education","Education",3353,null,"Education",1,null,null,1,"Lighting","Lighting",null,null,"LED Exit lighting","Lights","Lighting",null,null,null,"Energy Use","Education","Retail (non-food)","Retail (food)","Office","Hospitality",null,"Segment","Accommodation","Colleges/Universities","Food Service","Hospital","Logistics/Warehouses","Long Term Care","Office ","Other Commercial","Retail - Food","Retail - Non Food",null,"Lighting","a","(%) Ltg usage in comm. Buildings","BC Energy Use Commercial Stats",null,null,"Long payback","For the environment",{"$f":"Barrier=Table6[[#This Row],[Barrier]]","v":false},{"$f":"Reason=Table6[[#This Row],[Reason]]","v":false},null,null,null,null,null,null,null,null,null,null,null,null,null,null,null,null,null,null,null,null,null,null,null,null,null,"Next Steps",null,null,null,null,null,null,null,"The data and information provided in this report was compiled solely for BC Hydro purposes. BC Hydro expressly disclaims any warranties or representations, either expressed or implied, with respect to the accuracy, reliability, usefulness, completeness, non-infringement of intellectual property rights, or quality of data and information contained herein. BC Hydro, its employees, servants and agents do not accept any liability of any kind arising in any way out of the use of or reliance on this data and information by any person. Any person using or relying on this data and information does so at their own risk."]
["Government","Office",3840,null,"Retail (non-food)",2,null,null,2,"Heating, Ventilation, Air Conditioning / Refrigeration","HVAC and Refrigeration",null,null,"Lighting control","Lights","Lighting",null,null,null,"Cool",1.925,4.8849999999999998,1.7,10.605,4.96,null,"Cooking",6,4,41,7,4,7,13,4,4,7,null,"Lighting","b","(%) ECM usage  vs total ECM usage per building sector","Past Experience",null,null,"No capital dollars","For the financial savings",{"$f":"Barrier=Table6[[#This Row],[Barrier]]","v":false},{"$f":"Reason=Table6[[#This Row],[Reason]]","v":false},null,null,null,null,null,null,null,null,null,null,null,null,null,null,null,null,null,null,null,null,null,null,null,null,null,"1.  Review the report and recommended actions."]
["Health Authority","Hospitality",2781,null,"Office",3,null,null,4,"Energy Efficient Equipment","Energy Efficient Equipment",null,null,"Exterior Lighting","Ext. Lts","Ext. Lts",null,null,null,"Heat",30.434999999999999,9.6150000000000002,1.66,13.39,11.15,null,"NVAC Fans/Pumps",144,208,140,119,102,75,876,432,80,296,null,"Lighting","c","(%) ECM savings representative of  Action type","Past Experience",null,null,"Don't know where to begin","Green branding",{"$f":"Barrier=Table6[[#This Row],[Barrier]]","v":false},{"$f":"Reason=Table6[[#This Row],[Reason]]","v":false},null,null,null,null,null,null,null,null,null,null,null,null,null,null,null,null,null,null,null,null,null,null,null,null,null,"2.  Go to www.bchydro.com/referral to get a list of Energy Professionals to help you with your project."]
["Hospitality","Hospitality",2477,null,"Hospitality",4,null,null,5,"Operating and Maintenance Practices","O&M Practices",null,null,"Fluorescent lighting","Lights","Lighting",null,null,null,"Lights",33.020000000000003,29.759999999999998,17.89,33.96,18.484999999999999,null,"Hot Water",27,15,72,1,12,6,63,30,7,16,null,null,null,null,null,null,null,"Lack of information ","Better quality equipment",{"$f":"Barrier=Table6[[#This Row],[Barrier]]","v":false},{"$f":"Reason=Table6[[#This Row],[Reason]]","v":false},null,null,null,null,null,null,null,null,null,null,null,null,null,null,null,null,null,null,null,null,null,null,null,null,null,"3.  Go to www.bchydro.com/express to fill out an application form for incentives before any works starts."]
["Municipalities","Office",2284,null,"Retail (food)",5,null,null,6,"Management Practice","Management Practice",null,null,"LED Lighting","Lights","Lighting",null,null,null,"Fans",17.11,10.08,8.7899999999999991,17.61,12.635,null,"Lighting",325,257,328,154,393,131,1635,399,279,1225,null,null,null,null,null,null,null,"Leasing limitation","Competitive advantage",{"$f":"Barrier=Table6[[#This Row],[Barrier]]","v":false},{"$f":"Reason=Table6[[#This Row],[Reason]]","v":false},null,null,null,null,null,null,null,null,null,null,null,null,null,null,null,null,null,null,null,null,null,null,null,null,null,"4.  To find out more about BC Hydro funding call 1 866 522 4713."]
["Offices","Office",3620,null,null,null,null,null,null,null,null,null,null,"Economizer sensor","Heat","Space Cooling",null,null,null,"Equip.",5.65,11.19,4.9800000000000004,12.005000000000001,20.39,null,"Office Equipment",56,40,4,7,15,6,253,8,0,37,null,null,null,null,null,null,null,"Other","Other",{"$f":"Barrier=Table6[[#This Row],[Barrier]]","v":false},{"$f":"Reason=Table6[[#This Row],[Reason]]","v":false}]
["Property Management","Office",3620,null,null,null,null,null,null,null,null,null,null,"Economizer operation","Heat","Space Cooling",null,null,null,"Refrig.",0.69,20.029999999999998,56.29,1.4750000000000001,4.62,null,"Other",50,37,153,112,164,28,403,110,63,420]
["Retail (food)","Retail (food)",2617,null,null,null,null,null,null,null,null,null,null,"Air tightness","Heat","Space Cooling",null,null,null,"Ext. Lts",2.625,7.4550000000000001,2.33,3.48,5.17,null,"Refrigeration",10,4,37,5,64,6,11,154,495,14,null,null,null,"Building consumption"]
["Retail (non-food)","Retail (non-food)",2617,null,null,null,null,null,null,null,null,null,null,"Heating and cooling temperature set points","Heat","Space Cooling",null,null,null,"Elev.",0.41499999999999998,1.7,0.48,3.105,1.2949999999999999,null,"Space Cooling",38,16,110,25,26,12,229,44,11,99,null,null,null,"End use consumption"]
["School District","Education",4025,null,null,null,null,null,null,null,null,null,null,"Heating / cooling controls","Heat","HVAC Fans/Pumps",null,null,null,"DHW",4.4550000000000001,2.52,3.28,2.77,19.435000000000002,null,"Space Hating",35,16,22,22,27,32,79,29,4,40,null,null,null,"end use type consumption"]
[null,null,null,null,null,null,null,null,null,null,null,null,null,"Office Equipment","Equip.","Office Equipment",null,null,null,"Cook",3.68,2.7749999999999999,2.6,1.6,1.855,null,null,{"$f":"SUM(AB3:AB11)","v":691},{"$f":"SUM(AC3:AC11)","v":597},907,452,807,303,3562,1210,943,2154,null,null,null,"Typical ECM savings per end use type"]
[null,null,null,null,null,null,null,null,null,null,null,null,null,"Vending Machines","Equip.","Other"]
[null,null,null,null,null,null,null,null,null,null,null,null,null,"Refrigeration","Equip.","Refrigeration",null,null,null,null,null,null,null,null,null,null,"Segment","Accommodation","Colleges/Universities","Food Service","Hospital","Logistics/Warehouses","Long Term Care","Office ","Other Commercial","Retail - Food","Retail - Non Food"]
[null,null,null,null,null,null,null,null,null,null,null,null,null,"LED case light","Lights","Lighting",null,null,null,null,null,null,null,null,null,null,"Cooking",{"$f":"AB3/AB$12","v":8.6830680173661367E-3},6.7001675041876048E-3,4.5203969128996692E-2,1.5486725663716814E-2,4.9566294919454771E-3,2.3102310231023101E-2,3.6496350364963502E-3,3.3057851239669421E-3,4.2417815482502655E-3,3.2497678737233053E-3]
[null,null,null,null,null,null,null,null,null,null,null,null,null,"Programmable thermostat","Equip.","HVAC Fans/Pumps",null,null,null,null,null,null,null,null,null,null,"HVAC Fans/Pumps",{"$f":"AB4/AB$12","v":0.20839363241678727},0.34840871021775544,0.15435501653803749,0.26327433628318586,0.12639405204460966,0.24752475247524752,0.2459292532285233,0.35702479338842974,8.4835630965005307E-2,0.13741875580315691]
[null,null,null,null,null,null,null,null,null,null,null,null,null,"Energy Efficient Equipment","Equip.","Office Equipment",null,null,null,null,null,null,null,null,null,null,"Hot Water",{"$f":"AB5/AB$12","v":3.9073806078147609E-2},2.5125628140703519E-2,7.9382579933847855E-2,2.2123893805309734E-3,1.4869888475836431E-2,1.9801980198019802E-2,1.7686692869174622E-2,2.4793388429752067E-2,7.423117709437964E-3,7.4280408542246983E-3]
[null,null,null,null,null,null,null,null,null,null,null,null,null,"Efficient equipment","DHW","Hot Water",null,null,null,null,null,null,null,null,null,null,"Lighting",{"$f":"AB6/AB$12","v":0.47033285094066568},0.4304857621440536,0.36163175303197354,0.34070796460176989,0.48698884758364314,0.43234323432343236,0.45901179112857943,0.32975206611570246,0.29586426299045598,0.56870937790157849,null,null,null,null,null,null,null,null,null,null,null,null,null,null,"Lighting"]
[null,null,null,null,null,null,null,null,null,null,null,null,null,"Showerheads","Equip.","Hot Water",null,null,null,null,null,null,null,null,null,null,"Office Equipment",{"$f":"AB7/AB$12","v":8.1041968162083936E-2},6.7001675041876041E-2,4.410143329658214E-3,1.5486725663716814E-2,1.858736059479554E-2,1.9801980198019802E-2,7.1027512633352052E-2,6.6115702479338841E-3,0,1.7177344475394613E-2]
[null,null,null,null,null,null,null,null,null,null,null,null,null,"Refrigeration Equipment","Equip.","Refrigeration",null,null,null,null,null,null,null,null,null,null,"Other",{"$f":"AB8/AB$12","v":7.2358900144717797E-2},6.1976549413735343E-2,0.16868798235942667,0.24778761061946902,0.20322180916976457,9.2409240924092403E-2,0.11313868613138686,9.0909090909090912E-2,6.6808059384941679E-2,0.19498607242339833]
[null,null,null,null,null,null,null,null,null,null,null,null,null,"Steamers & hot food holding cabinets","Equip.","Cooking",null,null,null,"Lights","Lighting",null,null,null,null,null,"Refrigeration",{"$f":"AB9/AB$12","v":1.4471780028943559E-2},6.7001675041876048E-3,4.0793825799338476E-2,1.1061946902654867E-2,7.9306071871127634E-2,1.9801980198019802E-2,3.0881527231892197E-3,0.12727272727272726,0.52492046659597036,6.4995357474466105E-3]
[null,null,null,null,null,null,null,null,null,null,null,null,null,"Kitchen exhaust","Equip.","HVAC Fans/Pumps",null,null,null,35.645000000000003,0.4304857621440536,"Education",{"$f":"T22/100-U22","v":-7.4035762144053552E-2},null,null,null,"Space Cooling",{"$f":"AB10/AB$12","v":5.4992764109985527E-2},2.6800670016750419E-2,0.12127894156560089,5.5309734513274339E-2,3.2218091697645598E-2,3.9603960396039604E-2,6.4289724873666479E-2,3.6363636363636362E-2,1.166489925768823E-2,4.596100278551532E-2]
[null,null,null,null,null,null,null,null,null,null,null,null,null,"Ovens and griddles","Equip.","Cooking",null,null,null,37.214999999999996,0.56870937790157849,"Retail (non-food)",{"$f":"T23/100-U23","v":-0.19655937790157851},null,null,null,"Space Hating",{"$f":"AB11/AB$12","v":5.0651230101302458E-2},2.6800670016750419E-2,2.4255788313120176E-2,4.8672566371681415E-2,3.3457249070631967E-2,0.10561056105610561,2.2178551375631666E-2,2.3966942148760332E-2,4.2417815482502655E-3,1.8570102135561744E-2]
[null,null,null,null,null,null,null,null,null,null,null,null,null,"Dishwasher","Refrig.","Hot Water",null,null,null,20.22,0.4252509016093084,"Office",-0.22305090160930841]
[null,null,null,null,null,null,null,null,null,null,null,null,null,null,null,null,null,null,null,37.44,0.29586426299045598,"Retail (food)",7.8535737009543971E-2,null,null,null,"Segment","Education","Retail (non-food)","Office","Retail (food)","Hospitality"]
[null,null,null,null,null,null,null,null,null,null,null,null,null,null,null,null,null,null,null,23.655000000000001,0.41446134995528933,"Hospitality",-0.17791134995528932,null,null,null,"Cooking",6.7001675041876048E-3,3.2497678737233053E-3,3.9706832174695901E-3,4.2417815482502655E-3,1.5757367970702017E-2]
[null,null,null,null,null,null,null,null,null,{"$f":"INDIRECT(\"HVAC_and_Refrigeration!D5\")","v":{"$error":"#REF!"}},null,null,null,null,null,null,null,null,null,null,null,null,null,null,null,null,"HVAC Fans/Pumps",0.34840871021775544,0.13741875580315691,0.24311603288718756,8.4835630965005307E-2,0.23973090705840691]
[null,null,null,null,null,null,null,null,null,null,null,null,null,null,null,null,null,null,null,null,null,null,null,null,null,null,"Hot Water",2.5125628140703519E-2,7.4280408542246983E-3,1.9116656591587709E-2,7.423117709437964E-3,2.0362725218899463E-2]
[null,null,null,null,null,null,null,null,null,null,null,null,null,null,null,null,null,null,null,null,null,null,null,null,null,null,"Lighting",0.4042357621440536,0.28708175303197353,0.3174079646017699,0.45218884758364314,0.38064323432343239]
[null,null,null,null,null,null,null,null,null,null,null,null,null,null,null,null,null,null,null,null,null,null,null,null,null,null,"Ext. Lts",2.6249999999999999E-2,7.4550000000000005E-2,2.3300000000000001E-2,3.4799999999999998E-2,5.1699999999999996E-2]
[null,null,null,null,null,null,null,null,null,null,null,null,null,null,null,null,null,null,null,null,null,null,null,null,null,null,"Office Equipment",6.7001675041876041E-2,1.7177344475394613E-2,3.2075481158693825E-2,0,3.8776891341273517E-2]
[null,null,null,null,null,null,null,null,null,null,null,null,null,null,null,null,null,null,null,null,null,null,null,null,null,null,"Other",6.1976549413735343E-2,0.19498607242339833,0.13575652873674746,6.6808059384941679E-2,0.13751858389609309]
[null,null,null,null,null,null,null,null,null,null,null,null,null,null,null,null,null,null,null,null,null,null,null,null,null,null,"Refrigeration",6.7001675041876048E-3,6.4995357474466105E-3,6.9888983955681369E-2,0.52492046659597036,1.5111902376539409E-2]
[null,null,null,null,null,null,null,null,null,null,null,null,null,null,null,null,null,null,null,null,null,null,null,null,null,null,"Space Cooling",2.6800670016750419E-2,4.596100278551532E-2,4.4290484311649482E-2,1.166489925768823E-2,4.9968819673099824E-2]
[null,null,null,null,null,null,null,null,null,null,null,null,null,null,null,null,null,null,null,null,null,null,null,null,null,null,"Space Heating",2.6800670016750419E-2,1.8570102135561744E-2,2.6534247531674656E-2,4.2417815482502655E-3,6.8311452509696488E-2]
[null,null,null,null,null,null,null,null,null,null,null,null,null,null,null,null,null,null,null,null,null,null,null,null,null,null,"*From 2016 CPR"]
[null,null,null,null,null,null,null,null,null,null,null,null,null,null,null,null,null,null,null,null,null,null,null,null,"Schools"]
[null,null,null,null,null,null,null,null,null,null,null,null,null,null,null,null,null,null,null,null,null,null,null,null,2]
[null,null,null,null,null,null,null,null,null,null,null,null,null,null,null,null,null,null,null,null,null,null,null,null,86]
[null,null,null,null,null,null,null,null,null,null,null,null,null,null,null,null,null,null,null,null,null,null,null,null,4]
[null,null,null,null,null,null,null,null,null,null,null,null,null,null,null,null,null,null,null,null,null,null,null,null,160]
[null,null,null,null,null,null,null,null,null,null,null,null,null,null,null,null,null,null,null,null,null,null,null,null,9]
[null,null,null,null,null,null,null,null,null,null,null,null,null,null,null,null,null,null,null,null,null,null,null,null,69]
[null,null,null,null,null,null,null,null,null,null,null,null,null,null,null,null,null,null,null,null,null,null,null,null,0]
[null,null,null,null,null,null,null,null,null,null,null,null,null,null,null,null,null,null,null,null,null,null,null,null,10]
[null,null,null,null,null,null,null,null,null,null,null,null,null,null,null,null,null,null,null,null,null,null,null,null,15]